Workbook

Sheet Dryer
R1: Essential Unit Conversion
A2: Universal Calculation Spreadsheets
A3: Dryers | R3: From | T3: To
S4: MMSCF | T4: =R4*1020 -> 0 | U4: MMBtu
A5: Please, enter information describing the Dryer
S6: lb/MMSCF | T6: =R6/1020 -> 0 | U6: lb/MMBtu
D7: Current Capacity | M7: Maximum Proposed Capacity
A9: Number of Dryers | G9: Units | J9: Number of Dryers | P9: Units | R9: 1 | S9: hr/yr | T9: =R9*R10 -> 0 | U9: ton/yr
A10: Maximum permitted hourly throughput | G10: ton/hr | J10: Maximum permitted hourly throughput | P10: ton/hr | S10: ton/hr
A11: Maximum permitted annual throughput | G11: ton/year | J11: Maximum permitted annual throughput | P11: ton/year
A13: Please, enter information describing specific dryer properties
B14: ID | C14: Emission Unit Name | D14: Capacity, tons/hr | E14: Control Type* | F14: Maximum Rated Capacity, MMBtu/hr | G14: Dryer Type | H14: Particulate Control | I14: Maximum permitted annual throughput, ton/yr | K14: ID | L14: Emission Unit Name | M14: Capacity, tons/hr | N14: Control Type* | O14: Maximum Rated Capacity, MMBtu/hr | P14: Dryer Type | Q14: Particulate Control | R14: Maximum permitted annual throughput, ton/yr
A15: 1st Dryer | J15: 1st Dryer
A16: 2nd Dryer | J16: 2nd Dryer
A17: 3rd Dryer | J17: 3rd Dryer
A18: 4th Dryer | J18: 4th Dryer
A19: 5th Dryer | J19: 5th Dryer
A20: 6th Dryer | J20: 6th Dryer
A21: 7th Dryer | J21: 7th Dryer
A22: 8th Dryer | J22: 8th Dryer
A23: 9th Dryer | J23: 9th Dryer
A24: 10th Dryer | J24: 10th Dryer
A26: Please, enter information describing specific permit limits or source specific emissions
A27: If the limit or data are in other units, please, convert them to lb/MMBtu
C28: 1st Dryer Limit (lb/MMBtu) | D28: 2nd Dryer Limit (lb/MMBtu) | E28: 3rd Dryer Limit (lb/MMBtu) | F28: 4th Dryer Limit (lb/MMBtu) | G28: 5th Dryer Limit (lb/MMBtu) | H28: 6th Dryer Limit (lb/MMBtu) | I28: 7th Dryer Limit (lb/MMBtu) | J28: 8th Dryer Limit (lb/MMBtu) | K28: 9th Dryer Limit (lb/MMBtu) | L28: 10th Dryer Limit (lb/MMBtu)
A29: PMfilterable
A30: PM10
A31: PM2.5
A32: SO2
A33: NOx
A34: CO
A35: VOC
A36: Individual HAP
A37: Benzene
A38: Dichlorobenzene
A39: Hexane
A40: Lead Compounds
A41: Naphthalene
A42: Polycyclic Organic Matter
A43: Toluene
A44: Arsenic Compounds
A45: Beryllium Compounds
A46: Cadmium Compounds
A47: Chromium Compounds
A48: Cobalt Compounds
A49: Manganese Compounds
A50: Mercury Compounds
A51: Nickel Compounds
A52: Selenium Compounds
A53: Total HAPs
A54: Carbon Dioxide (CO2)
A55: Methane (CH4)
A56: Nitrous Oxide (N2O)
C59: 1st Dryer Limit (lb/MMBtu) | D59: 2nd Dryer Limit (lb/MMBtu) | E59: 3rd Dryer Limit (lb/MMBtu) | F59: 4th Dryer Limit (lb/MMBtu) | G59: 5th Dryer Limit (lb/MMBtu) | H59: 6th Dryer Limit (lb/MMBtu) | I59: 7th Dryer Limit (lb/MMBtu) | J59: 8th Dryer Limit (lb/MMBtu) | K59: 9th Dryer Limit (lb/MMBtu) | L59: 10th Dryer Limit (lb/MMBtu)
A60: PMfilterable
A61: PM10
A62: PM2.5
A63: SO2
A64: NOx
A65: CO
A66: VOC
A67: Individual HAP
A68: Benzene
A69: Dichlorobenzene
A70: Hexane
A71: Lead Compounds
A72: Naphthalene
A73: Polycyclic Organic Matter
A74: Toluene
A75: Arsenic Compounds
A76: Beryllium Compounds
A77: Cadmium Compounds
A78: Chromium Compounds
A79: Cobalt Compounds
A80: Manganese Compounds
A81: Mercury Compounds
A82: Nickel Compounds
A83: Selenium Compounds
A84: Total HAPs
A85: Carbon Dioxide (CO2)
A86: Methane (CH4)
A87: Nitrous Oxide (N2O)

Sheet Results Summary
A2: Universal Calculation Spreadsheets
A3: Results Summary
A5: Non-Fugitive PTE
A6: Pollutants | B6: Current PTE | E6: Pollutants | F6: Total PTE after Project | G6: DDGS dryers | I6: Pollutants | J6: Project PTE
B7: (lb/hr) | C7: (ton/yr) | F7: (lb/hr) | G7: (ton/yr) | J7: (lb/hr) | K7: (ton/yr)
A8: PMfilterable | B8: =Calculations!CJ7 -> 0 | C8: =Calculations!CW7 -> 0 | E8: PMfilterable | F8: =Calculations!CJ48 -> 0 | G8: =Calculations!CW48 -> 0 | I8: PMfilterable | J8: =F8-B8 -> 0 | K8: =G8-C8 -> 0
A9: PM10 | B9: =Calculations!CJ8 -> 0 | C9: =Calculations!CW8 -> 0 | E9: PM10 | F9: =Calculations!CJ49 -> 0 | G9: =Calculations!CW49 -> 0 | I9: PM10 | J9: =F9-B9 -> 0 | K9: =G9-C9 -> 0
A10: PM2.5 | B10: =Calculations!CJ9 -> 0 | C10: =Calculations!CW9 -> 0 | E10: PM2.5 | F10: =Calculations!CJ50 -> 0 | G10: =Calculations!CW50 -> 0 | I10: PM2.5 | J10: 0 | K10: 0
A11: SO2 | B11: =Calculations!CJ10 -> 0 | C11: =Calculations!CW10 -> 0 | E11: SO2 | F11: =Calculations!CJ51 -> 0 | G11: =Calculations!CW51 -> 0 | I11: SO2 | J11: 0 | K11: 0
A12: NOx | B12: =Calculations!CJ11 -> 0 | C12: =Calculations!CW11 -> 0 | E12: NOx | F12: =Calculations!CJ52 -> 0 | G12: =Calculations!CW52 -> 0 | I12: NOx | J12: 0 | K12: 0
A13: CO | B13: =Calculations!CJ12 -> 0 | C13: =Calculations!CW12 -> 0 | E13: CO | F13: =Calculations!CJ53 -> 0 | G13: =Calculations!CW53 -> 0 | I13: CO | J13: 0 | K13: 0
A14: VOC | B14: =Calculations!CJ13 -> 0 | C14: =Calculations!CW13 -> 0 | E14: VOC | F14: =Calculations!CJ54 -> 0 | G14: =Calculations!CW54 -> 0 | I14: VOC | J14: 0 | K14: 0
A15: Hydrogen Sulfide | B15: =Calculations!CJ14 -> 0 | C15: =Calculations!CW14 -> 0 | E15: Hydrogen Sulfide | F15: =Calculations!CJ55 -> 0 | G15: =Calculations!CW55 -> 0 | I15: Hydrogen Sulfide
A16: Sulfuric Acid | B16: =Calculations!CJ15 -> 0 | C16: =Calculations!CW15 -> 0 | E16: Sulfuric Acid | F16: =Calculations!CJ56 -> 0 | G16: =Calculations!CW56 -> 0 | I16: Sulfuric Acid
A17: Fluorides | B17: =Calculations!CJ16 -> 0 | C17: =Calculations!CW16 -> 0 | E17: Fluorides | F17: =Calculations!CJ57 -> 0 | G17: =Calculations!CW57 -> 0 | I17: Fluorides
A18: Individual HAP | E18: Individual HAP | I18: Individual HAP
A19: Acetaldehyde | E19: Acetaldehyde | I19: Acetaldehyde | J19: =F19-B19 -> 0 | K19: =G19-C19 -> 0
A20: Acrolein | E20: Acrolein | I20: Acrolein | J20: 0 | K20: 0
A21: Arsenic compounds | B21: =Calculations!CJ22 -> 0 | C21: =Calculations!CW22 -> 0 | E21: Arsenic compounds | F21: =Calculations!CJ63 -> 0 | G21: =Calculations!CW63 -> 0 | I21: Arsenic compounds | J21: 0 | K21: 0
A22: Benzene | B22: =Calculations!CJ15 -> 0 | C22: =Calculations!CW15 -> 0 | E22: Benzene | F22: =Calculations!CJ56 -> 0 | G22: =Calculations!CW56 -> 0 | I22: Benzene | J22: 0 | K22: 0
A23: Benzyl chloride | E23: Benzyl chloride | I23: Benzyl chloride | J23: 0 | K23: 0
A24: Beryllium compounds | B24: =Calculations!CJ23 -> 0 | C24: =Calculations!CW23 -> 0 | E24: Beryllium compounds | F24: =Calculations!CJ64 -> 0 | G24: =Calculations!CW64 -> 0 | I24: Beryllium compounds | J24: 0 | K24: 0
A25: Cadmium compounds | B25: =Calculations!CJ24 -> 0 | C25: =Calculations!CW24 -> 0 | E25: Cadmium compounds | F25: =Calculations!CJ65 -> 0 | G25: =Calculations!CW65 -> 0 | I25: Cadmium compounds | J25: 0 | K25: 0
A26: Cyanide compounds | E26: Cyanide compounds | I26: Cyanide compounds | J26: 0 | K26: 0
A27: Formaldehyde | E27: Formaldehyde | I27: Formaldehyde | J27: 0 | K27: 0
A28: Hexane | B28: =Calculations!CJ17 -> 0 | C28: =Calculations!CW17 -> 0 | E28: Hexane | F28: =Calculations!CJ58 -> 0 | G28: =Calculations!CW58 -> 0 | I28: Hexane | J28: 0 | K28: 0
A29: Hydrochloric acid | E29: Hydrochloric acid | I29: Hydrochloric acid | J29: 0 | K29: 0
A30: Lead Compounds | B30: =Calculations!CJ18 -> 0 | C30: =Calculations!CW18 -> 0 | E30: Lead Compounds | F30: =Calculations!CJ59 -> 0 | G30: =Calculations!CW59 -> 0 | I30: Lead Compounds | J30: 0 | K30: 0
A31: Mercury compounds | B31: =Calculations!CJ28 -> 0 | C31: =Calculations!CW28 -> 0 | E31: Mercury compounds | F31: =Calculations!CJ69 -> 0 | G31: =Calculations!CW69 -> 0 | I31: Mercury compounds | J31: 0 | K31: 0
A32: Methanol | E32: Methanol | I32: Methanol | J32: 0 | K32: 0
A33: Methyl hydrazine | E33: Methyl hydrazine | I33: Methyl hydrazine | J33: 0 | K33: 0
A34: Selenium compounds | B34: =Calculations!CJ30 -> 0 | C34: =Calculations!CW30 -> 0 | E34: Selenium compounds | F34: =Calculations!CJ71 -> 0 | G34: =Calculations!CW71 -> 0 | I34: Selenium compounds | J34: 0 | K34: 0
A35: Other HAPs | B35: =B36-SUM(B19:B34) -> 0 | C35: =C36-SUM(C19:C34) -> 0 | E35: Other HAPs | F35: =F36-SUM(F19:F34) -> 0 | G35: =G36-SUM(G19:G34) -> 0 | I35: Other HAPs | J35: 0 | K35: 0
A36: Total HAPs | B36: =Calculations!CJ31 -> 0 | C36: =Calculations!CW31 -> 0 | E36: Total HAPs | F36: =Calculations!CJ72 -> 0 | G36: =Calculations!CW72 -> 0 | I36: Total HAPs | J36: 0 | K36: 0
A37: Greenhouse Gases (GHG) (Mass Basis) | E37: Greenhouse Gases (GHG) (Mass Basis) | I37: Greenhouse Gases (GHG) (Mass Basis)
A38: Carbon Dioxide | B38: =Calculations!CJ33 -> 0 | C38: =Calculations!CW33 -> 0 | E38: Carbon Dioxide | F38: =Calculations!CJ74 -> 0 | G38: =Calculations!CW74 -> 0 | I38: Carbon Dioxide | J38: =F38-B38 -> 0 | K38: =G38-C38 -> 0
A39: Methane | B39: =Calculations!CJ34 -> 0 | C39: =Calculations!CW34 -> 0 | E39: Methane | F39: =Calculations!CJ75 -> 0 | G39: =Calculations!CW75 -> 0 | I39: Methane | J39: 0 | K39: 0
A40: Nitrous Oxide | B40: =Calculations!CJ35 -> 0 | C40: =Calculations!CW35 -> 0 | E40: Nitrous Oxide | F40: =Calculations!CJ76 -> 0 | G40: =Calculations!CW76 -> 0 | I40: Nitrous Oxide | J40: 0 | K40: 0
A41: Total GHGs | B41: =Calculations!CJ36 -> 0 | C41: =Calculations!CW36 -> 0 | E41: Total GHGs | F41: =Calculations!CJ77 -> 0 | G41: =Calculations!CW77 -> 0 | I41: Total GHGs | J41: 0 | K41: 0
A42: Greenhouse Gases (GHG) (CO2 Equivalent Basis) | E42: Greenhouse Gases (GHG) (CO2 Equivalent Basis) | I42: Greenhouse Gases (GHG) (CO2 Equivalent Basis)
A43: Carbon Dioxide | B43: =Calculations!CJ38 -> 0 | C43: =Calculations!CW38 -> 0 | E43: Carbon Dioxide | F43: =Calculations!CJ79 -> 0 | G43: =Calculations!CW79 -> 0 | I43: Carbon Dioxide | J43: =F43-B43 -> 0 | K43: =G43-C43 -> 0
A44: Methane | B44: =Calculations!CJ39 -> 0 | C44: =Calculations!CW39 -> 0 | E44: Methane | F44: =Calculations!CJ80 -> 0 | G44: =Calculations!CW80 -> 0 | I44: Methane | J44: 0 | K44: 0
A45: Nitrous Oxide | B45: =Calculations!CJ40 -> 0 | C45: =Calculations!CW40 -> 0 | E45: Nitrous Oxide | F45: =Calculations!CJ81 -> 0 | G45: =Calculations!CW81 -> 0 | I45: Nitrous Oxide | J45: 0 | K45: 0
A46: Total GHGs | B46: =Calculations!CJ41 -> 0 | C46: =Calculations!CW41 -> 0 | E46: Total GHGs | F46: =Calculations!CJ82 -> 0 | G46: =Calculations!CW82 -> 0 | I46: Total GHGs | J46: 0 | K46: 0

Sheet Calculations
A1: Drying Operations
A2: Emissions from Drying - Drying Process Emissions
AL3: PTE in ton/yr = PTE in lb/hr x annual hours limit / 2000
A4: Emission Factors* | M4: Chosen Emission Factors: Manufacturer's Guarantee (If Available) or AP-42 in lb/MMBtu* | Y4: PTE in lb/hr = Emission Factor x Maximum Rated Capacity, MMBtu/hr | AL4: Annual hours limit | AM4: =IF(Dryer!D15=0,0,Dryer!I15/Dryer!D15) -> 0 | AN4: =IF(Dryer!D16=0,0,Dryer!I16/Dryer!D16) -> 0 | AO4: =IF(Dryer!D17=0,0,Dryer!I17/Dryer!D17) -> 0 | AP4: =IF(Dryer!D18=0,0,Dryer!I18/Dryer!D18) -> 0 | AQ4: =IF(Dryer!D19=0,0,Dryer!I19/Dryer!D19) -> 0 | AR4: =IF(Dryer!D20=0,0,Dryer!I20/Dryer!D20) -> 0 | AS4: =IF(Dryer!D21=0,0,Dryer!I21/Dryer!D21) -> 0 | AT4: =IF(Dryer!D22=0,0,Dryer!I22/Dryer!D22) -> 0 | AU4: =IF(Dryer!D23=0,0,Dryer!I23/Dryer!D23) -> 0 | AV4: =IF(Dryer!D24=0,0,Dryer!I24/Dryer!D24) -> 0 | AY4: PTE in lb/hr based on grain drying process = Emission Factor (lb/ton) x Maximum permitted hourly rate (ton/hr) | BL4: PTE in lb/yr based on grain drying process = Emission Factor (lb/ton) x Maximum permitted annual rate (ton/yr) | BY4: Final PTE in lb/hr = Combustion Emissions + Process Emissions | CL4: Final PTE in ton/yr = Combustion Emissions + Process Emissions
A5: Pollutant | B5: 1st Dryer | C5: 2nd Dryer | D5: 3rd Dryer | E5: 4th Dryer | F5: 5th Dryer | G5: 6th Dryer | H5: 7th Dryer | I5: 8th Dryer | J5: 9th Dryer | K5: 10th Dryer | M5: Pollutant | N5: 1st Dryer | O5: 2nd Dryer | P5: 3rd Dryer | Q5: 4th Dryer | R5: 5th Dryer | S5: 6th Dryer | T5: 7th Dryer | U5: 8th Dryer | V5: 9th Dryer | W5: 10th Dryer | Y5: Pollutant | Z5: 1st Dryer | AA5: 2nd Dryer | AB5: 3rd Dryer | AC5: 4th Dryer | AD5: 5th Dryer | AE5: 6th Dryer | AF5: 7th Dryer | AG5: 8th Dryer | AH5: 9th Dryer | AI5: 10th Dryer | AJ5: Total | AL5: Pollutant | AM5: 1st Dryer | AN5: 2nd Dryer | AO5: 3rd Dryer | AP5: 4th Dryer | AQ5: 5th Dryer | AR5: 6th Dryer | AS5: 7th Dryer | AT5: 8th Dryer | AU5: 9th Dryer | AV5: 10th Dryer | AW5: Total | AY5: Pollutant | AZ5: 1st Dryer | BA5: 2nd Dryer | BB5: 3rd Dryer | BC5: 4th Dryer | BD5: 5th Dryer | BE5: 6th Dryer | BF5: 7th Dryer | BG5: 8th Dryer | BH5: 9th Dryer | BI5: 10th Dryer | BJ5: Total | BL5: Pollutant | BM5: 1st Dryer | BN5: 2nd Dryer | BO5: 3rd Dryer | BP5: 4th Dryer | BQ5: 5th Dryer | BR5: 6th Dryer | BS5: 7th Dryer | BT5: 8th Dryer | BU5: 9th Dryer | BV5: 10th Dryer | BW5: Total | BY5: Pollutant | BZ5: 1st Dryer | CA5: 2nd Dryer | CB5: 3rd Dryer | CC5: 4th Dryer | CD5: 5th Dryer | CE5: 6th Dryer | CF5: 7th Dryer | CG5: 8th Dryer | CH5: 9th Dryer | CI5: 10th Dryer | CJ5: Total | CL5: Pollutant | CM5: 1st Dryer | CN5: 2nd Dryer | CO5: 3rd Dryer | CP5: 4th Dryer | CQ5: 5th Dryer | CR5: 6th Dryer | CS5: 7th Dryer | CT5: 8th Dryer | CU5: 9th Dryer | CV5: 10th Dryer | CW5: Total
B6: (lb/MMscf) | Z6: (lb/hr) | AM6: (ton/year) | AZ6: (lb/hr) | BM6: (lb/year) | BZ6: (lb/hr) | CM6: (ton/year)
A7: PMfilterable | B7: 7.6 | C7: 7.6 | D7: 7.6 | E7: 7.6 | F7: 7.6 | G7: 7.6 | H7: 7.6 | I7: 7.6 | J7: 7.6 | K7: 7.6 | M7: PMfilterable | N7: =IF(Dryer!C29=0,B7/1020,Dryer!C29) -> 0.007450980392 | O7: =IF(Dryer!D29=0,C7/1020,Dryer!D29) -> 0.007450980392 | P7: =IF(Dryer!E29=0,D7/1020,Dryer!E29) -> 0.007450980392 | Q7: =IF(Dryer!F29=0,E7/1020,Dryer!F29) -> 0.007450980392 | R7: =IF(Dryer!G29=0,F7/1020,Dryer!G29) -> 0.007450980392 | S7: =IF(Dryer!H29=0,G7/1020,Dryer!H29) -> 0.007450980392 | T7: =IF(Dryer!I29=0,H7/1020,Dryer!I29) -> 0.007450980392 | U7: =IF(Dryer!J29=0,I7/1020,Dryer!J29) -> 0.007450980392 | V7: =IF(Dryer!K29=0,J7/1020,Dryer!K29) -> 0.007450980392 | W7: =IF(Dryer!L29=0,K7/1020,Dryer!L29) -> 0.007450980392 | Y7: PMfilterable | Z7: =IF(AZ27=1,N7*Dryer!$F$15,N7*Dryer!$F$15*$BA$40*(1-$BA$41)) -> 0 | AA7: =IF(BA27=1,O7*Dryer!$F$16,O7*Dryer!$F$16*$BA$40*(1-$BA$41)) -> 0 | AB7: =IF(BB27=1,P7*Dryer!$F$17,P7*Dryer!$F$17*$BA$40*(1-$BA$41)) -> 0 | AC7: =IF(BC27=1,Q7*Dryer!$F$18,Q7*Dryer!$F$18*$BA$40*(1-$BA$41)) -> 0 | AD7: =IF(BD27=1,R7*Dryer!$F$19,R7*Dryer!$F$19*$BA$40*(1-$BA$41)) -> 0 | AE7: =IF(BE27=1,S7*Dryer!$F$20,S7*Dryer!$F$20*$BA$40*(1-$BA$41)) -> 0 | AF7: =IF(BF27=1,T7*Dryer!$F$21,T7*Dryer!$F$21*$BA$40*(1-$BA$41)) -> 0 | AG7: =IF(BG27=1,U7*Dryer!$F$22,U7*Dryer!$F$22*$BA$40*(1-$BA$41)) -> 0 | AH7: =IF(BH27=1,V7*Dryer!$F$23,V7*Dryer!$F$23*$BA$40*(1-$BA$41)) -> 0 | AI7: =IF(BI27=1,W7*Dryer!$F$24,W7*Dryer!$F$24*$BA$40*(1-$BA$41)) -> 0 | AJ7: =SUM(Z7:AI7) -> 0 | AL7: PMfilterable | AM7: =IF(AM$4=0,Z7*8760/2000,Z7*AM$4/2000) -> 0 | AN7: =IF(AN$4=0,AA7*8760/2000,AA7*AN$4/2000) -> 0 | AO7: 0 | AP7: 0 | AQ7: 0 | AR7: 0 | AS7: 0 | AT7: 0 | AU7: 0 | AV7: 0 | AW7: =SUM(AM7:AV7) -> 0 | AY7: PMfilterable | AZ7: =IF(Dryer!G15="",3,LOOKUP(Dryer!G15,Calculations!$AZ$35:$BB$35,Calculations!$AZ$36:$BB$36))*Dryer!D15 -> 0 | BA7: =IF(Dryer!G16="",3,LOOKUP(Dryer!G16,Calculations!$AZ$35:$BB$35,Calculations!$AZ$36:$BB$36))*Dryer!D16 -> 0 | BB7: =IF(Dryer!G17="",3,LOOKUP(Dryer!G17,Calculations!$AZ$35:$BB$35,Calculations!$AZ$36:$BB$36))*Dryer!D17 -> 0 | BC7: =IF(Dryer!G18="",3,LOOKUP(Dryer!G18,Calculations!$AZ$35:$BB$35,Calculations!$AZ$36:$BB$36))*Dryer!D18 -> 0 | BD7: =IF(Dryer!G19="",3,LOOKUP(Dryer!G19,Calculations!$AZ$35:$BB$35,Calculations!$AZ$36:$BB$36))*Dryer!D19 -> 0 | BE7: =IF(Dryer!G20="",3,LOOKUP(Dryer!G20,Calculations!$AZ$35:$BB$35,Calculations!$AZ$36:$BB$36))*Dryer!D20 -> 0 | BF7: =IF(Dryer!G21="",3,LOOKUP(Dryer!G21,Calculations!$AZ$35:$BB$35,Calculations!$AZ$36:$BB$36))*Dryer!D21 -> 0 | BG7: =IF(Dryer!G22="",3,LOOKUP(Dryer!G22,Calculations!$AZ$35:$BB$35,Calculations!$AZ$36:$BB$36))*Dryer!D22 -> 0 | BH7: =IF(Dryer!G23="",3,LOOKUP(Dryer!G23,Calculations!$AZ$35:$BB$35,Calculations!$AZ$36:$BB$36))*Dryer!D23 -> 0 | BI7: =IF(Dryer!G24="",3,LOOKUP(Dryer!G24,Calculations!$AZ$35:$BB$35,Calculations!$AZ$36:$BB$36))*Dryer!D24 -> 0 | BJ7: =IF(BC28=0,SUM(AZ7:BI7),IF(BC28<=BC30,BC28*BA36,IF(BC28<=(BC30+BC31),(BC30*BA36+(BC28-BC30)*BB36),(BC30*BA36+BC31*BB36+(BC28-BC30-BC31)*AZ36)))) -> 0 | BL7: PMfilterable | BM7: =IF(Dryer!G15="",3,LOOKUP(Dryer!G15,Calculations!$AZ$35:$BB$35,Calculations!$AZ$36:$BB$36))*Dryer!D15*IF(AM4=0,8760,AM4) -> 0 | BN7: =IF(Dryer!G16="",3,LOOKUP(Dryer!G16,Calculations!$AZ$35:$BB$35,Calculations!$AZ$36:$BB$36))*Dryer!D16*IF(AN4=0,8760,AN4) -> 0 | BO7: =IF(Dryer!G17="",3,LOOKUP(Dryer!G17,Calculations!$AZ$35:$BB$35,Calculations!$AZ$36:$BB$36))*Dryer!D17*IF(AO4=0,8760,AO4) -> 0 | BP7: =IF(Dryer!G18="",3,LOOKUP(Dryer!G18,Calculations!$AZ$35:$BB$35,Calculations!$AZ$36:$BB$36))*Dryer!D18*IF(AP4=0,8760,AP4) -> 0 | BQ7: =IF(Dryer!G19="",3,LOOKUP(Dryer!G19,Calculations!$AZ$35:$BB$35,Calculations!$AZ$36:$BB$36))*Dryer!D19*IF(AQ4=0,8760,AQ4) -> 0 | BR7: =IF(Dryer!G20="",3,LOOKUP(Dryer!G20,Calculations!$AZ$35:$BB$35,Calculations!$AZ$36:$BB$36))*Dryer!D20*IF(AR4=0,8760,AR4) -> 0 | BS7: =IF(Dryer!G21="",3,LOOKUP(Dryer!G21,Calculations!$AZ$35:$BB$35,Calculations!$AZ$36:$BB$36))*Dryer!D21*IF(AS4=0,8760,AS4) -> 0 | BT7: =IF(Dryer!G22="",3,LOOKUP(Dryer!G22,Calculations!$AZ$35:$BB$35,Calculations!$AZ$36:$BB$36))*Dryer!D22*IF(AT4=0,8760,AT4) -> 0 | BU7: =IF(Dryer!G23="",3,LOOKUP(Dryer!G23,Calculations!$AZ$35:$BB$35,Calculations!$AZ$36:$BB$36))*Dryer!D23*IF(AU4=0,8760,AU4) -> 0 | BV7: =IF(Dryer!G24="",3,LOOKUP(Dryer!G24,Calculations!$AZ$35:$BB$35,Calculations!$AZ$36:$BB$36))*Dryer!D24*IF(AV4=0,8760,AV4) -> 0 | BW7: =IF(BC29=0,SUM(BM7:BV7),IF(BC29<=BC30*8760,BC29*BA36,IF(BC29<=(BC30+BC31)*8760,(BC30*BA36+(BC29-BC30)*BB36),(BC30*BA36+BC31*BB36+(BC29-BC30-BC31)*AZ36)))) -> 0 | BY7: PMfilterable | BZ7: =Z7+AZ14 -> 0 | CA7: =AA7+BA14 -> 0 | CB7: 0 | CC7: 0 | CD7: 0 | CE7: 0 | CF7: 0 | CG7: 0 | CH7: 0 | CI7: 0 | CJ7: =AJ7+BJ14 -> 0 | CL7: PMfilterable | CM7: =AM7+BM14/2000 -> 0 | CN7: =AN7+BN14/2000 -> 0 | CO7: 0 | CP7: 0 | CQ7: 0 | CR7: 0 | CS7: 0 | CT7: 0 | CU7: 0 | CV7: 0 | CW7: 0
A8: PM10 | B8: 7.6 | C8: 7.6 | D8: 7.6 | E8: 7.6 | F8: 7.6 | G8: 7.6 | H8: 7.6 | I8: 7.6 | J8: 7.6 | K8: 7.6 | M8: PM10 | N8: =IF(Dryer!C30=0,B8/1020,Dryer!C30) -> 0.007450980392 | O8: =IF(Dryer!D30=0,C8/1020,Dryer!D30) -> 0.007450980392 | P8: =IF(Dryer!E30=0,D8/1020,Dryer!E30) -> 0.007450980392 | Q8: =IF(Dryer!F30=0,E8/1020,Dryer!F30) -> 0.007450980392 | R8: =IF(Dryer!G30=0,F8/1020,Dryer!G30) -> 0.007450980392 | S8: =IF(Dryer!H30=0,G8/1020,Dryer!H30) -> 0.007450980392 | T8: =IF(Dryer!I30=0,H8/1020,Dryer!I30) -> 0.007450980392 | U8: =IF(Dryer!J30=0,I8/1020,Dryer!J30) -> 0.007450980392 | V8: =IF(Dryer!K30=0,J8/1020,Dryer!K30) -> 0.007450980392 | W8: =IF(Dryer!L30=0,K8/1020,Dryer!L30) -> 0.007450980392 | Y8: PM10 | Z8: =IF(AZ27=1,N8*Dryer!$F$15,N8*Dryer!$F$15*$BA$40*(1-$BA$41)) -> 0 | AA8: =IF(BA27=1,O8*Dryer!$F$16,O8*Dryer!$F$16*$BA$40*(1-$BA$41)) -> 0 | AB8: =IF(BB27=1,P8*Dryer!$F$17,P8*Dryer!$F$17*$BA$40*(1-$BA$41)) -> 0 | AC8: =IF(BC27=1,Q8*Dryer!$F$18,Q8*Dryer!$F$18*$BA$40*(1-$BA$41)) -> 0 | AD8: =IF(BD27=1,R8*Dryer!$F$19,R8*Dryer!$F$19*$BA$40*(1-$BA$41)) -> 0 | AE8: =IF(BE27=1,S8*Dryer!$F$20,S8*Dryer!$F$20*$BA$40*(1-$BA$41)) -> 0 | AF8: =IF(BF27=1,T8*Dryer!$F$21,T8*Dryer!$F$21*$BA$40*(1-$BA$41)) -> 0 | AG8: =IF(BG27=1,U8*Dryer!$F$22,U8*Dryer!$F$22*$BA$40*(1-$BA$41)) -> 0 | AH8: =IF(BH27=1,V8*Dryer!$F$23,V8*Dryer!$F$23*$BA$40*(1-$BA$41)) -> 0 | AI8: =IF(BI27=1,W8*Dryer!$F$24,W8*Dryer!$F$24*$BA$40*(1-$BA$41)) -> 0 | AJ8: =SUM(Z8:AI8) -> 0 | AL8: PM10 | AM8: =IF(AM$4=0,Z8*8760/2000,Z8*AM$4/2000) -> 0 | AN8: =IF(AN$4=0,AA8*8760/2000,AA8*AN$4/2000) -> 0 | AO8: =IF(AO$4=0,AB8*8760/2000,AB8*AO$4/2000) -> 0 | AP8: =IF(AP$4=0,AC8*8760/2000,AC8*AP$4/2000) -> 0 | AQ8: =IF(AQ$4=0,AD8*8760/2000,AD8*AQ$4/2000) -> 0 | AR8: =IF(AR$4=0,AE8*8760/2000,AE8*AR$4/2000) -> 0 | AS8: =IF(AS$4=0,AF8*8760/2000,AF8*AS$4/2000) -> 0 | AT8: =IF(AT$4=0,AG8*8760/2000,AG8*AT$4/2000) -> 0 | AU8: =IF(AU$4=0,AH8*8760/2000,AH8*AU$4/2000) -> 0 | AV8: =IF(AV$4=0,AI8*8760/2000,AI8*AV$4/2000) -> 0 | AW8: =SUM(AM8:AV8) -> 0 | AY8: PM10 | AZ8: =IF(Dryer!G15="",0.75,LOOKUP(Dryer!G15,Calculations!$AZ$35:$BB$35,Calculations!$AZ$37:$BB$37))*Dryer!D15 -> 0 | BA8: =IF(Dryer!G16="",0.75,LOOKUP(Dryer!G16,Calculations!$AZ$35:$BB$35,Calculations!$AZ$37:$BB$37))*Dryer!D16 -> 0 | BB8: =IF(Dryer!G17="",0.75,LOOKUP(Dryer!G17,Calculations!$AZ$35:$BB$35,Calculations!$AZ$37:$BB$37))*Dryer!D17 -> 0 | BC8: =IF(Dryer!G18="",0.75,LOOKUP(Dryer!G18,Calculations!$AZ$35:$BB$35,Calculations!$AZ$37:$BB$37))*Dryer!D18 -> 0 | BD8: =IF(Dryer!G19="",0.75,LOOKUP(Dryer!G19,Calculations!$AZ$35:$BB$35,Calculations!$AZ$37:$BB$37))*Dryer!D19 -> 0 | BE8: =IF(Dryer!G20="",0.75,LOOKUP(Dryer!G20,Calculations!$AZ$35:$BB$35,Calculations!$AZ$37:$BB$37))*Dryer!D20 -> 0 | BF8: =IF(Dryer!G21="",0.75,LOOKUP(Dryer!G21,Calculations!$AZ$35:$BB$35,Calculations!$AZ$37:$BB$37))*Dryer!D21 -> 0 | BG8: =IF(Dryer!G22="",0.75,LOOKUP(Dryer!G22,Calculations!$AZ$35:$BB$35,Calculations!$AZ$37:$BB$37))*Dryer!D22 -> 0 | BH8: =IF(Dryer!G23="",0.75,LOOKUP(Dryer!G23,Calculations!$AZ$35:$BB$35,Calculations!$AZ$37:$BB$37))*Dryer!D23 -> 0 | BI8: =IF(Dryer!G24="",0.75,LOOKUP(Dryer!G24,Calculations!$AZ$35:$BB$35,Calculations!$AZ$37:$BB$37))*Dryer!D24 -> 0 | BJ8: =IF(BC28=0,SUM(AZ8:BI8),IF(BC28<=BC30,BC28*BA37,IF(BC28<=(BC30+BC31),(BC30*BA37+(BC28-BC30)*BB37),(BC30*BA37+BC31*BB37+(BC28-BC30-BC31)*AZ37)))) -> 0 | BL8: PM10 | BM8: =IF(Dryer!G15="",0.75,LOOKUP(Dryer!G15,Calculations!$AZ$35:$BB$35,Calculations!$AZ$37:$BB$37))*Dryer!D15*IF(AM4=0,8760,AM4) -> 0 | BN8: =IF(Dryer!G16="",0.75,LOOKUP(Dryer!G16,Calculations!$AZ$35:$BB$35,Calculations!$AZ$37:$BB$37))*Dryer!D16*IF(AN4=0,8760,AN4) -> 0 | BO8: =IF(Dryer!G17="",0.75,LOOKUP(Dryer!G17,Calculations!$AZ$35:$BB$35,Calculations!$AZ$37:$BB$37))*Dryer!D17*IF(AO4=0,8760,AO4) -> 0 | BP8: =IF(Dryer!G18="",0.75,LOOKUP(Dryer!G18,Calculations!$AZ$35:$BB$35,Calculations!$AZ$37:$BB$37))*Dryer!D18*IF(AP4=0,8760,AP4) -> 0 | BQ8: =IF(Dryer!G19="",0.75,LOOKUP(Dryer!G19,Calculations!$AZ$35:$BB$35,Calculations!$AZ$37:$BB$37))*Dryer!D19*IF(AQ4=0,8760,AQ4) -> 0 | BR8: =IF(Dryer!G20="",0.75,LOOKUP(Dryer!G20,Calculations!$AZ$35:$BB$35,Calculations!$AZ$37:$BB$37))*Dryer!D20*IF(AR4=0,8760,AR4) -> 0 | BS8: =IF(Dryer!G21="",0.75,LOOKUP(Dryer!G21,Calculations!$AZ$35:$BB$35,Calculations!$AZ$37:$BB$37))*Dryer!D21*IF(AS4=0,8760,AS4) -> 0 | BT8: =IF(Dryer!G22="",0.75,LOOKUP(Dryer!G22,Calculations!$AZ$35:$BB$35,Calculations!$AZ$37:$BB$37))*Dryer!D22*IF(AT4=0,8760,AT4) -> 0 | BU8: =IF(Dryer!G23="",0.75,LOOKUP(Dryer!G23,Calculations!$AZ$35:$BB$35,Calculations!$AZ$37:$BB$37))*Dryer!D23*IF(AU4=0,8760,AU4) -> 0 | BV8: =IF(Dryer!G24="",0.75,LOOKUP(Dryer!G24,Calculations!$AZ$35:$BB$35,Calculations!$AZ$37:$BB$37))*Dryer!D24*IF(AV4=0,8760,AV4) -> 0 | BW8: =IF(BC29=0,SUM(BM8:BV8),IF(BC29<=BC30*8760,BC29*BA37,IF(BC29<=(BC30+BC31)*8760,(BC30*BA37+(BC29-BC30)*BB37),(BC30*BA37+BC31*BB37+(BC29-BC30-BC31)*AZ37)))) -> 0 | BY8: PM10 | BZ8: =Z8+AZ15 -> 0 | CA8: =AA8+BA15 -> 0 | CB8: =AB8+BB15 -> 0 | CC8: =AC8+BC15 -> 0 | CD8: =AD8+BD15 -> 0 | CE8: =AE8+BE15 -> 0 | CF8: =AF8+BF15 -> 0 | CG8: =AG8+BG15 -> 0 | CH8: =AH8+BH15 -> 0 | CI8: =AI8+BI15 -> 0 | CJ8: =AJ8+BJ15 -> 0 | CL8: PM10 | CM8: =AM8+BM15/2000 -> 0 | CN8: =AN8+BN15/2000 -> 0 | CO8: =AO8+BO15/2000 -> 0 | CP8: =AP8+BP15/2000 -> 0 | CQ8: =AQ8+BQ15/2000 -> 0 | CR8: =AR8+BR15/2000 -> 0 | CS8: =AS8+BS15/2000 -> 0 | CT8: =AT8+BT15/2000 -> 0 | CU8: =AU8+BU15/2000 -> 0 | CV8: =AV8+BV15/2000 -> 0 | CW8: =AW8+BW15/2000 -> 0
A9: PM2.5 | B9: 7.6 | C9: 7.6 | D9: 7.6 | E9: 7.6 | F9: 7.6 | G9: 7.6 | H9: 7.6 | I9: 7.6 | J9: 7.6 | K9: 7.6 | M9: PM2.5 | N9: =IF(Dryer!C31=0,B9/1020,Dryer!C31) -> 0.007450980392 | O9: =IF(Dryer!D31=0,C9/1020,Dryer!D31) -> 0.007450980392 | P9: =IF(Dryer!E31=0,D9/1020,Dryer!E31) -> 0.007450980392 | Q9: =IF(Dryer!F31=0,E9/1020,Dryer!F31) -> 0.007450980392 | R9: =IF(Dryer!G31=0,F9/1020,Dryer!G31) -> 0.007450980392 | S9: =IF(Dryer!H31=0,G9/1020,Dryer!H31) -> 0.007450980392 | T9: =IF(Dryer!I31=0,H9/1020,Dryer!I31) -> 0.007450980392 | U9: =IF(Dryer!J31=0,I9/1020,Dryer!J31) -> 0.007450980392 | V9: =IF(Dryer!K31=0,J9/1020,Dryer!K31) -> 0.007450980392 | W9: =IF(Dryer!L31=0,K9/1020,Dryer!L31) -> 0.007450980392 | Y9: PM2.5 | Z9: =IF(AZ27=1,N9*Dryer!$F$15,N9*Dryer!$F$15*$BA$40*(1-$BA$41)) -> 0 | AA9: =IF(BA27=1,O9*Dryer!$F$16,O9*Dryer!$F$16*$BA$40*(1-$BA$41)) -> 0 | AB9: =IF(BB27=1,P9*Dryer!$F$17,P9*Dryer!$F$17*$BA$40*(1-$BA$41)) -> 0 | AC9: =IF(BC27=1,Q9*Dryer!$F$18,Q9*Dryer!$F$18*$BA$40*(1-$BA$41)) -> 0 | AD9: =IF(BD27=1,R9*Dryer!$F$19,R9*Dryer!$F$19*$BA$40*(1-$BA$41)) -> 0 | AE9: =IF(BE27=1,S9*Dryer!$F$20,S9*Dryer!$F$20*$BA$40*(1-$BA$41)) -> 0 | AF9: =IF(BF27=1,T9*Dryer!$F$21,T9*Dryer!$F$21*$BA$40*(1-$BA$41)) -> 0 | AG9: =IF(BG27=1,U9*Dryer!$F$22,U9*Dryer!$F$22*$BA$40*(1-$BA$41)) -> 0 | AH9: =IF(BH27=1,V9*Dryer!$F$23,V9*Dryer!$F$23*$BA$40*(1-$BA$41)) -> 0 | AI9: =IF(BI27=1,W9*Dryer!$F$24,W9*Dryer!$F$24*$BA$40*(1-$BA$41)) -> 0 | AJ9: 0 | AL9: PM2.5 | AM9: =IF(AM$4=0,Z9*8760/2000,Z9*AM$4/2000) -> 0 | AN9: =IF(AN$4=0,AA9*8760/2000,AA9*AN$4/2000) -> 0 | AO9: =IF(AO$4=0,AB9*8760/2000,AB9*AO$4/2000) -> 0 | AP9: =IF(AP$4=0,AC9*8760/2000,AC9*AP$4/2000) -> 0 | AQ9: =IF(AQ$4=0,AD9*8760/2000,AD9*AQ$4/2000) -> 0 | AR9: =IF(AR$4=0,AE9*8760/2000,AE9*AR$4/2000) -> 0 | AS9: =IF(AS$4=0,AF9*8760/2000,AF9*AS$4/2000) -> 0 | AT9: =IF(AT$4=0,AG9*8760/2000,AG9*AT$4/2000) -> 0 | AU9: =IF(AU$4=0,AH9*8760/2000,AH9*AU$4/2000) -> 0 | AV9: =IF(AV$4=0,AI9*8760/2000,AI9*AV$4/2000) -> 0 | AW9: 0 | AY9: PM2.5 | AZ9: =IF(Dryer!G15="",0.13,LOOKUP(Dryer!G15,Calculations!$AZ$35:$BB$35,Calculations!$AZ$38:$BB$38))*Dryer!D15 -> 0 | BA9: =IF(Dryer!G16="",0.13,LOOKUP(Dryer!G16,Calculations!$AZ$35:$BB$35,Calculations!$AZ$38:$BB$38))*Dryer!D16 -> 0 | BB9: =IF(Dryer!G17="",0.13,LOOKUP(Dryer!G17,Calculations!$AZ$35:$BB$35,Calculations!$AZ$38:$BB$38))*Dryer!D17 -> 0 | BC9: =IF(Dryer!G18="",0.13,LOOKUP(Dryer!G18,Calculations!$AZ$35:$BB$35,Calculations!$AZ$38:$BB$38))*Dryer!D18 -> 0 | BD9: =IF(Dryer!G19="",0.13,LOOKUP(Dryer!G19,Calculations!$AZ$35:$BB$35,Calculations!$AZ$38:$BB$38))*Dryer!D19 -> 0 | BE9: =IF(Dryer!G20="",0.13,LOOKUP(Dryer!G20,Calculations!$AZ$35:$BB$35,Calculations!$AZ$38:$BB$38))*Dryer!D20 -> 0 | BF9: =IF(Dryer!G21="",0.13,LOOKUP(Dryer!G21,Calculations!$AZ$35:$BB$35,Calculations!$AZ$38:$BB$38))*Dryer!D21 -> 0 | BG9: =IF(Dryer!G22="",0.13,LOOKUP(Dryer!G22,Calculations!$AZ$35:$BB$35,Calculations!$AZ$38:$BB$38))*Dryer!D22 -> 0 | BH9: =IF(Dryer!G23="",0.13,LOOKUP(Dryer!G23,Calculations!$AZ$35:$BB$35,Calculations!$AZ$38:$BB$38))*Dryer!D23 -> 0 | BI9: =IF(Dryer!G24="",0.13,LOOKUP(Dryer!G24,Calculations!$AZ$35:$BB$35,Calculations!$AZ$38:$BB$38))*Dryer!D24 -> 0 | BJ9: =IF(BC28=0,SUM(AZ9:BI9),IF(BC28<=BC30,BC28*BA38,IF(BC28<=(BC30+BC31),(BC30*BA38+(BC28-BC30)*BB38),(BC30*BA38+BC31*BB38+(BC28-BC30-BC31)*AZ38)))) -> 0 | BL9: PM2.5 | BM9: =IF(Dryer!G15="",0.13,LOOKUP(Dryer!G15,Calculations!$AZ$35:$BB$35,Calculations!$AZ$38:$BB$38))*Dryer!D15*IF(AM4=0,8760,AM4) -> 0 | BN9: =IF(Dryer!G16="",0.13,LOOKUP(Dryer!G16,Calculations!$AZ$35:$BB$35,Calculations!$AZ$38:$BB$38))*Dryer!D16*IF(AN4=0,8760,AN4) -> 0 | BO9: =IF(Dryer!G17="",0.13,LOOKUP(Dryer!G17,Calculations!$AZ$35:$BB$35,Calculations!$AZ$38:$BB$38))*Dryer!D17*IF(AO4=0,8760,AO4) -> 0 | BP9: =IF(Dryer!G18="",0.13,LOOKUP(Dryer!G18,Calculations!$AZ$35:$BB$35,Calculations!$AZ$38:$BB$38))*Dryer!D18*IF(AP4=0,8760,AP4) -> 0 | BQ9: =IF(Dryer!G19="",0.13,LOOKUP(Dryer!G19,Calculations!$AZ$35:$BB$35,Calculations!$AZ$38:$BB$38))*Dryer!D19*IF(AQ4=0,8760,AQ4) -> 0 | BR9: =IF(Dryer!G20="",0.13,LOOKUP(Dryer!G20,Calculations!$AZ$35:$BB$35,Calculations!$AZ$38:$BB$38))*Dryer!D20*IF(AR4=0,8760,AR4) -> 0 | BS9: =IF(Dryer!G21="",0.13,LOOKUP(Dryer!G21,Calculations!$AZ$35:$BB$35,Calculations!$AZ$38:$BB$38))*Dryer!D21*IF(AS4=0,8760,AS4) -> 0 | BT9: =IF(Dryer!G22="",0.13,LOOKUP(Dryer!G22,Calculations!$AZ$35:$BB$35,Calculations!$AZ$38:$BB$38))*Dryer!D22*IF(AT4=0,8760,AT4) -> 0 | BU9: =IF(Dryer!G23="",0.13,LOOKUP(Dryer!G23,Calculations!$AZ$35:$BB$35,Calculations!$AZ$38:$BB$38))*Dryer!D23*IF(AU4=0,8760,AU4) -> 0 | BV9: =IF(Dryer!G24="",0.13,LOOKUP(Dryer!G24,Calculations!$AZ$35:$BB$35,Calculations!$AZ$38:$BB$38))*Dryer!D24*IF(AV4=0,8760,AV4) -> 0 | BW9: =IF(BC29=0,SUM(BM9:BV9),IF(BC29<=BC30*8760,BC29*BA38,IF(BC29<=(BC30+BC31)*8760,(BC30*BA38+(BC29-BC30)*BB38),(BC30*BA38+BC31*BB38+(BC29-BC30-BC31)*AZ38)))) -> 0 | BY9: PM2.5 | BZ9: 0 | CA9: 0 | CB9: 0 | CC9: 0 | CD9: 0 | CE9: 0 | CF9: 0 | CG9: 0 | CH9: 0 | CI9: 0 | CJ9: 0 | CL9: PM2.5 | CM9: =AM9+BM16/2000 -> 0 | CN9: 0 | CO9: 0 | CP9: 0 | CQ9: 0 | CR9: 0 | CS9: 0 | CT9: 0 | CU9: 0 | CV9: 0 | CW9: 0
A10: SO2 | B10: 0.6 | C10: 0.6 | D10: 0.6 | E10: 0.6 | F10: 0.6 | G10: 0.6 | H10: 0.6 | I10: 0.6 | J10: 0.6 | K10: 0.6 | M10: SO2 | N10: =IF(Dryer!C32=0,B10/1020,Dryer!C32) -> 0.0005882352941 | O10: =IF(Dryer!D32=0,C10/1020,Dryer!D32) -> 0.0005882352941 | P10: =IF(Dryer!E32=0,D10/1020,Dryer!E32) -> 0.0005882352941 | Q10: =IF(Dryer!F32=0,E10/1020,Dryer!F32) -> 0.0005882352941 | R10: =IF(Dryer!G32=0,F10/1020,Dryer!G32) -> 0.0005882352941 | S10: =IF(Dryer!H32=0,G10/1020,Dryer!H32) -> 0.0005882352941 | T10: =IF(Dryer!I32=0,H10/1020,Dryer!I32) -> 0.0005882352941 | U10: =IF(Dryer!J32=0,I10/1020,Dryer!J32) -> 0.0005882352941 | V10: =IF(Dryer!K32=0,J10/1020,Dryer!K32) -> 0.0005882352941 | W10: =IF(Dryer!L32=0,K10/1020,Dryer!L32) -> 0.0005882352941 | Y10: SO2 | Z10: =N10*Dryer!$F$15 -> 0 | AA10: =O10*Dryer!$F$16 -> 0 | AB10: =P10*Dryer!$F$17 -> 0 | AC10: =Q10*Dryer!$F$18 -> 0 | AD10: =R10*Dryer!$F$19 -> 0 | AE10: =S10*Dryer!$F$20 -> 0 | AF10: =T10*Dryer!$F$21 -> 0 | AG10: =U10*Dryer!$F$22 -> 0 | AH10: =V10*Dryer!$F$23 -> 0 | AI10: =W10*Dryer!$F$24 -> 0 | AJ10: 0 | AL10: SO2 | AM10: 0 | AN10: 0 | AO10: 0 | AP10: 0 | AQ10: 0 | AR10: 0 | AS10: 0 | AT10: 0 | AU10: 0 | AV10: 0 | AW10: 0 | BY10: SO2 | BZ10: =Z10 -> 0 | CA10: =AA10 -> 0 | CB10: 0 | CC10: 0 | CD10: 0 | CE10: 0 | CF10: 0 | CG10: 0 | CH10: 0 | CI10: 0 | CJ10: =SUM(BZ10:CI10) -> 0 | CL10: SO2 | CM10: =AM10 -> 0 | CN10: =AN10 -> 0 | CO10: 0 | CP10: 0 | CQ10: 0 | CR10: 0 | CS10: 0 | CT10: 0 | CU10: 0 | CV10: 0 | CW10: 0
A11: NOx | B11: =IF(Dryer!E15=Datasets!$AA$3,50,IF(Dryer!E15=Datasets!$AA$4,32,100)) -> 100 | C11: =IF(Dryer!E16=Datasets!$AA$3,50,IF(Dryer!E16=Datasets!$AA$4,32,100)) -> 100 | D11: =IF(Dryer!E17=Datasets!$AA$3,50,IF(Dryer!E17=Datasets!$AA$4,32,100)) -> 100 | E11: =IF(Dryer!E18=Datasets!$AA$3,50,IF(Dryer!E18=Datasets!$AA$4,32,100)) -> 100 | F11: =IF(Dryer!E19=Datasets!$AA$3,50,IF(Dryer!E19=Datasets!$AA$4,32,100)) -> 100 | G11: =IF(Dryer!E20=Datasets!$AA$3,50,IF(Dryer!E20=Datasets!$AA$4,32,100)) -> 100 | H11: =IF(Dryer!E21=Datasets!$AA$3,50,IF(Dryer!E21=Datasets!$AA$4,32,100)) -> 100 | I11: =IF(Dryer!E22=Datasets!$AA$3,50,IF(Dryer!E22=Datasets!$AA$4,32,100)) -> 100 | J11: =IF(Dryer!E23=Datasets!$AA$3,50,IF(Dryer!E23=Datasets!$AA$4,32,100)) -> 100 | K11: =IF(Dryer!E24=Datasets!$AA$3,50,IF(Dryer!E24=Datasets!$AA$4,32,100)) -> 100 | M11: NOx | N11: =IF(Dryer!C33=0,B11/1020,Dryer!C33) -> 0.09803921569 | O11: =IF(Dryer!D33=0,C11/1020,Dryer!D33) -> 0.09803921569 | P11: =IF(Dryer!E33=0,D11/1020,Dryer!E33) -> 0.09803921569 | Q11: =IF(Dryer!F33=0,E11/1020,Dryer!F33) -> 0.09803921569 | R11: =IF(Dryer!G33=0,F11/1020,Dryer!G33) -> 0.09803921569 | S11: =IF(Dryer!H33=0,G11/1020,Dryer!H33) -> 0.09803921569 | T11: =IF(Dryer!I33=0,H11/1020,Dryer!I33) -> 0.09803921569 | U11: =IF(Dryer!J33=0,I11/1020,Dryer!J33) -> 0.09803921569 | V11: =IF(Dryer!K33=0,J11/1020,Dryer!K33) -> 0.09803921569 | W11: =IF(Dryer!L33=0,K11/1020,Dryer!L33) -> 0.09803921569 | Y11: NOx | Z11: =N11*Dryer!$F$15 -> 0 | AA11: =O11*Dryer!$F$16 -> 0 | AB11: =P11*Dryer!$F$17 -> 0 | AC11: =Q11*Dryer!$F$18 -> 0 | AD11: =R11*Dryer!$F$19 -> 0 | AE11: =S11*Dryer!$F$20 -> 0 | AF11: =T11*Dryer!$F$21 -> 0 | AG11: =U11*Dryer!$F$22 -> 0 | AH11: =V11*Dryer!$F$23 -> 0 | AI11: =W11*Dryer!$F$24 -> 0 | AJ11: =SUM(Z11:AI11) -> 0 | AL11: NOx | AM11: 0 | AN11: 0 | AO11: 0 | AP11: 0 | AQ11: 0 | AR11: 0 | AS11: 0 | AT11: 0 | AU11: 0 | AV11: 0 | AW11: 0 | AY11: PTE in lb/hr considering baghouse control = Emission Factor (lb/ton) x Maximum permitted hourly rate (ton/hr) | BL11: PTE in lb/yr considering baghouse control = Emission Factor (lb/ton) x Maximum permitted annual rate (ton/yr) | BY11: NOx | BZ11: =Z11 -> 0 | CA11: =AA11 -> 0 | CB11: =AB11 -> 0 | CC11: =AC11 -> 0 | CD11: =AD11 -> 0 | CE11: =AE11 -> 0 | CF11: =AF11 -> 0 | CG11: =AG11 -> 0 | CH11: =AH11 -> 0 | CI11: =AI11 -> 0 | CJ11: =SUM(BZ11:CI11) -> 0 | CL11: NOx | CM11: =AM11 -> 0 | CN11: =AN11 -> 0 | CO11: =AO11 -> 0 | CP11: =AP11 -> 0 | CQ11: =AQ11 -> 0 | CR11: =AR11 -> 0 | CS11: =AS11 -> 0 | CT11: =AT11 -> 0 | CU11: =AU11 -> 0 | CV11: =AV11 -> 0 | CW11: =AW11 -> 0
A12: CO | B12: 84 | C12: 84 | D12: 84 | E12: 84 | F12: 84 | G12: 84 | H12: 84 | I12: 84 | J12: 84 | K12: 84 | M12: CO | N12: =IF(Dryer!C34=0,B12/1020,Dryer!C34) -> 0.08235294118 | O12: =IF(Dryer!D34=0,C12/1020,Dryer!D34) -> 0.08235294118 | P12: =IF(Dryer!E34=0,D12/1020,Dryer!E34) -> 0.08235294118 | Q12: =IF(Dryer!F34=0,E12/1020,Dryer!F34) -> 0.08235294118 | R12: =IF(Dryer!G34=0,F12/1020,Dryer!G34) -> 0.08235294118 | S12: =IF(Dryer!H34=0,G12/1020,Dryer!H34) -> 0.08235294118 | T12: =IF(Dryer!I34=0,H12/1020,Dryer!I34) -> 0.08235294118 | U12: =IF(Dryer!J34=0,I12/1020,Dryer!J34) -> 0.08235294118 | V12: =IF(Dryer!K34=0,J12/1020,Dryer!K34) -> 0.08235294118 | W12: =IF(Dryer!L34=0,K12/1020,Dryer!L34) -> 0.08235294118 | Y12: CO | Z12: =N12*Dryer!$F$15 -> 0 | AA12: =O12*Dryer!$F$16 -> 0 | AB12: =P12*Dryer!$F$17 -> 0 | AC12: =Q12*Dryer!$F$18 -> 0 | AD12: =R12*Dryer!$F$19 -> 0 | AE12: =S12*Dryer!$F$20 -> 0 | AF12: =T12*Dryer!$F$21 -> 0 | AG12: =U12*Dryer!$F$22 -> 0 | AH12: =V12*Dryer!$F$23 -> 0 | AI12: =W12*Dryer!$F$24 -> 0 | AJ12: =SUM(Z12:AI12) -> 0 | AL12: CO | AM12: 0 | AN12: 0 | AO12: 0 | AP12: 0 | AQ12: 0 | AR12: 0 | AS12: 0 | AT12: 0 | AU12: 0 | AV12: 0 | AW12: 0 | AY12: Pollutant | AZ12: 1st Dryer | BA12: 2nd Dryer | BB12: 3rd Dryer | BC12: 4th Dryer | BD12: 5th Dryer | BE12: 6th Dryer | BF12: 7th Dryer | BG12: 8th Dryer | BH12: 9th Dryer | BI12: 10th Dryer | BJ12: Total | BL12: Pollutant | BM12: 1st Dryer | BN12: 2nd Dryer | BO12: 3rd Dryer | BP12: 4th Dryer | BQ12: 5th Dryer | BR12: 6th Dryer | BS12: 7th Dryer | BT12: 8th Dryer | BU12: 9th Dryer | BV12: 10th Dryer | BW12: Total | BY12: CO | BZ12: 0 | CA12: 0 | CB12: 0 | CC12: 0 | CD12: 0 | CE12: 0 | CF12: 0 | CG12: 0 | CH12: 0 | CI12: 0 | CJ12: =SUM(BZ12:CI12) -> 0 | CL12: CO | CM12: 0 | CN12: 0 | CO12: 0 | CP12: 0 | CQ12: 0 | CR12: 0 | CS12: 0 | CT12: 0 | CU12: 0 | CV12: 0 | CW12: 0
A13: VOC | B13: 5.5 | C13: 5.5 | D13: 5.5 | E13: 5.5 | F13: 5.5 | G13: 5.5 | H13: 5.5 | I13: 5.5 | J13: 5.5 | K13: 5.5 | M13: VOC | N13: =IF(Dryer!C35=0,B13/1020,Dryer!C35) -> 0.005392156863 | O13: =IF(Dryer!D35=0,C13/1020,Dryer!D35) -> 0.005392156863 | P13: =IF(Dryer!E35=0,D13/1020,Dryer!E35) -> 0.005392156863 | Q13: =IF(Dryer!F35=0,E13/1020,Dryer!F35) -> 0.005392156863 | R13: =IF(Dryer!G35=0,F13/1020,Dryer!G35) -> 0.005392156863 | S13: =IF(Dryer!H35=0,G13/1020,Dryer!H35) -> 0.005392156863 | T13: =IF(Dryer!I35=0,H13/1020,Dryer!I35) -> 0.005392156863 | U13: =IF(Dryer!J35=0,I13/1020,Dryer!J35) -> 0.005392156863 | V13: =IF(Dryer!K35=0,J13/1020,Dryer!K35) -> 0.005392156863 | W13: =IF(Dryer!L35=0,K13/1020,Dryer!L35) -> 0.005392156863 | Y13: VOC | Z13: =N13*Dryer!$F$15 -> 0 | AA13: =O13*Dryer!$F$16 -> 0 | AB13: =P13*Dryer!$F$17 -> 0 | AC13: =Q13*Dryer!$F$18 -> 0 | AD13: =R13*Dryer!$F$19 -> 0 | AE13: =S13*Dryer!$F$20 -> 0 | AF13: =T13*Dryer!$F$21 -> 0 | AG13: =U13*Dryer!$F$22 -> 0 | AH13: =V13*Dryer!$F$23 -> 0 | AI13: =W13*Dryer!$F$24 -> 0 | AJ13: =SUM(Z13:AI13) -> 0 | AL13: VOC | AM13: 0 | AN13: 0 | AO13: 0 | AP13: 0 | AQ13: 0 | AR13: 0 | AS13: 0 | AT13: 0 | AU13: 0 | AV13: 0 | AW13: 0 | AZ13: (lb/hr) | BM13: (lb/year) | BY13: VOC | BZ13: 0 | CA13: 0 | CB13: 0 | CC13: 0 | CD13: 0 | CE13: 0 | CF13: 0 | CG13: 0 | CH13: 0 | CI13: 0 | CJ13: =SUM(BZ13:CI13) -> 0 | CL13: VOC | CM13: 0 | CN13: 0 | CO13: 0 | CP13: 0 | CQ13: 0 | CR13: 0 | CS13: 0 | CT13: 0 | CU13: 0 | CV13: 0 | CW13: 0
A14: Individual HAP | B14: (lb/MMscf) | M14: Individual HAP | Y14: Individual HAP | AL14: Individual HAP | AY14: PMfilterable | AZ14: =IF(AZ27=1,AZ7,AZ7*$BA$40*(1-$BA$41)) -> 0 | BA14: 0 | BB14: 0 | BC14: 0 | BD14: 0 | BE14: 0 | BF14: 0 | BG14: 0 | BH14: 0 | BI14: 0 | BJ14: =IF(OR(BC28=0,BC28>=SUM(BC30:BC32)),SUM(AZ14:BI14),IF(BC28<=BI30,BC28*BA36,IF(BC28<=(BI30+BI31),(BI30*BA36+(BC28-BI30)*BB36),IF(BC28<=(BI30+BI31+BI32),(BI30*BA36+BI31*BB36+(BC28-BI30-BI31)*AZ36),IF(BC28<=(BC30+BI31+BI32),(BI30*BA36+BI31*BB36+BI32*AZ36+(BC28-BI30)*BG36),IF(BC28<=(BC30+BC31+BI32),(BI30*BA36+BI31*BB36+BI32*AZ36+(BC30-BI30)*BG36+(BC28-BI31)*BH36),(BI30*BA36+BI31*BB36+BI32*AZ36+(BC30-BI30)*BG36+(BC31-BI31)*BH36+(BC28-BI32)*BF36))))))) -> 0 | BL14: PMfilterable | BM14: =IF(AZ27=1,BM7,BM7*$BA$40*(1-$BA$41)) -> 0 | BN14: 0 | BO14: 0 | BP14: 0 | BQ14: 0 | BR14: 0 | BS14: 0 | BT14: 0 | BU14: 0 | BV14: 0 | BW14: =IF(OR(BC29=0,BC29>=8760*SUM(BC30:BC32)),SUM(BM14:BV14),IF(BC29<=BI30*8760,BC29*BA36,IF(BC29<=(BI30+BI31)*8760,(BI30*BA36*8760+(BC29-BI30*8760)*BB36),IF(BC29<=(BI30+BI31+BI32)*8760,(BI30*BA36*8760+BI31*BB36*8760+(BC29-BI30*8760-BI31*8760)*AZ36),IF(BC29<=(BC30+BI31+BI32)*8760,(BI30*BA36*8760+BI31*BB36*8760+BI32*AZ36*8760+(BC29-BI30*8760)*BG36),IF(BC29<=(BC30+BC31+BI32)*8760,(BI30*BA36*8760+BI31*BB36*8760+BI32*AZ36*8760+(BC30-BI30)*BG36*8760+(BC29-BI31*8760)*BH36),(BI30*BA36*8760+BI31*BB36*8760+BI32*AZ36*8760+(BC30-BI30)*BG36*8760+(BC31-BI31)*BH36*8760+(BC29-BI32*8760)*BF36))))))) -> 0 | BY14: Individual HAP | CL14: Individual HAP
A15: Benzene | B15: 0.0021 | C15: 0.0021 | D15: 0.0021 | E15: 0.0021 | F15: 0.0021 | G15: 0.0021 | H15: 0.0021 | I15: 0.0021 | J15: 0.0021 | K15: 0.0021 | M15: Benzene | N15: =IF(Dryer!C37=0,B15/1020,Dryer!C37) -> 2.058823529e-06 | O15: =IF(Dryer!D37=0,C15/1020,Dryer!D37) -> 2.058823529e-06 | P15: =IF(Dryer!E37=0,D15/1020,Dryer!E37) -> 2.058823529e-06 | Q15: =IF(Dryer!F37=0,E15/1020,Dryer!F37) -> 2.058823529e-06 | R15: =IF(Dryer!G37=0,F15/1020,Dryer!G37) -> 2.058823529e-06 | S15: =IF(Dryer!H37=0,G15/1020,Dryer!H37) -> 2.058823529e-06 | T15: =IF(Dryer!I37=0,H15/1020,Dryer!I37) -> 2.058823529e-06 | U15: =IF(Dryer!J37=0,I15/1020,Dryer!J37) -> 2.058823529e-06 | V15: =IF(Dryer!K37=0,J15/1020,Dryer!K37) -> 2.058823529e-06 | W15: =IF(Dryer!L37=0,K15/1020,Dryer!L37) -> 2.058823529e-06 | Y15: Benzene | Z15: =N15*Dryer!$F$15 -> 0 | AA15: =O15*Dryer!$F$16 -> 0 | AB15: =P15*Dryer!$F$17 -> 0 | AC15: =Q15*Dryer!$F$18 -> 0 | AD15: =R15*Dryer!$F$19 -> 0 | AE15: =S15*Dryer!$F$20 -> 0 | AF15: =T15*Dryer!$F$21 -> 0 | AG15: =U15*Dryer!$F$22 -> 0 | AH15: =V15*Dryer!$F$23 -> 0 | AI15: =W15*Dryer!$F$24 -> 0 | AJ15: 0 | AL15: Benzene | AM15: =IF(AM$4=0,Z15*8760/2000,Z15*AM$4/2000) -> 0 | AN15: =IF(AN$4=0,AA15*8760/2000,AA15*AN$4/2000) -> 0 | AO15: =IF(AO$4=0,AB15*8760/2000,AB15*AO$4/2000) -> 0 | AP15: =IF(AP$4=0,AC15*8760/2000,AC15*AP$4/2000) -> 0 | AQ15: =IF(AQ$4=0,AD15*8760/2000,AD15*AQ$4/2000) -> 0 | AR15: =IF(AR$4=0,AE15*8760/2000,AE15*AR$4/2000) -> 0 | AS15: =IF(AS$4=0,AF15*8760/2000,AF15*AS$4/2000) -> 0 | AT15: =IF(AT$4=0,AG15*8760/2000,AG15*AT$4/2000) -> 0 | AU15: =IF(AU$4=0,AH15*8760/2000,AH15*AU$4/2000) -> 0 | AV15: =IF(AV$4=0,AI15*8760/2000,AI15*AV$4/2000) -> 0 | AW15: 0 | AY15: PM10 | AZ15: =IF(AZ27=1,AZ8,AZ8*$BA$40*(1-$BA$41)) -> 0 | BA15: 0 | BB15: 0 | BC15: 0 | BD15: 0 | BE15: 0 | BF15: 0 | BG15: 0 | BH15: 0 | BI15: 0 | BJ15: =IF(OR(BC28=0,BC28>=SUM(BC30:BC32)),SUM(AZ15:BI15),IF(BC28<=BI30,BC28*BA37,IF(BC28<=(BI30+BI31),(BI30*BA37+(BC28-BI30)*BB37),IF(BC28<=(BI30+BI31+BI32),(BI30*BA37+BI31*BB37+(BC28-BI30-BI31)*AZ37),IF(BC28<=(BC30+BI31+BI32),(BI30*BA37+BI31*BB37+BI32*AZ37+(BC28-BI30)*BG37),IF(BC28<=(BC30+BC31+BI32),(BI30*BA37+BI31*BB37+BI32*AZ37+(BC30-BI30)*BG37+(BC28-BI31)*BH37),(BI30*BA37+BI31*BB37+BI32*AZ37+(BC30-BI30)*BG37+(BC31-BI31)*BH37+(BC28-BI32)*BF37))))))) -> 0 | BL15: PM10 | BM15: =IF(AZ27=1,BM8,BM8*$BA$40*(1-$BA$41)) -> 0 | BN15: 0 | BO15: 0 | BP15: 0 | BQ15: 0 | BR15: 0 | BS15: 0 | BT15: 0 | BU15: 0 | BV15: 0 | BW15: =IF(OR(BC29=0,BC29>=8760*SUM(BC30:BC32)),SUM(BM15:BV15),IF(BC29<=BI30*8760,BC29*BA37,IF(BC29<=(BI30+BI31)*8760,(BI30*BA37*8760+(BC29-BI30*8760)*BB37),IF(BC29<=(BI30+BI31+BI32)*8760,(BI30*BA37*8760+BI31*BB37*8760+(BC29-BI30*8760-BI31*8760)*AZ37),IF(BC29<=(BC30+BI31+BI32)*8760,(BI30*BA37*8760+BI31*BB37*8760+BI32*AZ37*8760+(BC29-BI30*8760)*BG37),IF(BC29<=(BC30+BC31+BI32)*8760,(BI30*BA37*8760+BI31*BB37*8760+BI32*AZ37*8760+(BC30-BI30)*BG37*8760+(BC29-BI31*8760)*BH37),(BI30*BA37*8760+BI31*BB37*8760+BI32*AZ37*8760+(BC30-BI30)*BG37*8760+(BC31-BI31)*BH37*8760+(BC29-BI32*8760)*BF37))))))) -> 0 | BY15: Benzene | BZ15: =Z15 -> 0 | CA15: =AA15 -> 0 | CB15: 0 | CC15: 0 | CD15: 0 | CE15: 0 | CF15: 0 | CG15: 0 | CH15: 0 | CI15: 0 | CJ15: =SUM(BZ15:CI15) -> 0 | CL15: Benzene | CM15: =AM15 -> 0 | CN15: =AN15 -> 0 | CO15: =AO15 -> 0 | CP15: =AP15 -> 0 | CQ15: =AQ15 -> 0 | CR15: =AR15 -> 0 | CS15: =AS15 -> 0 | CT15: =AT15 -> 0 | CU15: =AU15 -> 0 | CV15: =AV15 -> 0 | CW15: =AW15 -> 0
A16: Dichlorobenzene | B16: 0.0012 | C16: 0.0012 | D16: 0.0012 | E16: 0.0012 | F16: 0.0012 | G16: 0.0012 | H16: 0.0012 | I16: 0.0012 | J16: 0.0012 | K16: 0.0012 | M16: Dichlorobenzene | N16: =IF(Dryer!C38=0,B16/1020,Dryer!C38) -> 1.176470588e-06 | O16: =IF(Dryer!D38=0,C16/1020,Dryer!D38) -> 1.176470588e-06 | P16: =IF(Dryer!E38=0,D16/1020,Dryer!E38) -> 1.176470588e-06 | Q16: =IF(Dryer!F38=0,E16/1020,Dryer!F38) -> 1.176470588e-06 | R16: =IF(Dryer!G38=0,F16/1020,Dryer!G38) -> 1.176470588e-06 | S16: =IF(Dryer!H38=0,G16/1020,Dryer!H38) -> 1.176470588e-06 | T16: =IF(Dryer!I38=0,H16/1020,Dryer!I38) -> 1.176470588e-06 | U16: =IF(Dryer!J38=0,I16/1020,Dryer!J38) -> 1.176470588e-06 | V16: =IF(Dryer!K38=0,J16/1020,Dryer!K38) -> 1.176470588e-06 | W16: =IF(Dryer!L38=0,K16/1020,Dryer!L38) -> 1.176470588e-06 | Y16: Dichlorobenzene | Z16: =N16*Dryer!$F$15 -> 0 | AA16: =O16*Dryer!$F$16 -> 0 | AB16: =P16*Dryer!$F$17 -> 0 | AC16: =Q16*Dryer!$F$18 -> 0 | AD16: =R16*Dryer!$F$19 -> 0 | AE16: =S16*Dryer!$F$20 -> 0 | AF16: =T16*Dryer!$F$21 -> 0 | AG16: =U16*Dryer!$F$22 -> 0 | AH16: =V16*Dryer!$F$23 -> 0 | AI16: =W16*Dryer!$F$24 -> 0 | AJ16: 0 | AL16: Dichlorobenzene | AM16: 0 | AN16: 0 | AO16: 0 | AP16: 0 | AQ16: 0 | AR16: 0 | AS16: 0 | AT16: 0 | AU16: 0 | AV16: 0 | AW16: 0 | AY16: PM2.5 | AZ16: =IF(AZ27=1,AZ9,AZ9*$BA$40*(1-$BA$41)) -> 0 | BA16: 0 | BB16: 0 | BC16: 0 | BD16: 0 | BE16: 0 | BF16: 0 | BG16: 0 | BH16: 0 | BI16: 0 | BJ16: =IF(OR(BC28=0,BC28>=SUM(BC30:BC32)),SUM(AZ16:BI16),IF(BC28<=BI30,BC28*BA38,IF(BC28<=(BI30+BI31),(BI30*BA38+(BC28-BI30)*BB38),IF(BC28<=(BI30+BI31+BI32),(BI30*BA38+BI31*BB38+(BC28-BI30-BI31)*AZ38),IF(BC28<=(BC30+BI31+BI32),(BI30*BA38+BI31*BB38+BI32*AZ38+(BC28-BI30)*BG38),IF(BC28<=(BC30+BC31+BI32),(BI30*BA38+BI31*BB38+BI32*AZ38+(BC30-BI30)*BG38+(BC28-BI31)*BH38),(BI30*BA38+BI31*BB38+BI32*AZ38+(BC30-BI30)*BG38+(BC31-BI31)*BH38+(BC28-BI32)*BF38))))))) -> 0 | BL16: PM2.5 | BM16: =IF(AZ27=1,BM9,BM9*$BA$40*(1-$BA$41)) -> 0 | BN16: 0 | BO16: 0 | BP16: 0 | BQ16: 0 | BR16: 0 | BS16: 0 | BT16: 0 | BU16: 0 | BV16: 0 | BW16: =IF(OR(BC29=0,BC29>=8760*SUM(BC30:BC32)),SUM(BM16:BV16),IF(BC29<=BI30*8760,BC29*BA38,IF(BC29<=(BI30+BI31)*8760,(BI30*BA38*8760+(BC29-BI30*8760)*BB38),IF(BC29<=(BI30+BI31+BI32)*8760,(BI30*BA38*8760+BI31*BB38*8760+(BC29-BI30*8760-BI31*8760)*AZ38),IF(BC29<=(BC30+BI31+BI32)*8760,(BI30*BA38*8760+BI31*BB38*8760+BI32*AZ38*8760+(BC29-BI30*8760)*BG38),IF(BC29<=(BC30+BC31+BI32)*8760,(BI30*BA38*8760+BI31*BB38*8760+BI32*AZ38*8760+(BC30-BI30)*BG38*8760+(BC29-BI31*8760)*BH38),(BI30*BA38*8760+BI31*BB38*8760+BI32*AZ38*8760+(BC30-BI30)*BG38*8760+(BC31-BI31)*BH38*8760+(BC29-BI32*8760)*BF38))))))) -> 0 | BY16: Dichlorobenzene | BZ16: =Z16 -> 0 | CA16: =AA16 -> 0 | CB16: =AB16 -> 0 | CC16: =AC16 -> 0 | CD16: =AD16 -> 0 | CE16: =AE16 -> 0 | CF16: =AF16 -> 0 | CG16: =AG16 -> 0 | CH16: =AH16 -> 0 | CI16: =AI16 -> 0 | CJ16: 0 | CL16: Dichlorobenzene | CM16: 0 | CN16: 0 | CO16: 0 | CP16: 0 | CQ16: 0 | CR16: 0 | CS16: 0 | CT16: 0 | CU16: 0 | CV16: 0 | CW16: 0
A17: Hexane | B17: 1.8 | C17: 1.8 | D17: 1.8 | E17: 1.8 | F17: 1.8 | G17: 1.8 | H17: 1.8 | I17: 1.8 | J17: 1.8 | K17: 1.8 | M17: Hexane | N17: =IF(Dryer!C39=0,B17/1020,Dryer!C39) -> 0.001764705882 | O17: =IF(Dryer!D39=0,C17/1020,Dryer!D39) -> 0.001764705882 | P17: =IF(Dryer!E39=0,D17/1020,Dryer!E39) -> 0.001764705882 | Q17: =IF(Dryer!F39=0,E17/1020,Dryer!F39) -> 0.001764705882 | R17: =IF(Dryer!G39=0,F17/1020,Dryer!G39) -> 0.001764705882 | S17: =IF(Dryer!H39=0,G17/1020,Dryer!H39) -> 0.001764705882 | T17: =IF(Dryer!I39=0,H17/1020,Dryer!I39) -> 0.001764705882 | U17: =IF(Dryer!J39=0,I17/1020,Dryer!J39) -> 0.001764705882 | V17: =IF(Dryer!K39=0,J17/1020,Dryer!K39) -> 0.001764705882 | W17: =IF(Dryer!L39=0,K17/1020,Dryer!L39) -> 0.001764705882 | Y17: Hexane | Z17: =N17*Dryer!$F$15 -> 0 | AA17: =O17*Dryer!$F$16 -> 0 | AB17: =P17*Dryer!$F$17 -> 0 | AC17: =Q17*Dryer!$F$18 -> 0 | AD17: =R17*Dryer!$F$19 -> 0 | AE17: =S17*Dryer!$F$20 -> 0 | AF17: =T17*Dryer!$F$21 -> 0 | AG17: =U17*Dryer!$F$22 -> 0 | AH17: =V17*Dryer!$F$23 -> 0 | AI17: =W17*Dryer!$F$24 -> 0 | AJ17: 0 | AL17: Hexane | AM17: 0 | AN17: 0 | AO17: 0 | AP17: 0 | AQ17: 0 | AR17: 0 | AS17: 0 | AT17: 0 | AU17: 0 | AV17: 0 | AW17: 0 | BY17: Hexane | BZ17: 0 | CA17: 0 | CB17: 0 | CC17: 0 | CD17: 0 | CE17: 0 | CF17: 0 | CG17: 0 | CH17: 0 | CI17: 0 | CJ17: 0 | CL17: Hexane | CM17: 0 | CN17: 0 | CO17: 0 | CP17: 0 | CQ17: 0 | CR17: 0 | CS17: 0 | CT17: 0 | CU17: 0 | CV17: 0 | CW17: 0
A18: Lead Compounds | B18: 0.0005 | C18: 0.0005 | D18: 0.0005 | E18: 0.0005 | F18: 0.0005 | G18: 0.0005 | H18: 0.0005 | I18: 0.0005 | J18: 0.0005 | K18: 0.0005 | M18: Lead Compounds | N18: =IF(Dryer!C40=0,B18/1020,Dryer!C40) -> 4.901960784e-07 | O18: =IF(Dryer!D40=0,C18/1020,Dryer!D40) -> 4.901960784e-07 | P18: =IF(Dryer!E40=0,D18/1020,Dryer!E40) -> 4.901960784e-07 | Q18: =IF(Dryer!F40=0,E18/1020,Dryer!F40) -> 4.901960784e-07 | R18: =IF(Dryer!G40=0,F18/1020,Dryer!G40) -> 4.901960784e-07 | S18: =IF(Dryer!H40=0,G18/1020,Dryer!H40) -> 4.901960784e-07 | T18: =IF(Dryer!I40=0,H18/1020,Dryer!I40) -> 4.901960784e-07 | U18: =IF(Dryer!J40=0,I18/1020,Dryer!J40) -> 4.901960784e-07 | V18: =IF(Dryer!K40=0,J18/1020,Dryer!K40) -> 4.901960784e-07 | W18: =IF(Dryer!L40=0,K18/1020,Dryer!L40) -> 4.901960784e-07 | Y18: Lead Compounds | Z18: =N18*Dryer!$F$15 -> 0 | AA18: =O18*Dryer!$F$16 -> 0 | AB18: =P18*Dryer!$F$17 -> 0 | AC18: =Q18*Dryer!$F$18 -> 0 | AD18: =R18*Dryer!$F$19 -> 0 | AE18: =S18*Dryer!$F$20 -> 0 | AF18: =T18*Dryer!$F$21 -> 0 | AG18: =U18*Dryer!$F$22 -> 0 | AH18: =V18*Dryer!$F$23 -> 0 | AI18: =W18*Dryer!$F$24 -> 0 | AJ18: 0 | AL18: Lead Compounds | AM18: 0 | AN18: 0 | AO18: 0 | AP18: 0 | AQ18: 0 | AR18: 0 | AS18: 0 | AT18: 0 | AU18: 0 | AV18: 0 | AW18: 0 | BY18: Lead Compounds | BZ18: 0 | CA18: 0 | CB18: 0 | CC18: 0 | CD18: 0 | CE18: 0 | CF18: 0 | CG18: 0 | CH18: 0 | CI18: 0 | CJ18: 0 | CL18: Lead Compounds | CM18: 0 | CN18: 0 | CO18: 0 | CP18: 0 | CQ18: 0 | CR18: 0 | CS18: 0 | CT18: 0 | CU18: 0 | CV18: 0 | CW18: 0
A19: Naphthalene | B19: 0.00061 | C19: 0.00061 | D19: 0.00061 | E19: 0.00061 | F19: 0.00061 | G19: 0.00061 | H19: 0.00061 | I19: 0.00061 | J19: 0.00061 | K19: 0.00061 | M19: Naphthalene | N19: =IF(Dryer!C41=0,B19/1020,Dryer!C41) -> 5.980392157e-07 | O19: =IF(Dryer!D41=0,C19/1020,Dryer!D41) -> 5.980392157e-07 | P19: =IF(Dryer!E41=0,D19/1020,Dryer!E41) -> 5.980392157e-07 | Q19: =IF(Dryer!F41=0,E19/1020,Dryer!F41) -> 5.980392157e-07 | R19: =IF(Dryer!G41=0,F19/1020,Dryer!G41) -> 5.980392157e-07 | S19: =IF(Dryer!H41=0,G19/1020,Dryer!H41) -> 5.980392157e-07 | T19: =IF(Dryer!I41=0,H19/1020,Dryer!I41) -> 5.980392157e-07 | U19: =IF(Dryer!J41=0,I19/1020,Dryer!J41) -> 5.980392157e-07 | V19: =IF(Dryer!K41=0,J19/1020,Dryer!K41) -> 5.980392157e-07 | W19: =IF(Dryer!L41=0,K19/1020,Dryer!L41) -> 5.980392157e-07 | Y19: Naphthalene | Z19: =N19*Dryer!$F$15 -> 0 | AA19: =O19*Dryer!$F$16 -> 0 | AB19: =P19*Dryer!$F$17 -> 0 | AC19: =Q19*Dryer!$F$18 -> 0 | AD19: =R19*Dryer!$F$19 -> 0 | AE19: =S19*Dryer!$F$20 -> 0 | AF19: =T19*Dryer!$F$21 -> 0 | AG19: =U19*Dryer!$F$22 -> 0 | AH19: =V19*Dryer!$F$23 -> 0 | AI19: =W19*Dryer!$F$24 -> 0 | AJ19: 0 | AL19: Naphthalene | AM19: 0 | AN19: 0 | AO19: 0 | AP19: 0 | AQ19: 0 | AR19: 0 | AS19: 0 | AT19: 0 | AU19: 0 | AV19: 0 | AW19: 0 | BY19: Naphthalene | BZ19: 0 | CA19: 0 | CB19: 0 | CC19: 0 | CD19: 0 | CE19: 0 | CF19: 0 | CG19: 0 | CH19: 0 | CI19: 0 | CJ19: 0 | CL19: Naphthalene | CM19: 0 | CN19: 0 | CO19: 0 | CP19: 0 | CQ19: 0 | CR19: 0 | CS19: 0 | CT19: 0 | CU19: 0 | CV19: 0 | CW19: 0
A20: Polycyclic Organic Matter | B20: 8.82e-05 | C20: 8.82e-05 | D20: 8.82e-05 | E20: 8.82e-05 | F20: 8.82e-05 | G20: 8.82e-05 | H20: 8.82e-05 | I20: 8.82e-05 | J20: 8.82e-05 | K20: 8.82e-05 | M20: Polycyclic Organic Matter | N20: =IF(Dryer!C42=0,B20/1020,Dryer!C42) -> 8.647058824e-08 | O20: =IF(Dryer!D42=0,C20/1020,Dryer!D42) -> 8.647058824e-08 | P20: =IF(Dryer!E42=0,D20/1020,Dryer!E42) -> 8.647058824e-08 | Q20: =IF(Dryer!F42=0,E20/1020,Dryer!F42) -> 8.647058824e-08 | R20: =IF(Dryer!G42=0,F20/1020,Dryer!G42) -> 8.647058824e-08 | S20: =IF(Dryer!H42=0,G20/1020,Dryer!H42) -> 8.647058824e-08 | T20: =IF(Dryer!I42=0,H20/1020,Dryer!I42) -> 8.647058824e-08 | U20: =IF(Dryer!J42=0,I20/1020,Dryer!J42) -> 8.647058824e-08 | V20: =IF(Dryer!K42=0,J20/1020,Dryer!K42) -> 8.647058824e-08 | W20: =IF(Dryer!L42=0,K20/1020,Dryer!L42) -> 8.647058824e-08 | Y20: Polycyclic Organic Matter | Z20: =N20*Dryer!$F$15 -> 0 | AA20: =O20*Dryer!$F$16 -> 0 | AB20: =P20*Dryer!$F$17 -> 0 | AC20: =Q20*Dryer!$F$18 -> 0 | AD20: =R20*Dryer!$F$19 -> 0 | AE20: =S20*Dryer!$F$20 -> 0 | AF20: =T20*Dryer!$F$21 -> 0 | AG20: =U20*Dryer!$F$22 -> 0 | AH20: =V20*Dryer!$F$23 -> 0 | AI20: =W20*Dryer!$F$24 -> 0 | AJ20: 0 | AL20: Polycyclic Organic Matter | AM20: 0 | AN20: 0 | AO20: 0 | AP20: 0 | AQ20: 0 | AR20: 0 | AS20: 0 | AT20: 0 | AU20: 0 | AV20: 0 | AW20: 0 | BY20: Polycyclic Organic Matter | BZ20: =Z20 -> 0 | CA20: =AA20 -> 0 | CB20: =AB20 -> 0 | CC20: =AC20 -> 0 | CD20: =AD20 -> 0 | CE20: =AE20 -> 0 | CF20: =AF20 -> 0 | CG20: =AG20 -> 0 | CH20: =AH20 -> 0 | CI20: =AI20 -> 0 | CJ20: 0 | CL20: Polycyclic Organic Matter | CM20: 0 | CN20: 0 | CO20: 0 | CP20: 0 | CQ20: 0 | CR20: 0 | CS20: 0 | CT20: 0 | CU20: 0 | CV20: 0 | CW20: 0
A21: Toluene | B21: 0.0034 | C21: 0.0034 | D21: 0.0034 | E21: 0.0034 | F21: 0.0034 | G21: 0.0034 | H21: 0.0034 | I21: 0.0034 | J21: 0.0034 | K21: 0.0034 | M21: Toluene | N21: =IF(Dryer!C43=0,B21/1020,Dryer!C43) -> 3.333333333e-06 | O21: =IF(Dryer!D43=0,C21/1020,Dryer!D43) -> 3.333333333e-06 | P21: =IF(Dryer!E43=0,D21/1020,Dryer!E43) -> 3.333333333e-06 | Q21: =IF(Dryer!F43=0,E21/1020,Dryer!F43) -> 3.333333333e-06 | R21: =IF(Dryer!G43=0,F21/1020,Dryer!G43) -> 3.333333333e-06 | S21: =IF(Dryer!H43=0,G21/1020,Dryer!H43) -> 3.333333333e-06 | T21: =IF(Dryer!I43=0,H21/1020,Dryer!I43) -> 3.333333333e-06 | U21: =IF(Dryer!J43=0,I21/1020,Dryer!J43) -> 3.333333333e-06 | V21: =IF(Dryer!K43=0,J21/1020,Dryer!K43) -> 3.333333333e-06 | W21: =IF(Dryer!L43=0,K21/1020,Dryer!L43) -> 3.333333333e-06 | Y21: Toluene | Z21: =N21*Dryer!$F$15 -> 0 | AA21: =O21*Dryer!$F$16 -> 0 | AB21: =P21*Dryer!$F$17 -> 0 | AC21: =Q21*Dryer!$F$18 -> 0 | AD21: =R21*Dryer!$F$19 -> 0 | AE21: =S21*Dryer!$F$20 -> 0 | AF21: =T21*Dryer!$F$21 -> 0 | AG21: =U21*Dryer!$F$22 -> 0 | AH21: =V21*Dryer!$F$23 -> 0 | AI21: =W21*Dryer!$F$24 -> 0 | AJ21: 0 | AL21: Toluene | AM21: 0 | AN21: 0 | AO21: 0 | AP21: 0 | AQ21: 0 | AR21: 0 | AS21: 0 | AT21: 0 | AU21: 0 | AV21: 0 | AW21: 0 | BY21: Toluene | BZ21: 0 | CA21: 0 | CB21: 0 | CC21: 0 | CD21: 0 | CE21: 0 | CF21: 0 | CG21: 0 | CH21: 0 | CI21: 0 | CJ21: 0 | CL21: Toluene | CM21: 0 | CN21: 0 | CO21: 0 | CP21: 0 | CQ21: 0 | CR21: 0 | CS21: 0 | CT21: 0 | CU21: 0 | CV21: 0 | CW21: 0
A22: Arsenic Compounds | B22: 0.0002 | C22: 0.0002 | D22: 0.0002 | E22: 0.0002 | F22: 0.0002 | G22: 0.0002 | H22: 0.0002 | I22: 0.0002 | J22: 0.0002 | K22: 0.0002 | M22: Arsenic Compounds | N22: =IF(Dryer!C44=0,B22/1020,Dryer!C44) -> 1.960784314e-07 | O22: =IF(Dryer!D44=0,C22/1020,Dryer!D44) -> 1.960784314e-07 | P22: =IF(Dryer!E44=0,D22/1020,Dryer!E44) -> 1.960784314e-07 | Q22: =IF(Dryer!F44=0,E22/1020,Dryer!F44) -> 1.960784314e-07 | R22: =IF(Dryer!G44=0,F22/1020,Dryer!G44) -> 1.960784314e-07 | S22: =IF(Dryer!H44=0,G22/1020,Dryer!H44) -> 1.960784314e-07 | T22: =IF(Dryer!I44=0,H22/1020,Dryer!I44) -> 1.960784314e-07 | U22: =IF(Dryer!J44=0,I22/1020,Dryer!J44) -> 1.960784314e-07 | V22: =IF(Dryer!K44=0,J22/1020,Dryer!K44) -> 1.960784314e-07 | W22: =IF(Dryer!L44=0,K22/1020,Dryer!L44) -> 1.960784314e-07 | Y22: Arsenic Compounds | Z22: =N22*Dryer!$F$15 -> 0 | AA22: =O22*Dryer!$F$16 -> 0 | AB22: =P22*Dryer!$F$17 -> 0 | AC22: =Q22*Dryer!$F$18 -> 0 | AD22: =R22*Dryer!$F$19 -> 0 | AE22: =S22*Dryer!$F$20 -> 0 | AF22: =T22*Dryer!$F$21 -> 0 | AG22: =U22*Dryer!$F$22 -> 0 | AH22: =V22*Dryer!$F$23 -> 0 | AI22: =W22*Dryer!$F$24 -> 0 | AJ22: 0 | AL22: Arsenic Compounds | AM22: 0 | AN22: 0 | AO22: 0 | AP22: 0 | AQ22: 0 | AR22: 0 | AS22: 0 | AT22: 0 | AU22: 0 | AV22: 0 | AW22: 0 | BY22: Arsenic Compounds | BZ22: 0 | CA22: 0 | CB22: 0 | CC22: 0 | CD22: 0 | CE22: 0 | CF22: 0 | CG22: 0 | CH22: 0 | CI22: 0 | CJ22: 0 | CL22: Arsenic Compounds | CM22: 0 | CN22: 0 | CO22: 0 | CP22: 0 | CQ22: 0 | CR22: 0 | CS22: 0 | CT22: 0 | CU22: 0 | CV22: 0 | CW22: 0
A23: Beryllium Compounds | B23: 1.2e-05 | C23: 1.2e-05 | D23: 1.2e-05 | E23: 1.2e-05 | F23: 1.2e-05 | G23: 1.2e-05 | H23: 1.2e-05 | I23: 1.2e-05 | J23: 1.2e-05 | K23: 1.2e-05 | M23: Beryllium Compounds | N23: =IF(Dryer!C45=0,B23/1020,Dryer!C45) -> 1.176470588e-08 | O23: =IF(Dryer!D45=0,C23/1020,Dryer!D45) -> 1.176470588e-08 | P23: =IF(Dryer!E45=0,D23/1020,Dryer!E45) -> 1.176470588e-08 | Q23: =IF(Dryer!F45=0,E23/1020,Dryer!F45) -> 1.176470588e-08 | R23: =IF(Dryer!G45=0,F23/1020,Dryer!G45) -> 1.176470588e-08 | S23: =IF(Dryer!H45=0,G23/1020,Dryer!H45) -> 1.176470588e-08 | T23: =IF(Dryer!I45=0,H23/1020,Dryer!I45) -> 1.176470588e-08 | U23: =IF(Dryer!J45=0,I23/1020,Dryer!J45) -> 1.176470588e-08 | V23: =IF(Dryer!K45=0,J23/1020,Dryer!K45) -> 1.176470588e-08 | W23: =IF(Dryer!L45=0,K23/1020,Dryer!L45) -> 1.176470588e-08 | Y23: Beryllium Compounds | Z23: =N23*Dryer!$F$15 -> 0 | AA23: =O23*Dryer!$F$16 -> 0 | AB23: =P23*Dryer!$F$17 -> 0 | AC23: =Q23*Dryer!$F$18 -> 0 | AD23: =R23*Dryer!$F$19 -> 0 | AE23: =S23*Dryer!$F$20 -> 0 | AF23: =T23*Dryer!$F$21 -> 0 | AG23: =U23*Dryer!$F$22 -> 0 | AH23: =V23*Dryer!$F$23 -> 0 | AI23: =W23*Dryer!$F$24 -> 0 | AJ23: 0 | AL23: Beryllium Compounds | AM23: 0 | AN23: 0 | AO23: 0 | AP23: 0 | AQ23: 0 | AR23: 0 | AS23: 0 | AT23: 0 | AU23: 0 | AV23: 0 | AW23: 0 | BY23: Beryllium Compounds | BZ23: 0 | CA23: 0 | CB23: 0 | CC23: 0 | CD23: 0 | CE23: 0 | CF23: 0 | CG23: 0 | CH23: 0 | CI23: 0 | CJ23: 0 | CL23: Beryllium Compounds | CM23: 0 | CN23: 0 | CO23: 0 | CP23: 0 | CQ23: 0 | CR23: 0 | CS23: 0 | CT23: 0 | CU23: 0 | CV23: 0 | CW23: 0
A24: Cadmium Compounds | B24: 0.0011 | C24: 0.0011 | D24: 0.0011 | E24: 0.0011 | F24: 0.0011 | G24: 0.0011 | H24: 0.0011 | I24: 0.0011 | J24: 0.0011 | K24: 0.0011 | M24: Cadmium Compounds | N24: =IF(Dryer!C46=0,B24/1020,Dryer!C46) -> 1.078431373e-06 | O24: =IF(Dryer!D46=0,C24/1020,Dryer!D46) -> 1.078431373e-06 | P24: =IF(Dryer!E46=0,D24/1020,Dryer!E46) -> 1.078431373e-06 | Q24: =IF(Dryer!F46=0,E24/1020,Dryer!F46) -> 1.078431373e-06 | R24: =IF(Dryer!G46=0,F24/1020,Dryer!G46) -> 1.078431373e-06 | S24: =IF(Dryer!H46=0,G24/1020,Dryer!H46) -> 1.078431373e-06 | T24: =IF(Dryer!I46=0,H24/1020,Dryer!I46) -> 1.078431373e-06 | U24: =IF(Dryer!J46=0,I24/1020,Dryer!J46) -> 1.078431373e-06 | V24: =IF(Dryer!K46=0,J24/1020,Dryer!K46) -> 1.078431373e-06 | W24: =IF(Dryer!L46=0,K24/1020,Dryer!L46) -> 1.078431373e-06 | Y24: Cadmium Compounds | Z24: =N24*Dryer!$F$15 -> 0 | AA24: =O24*Dryer!$F$16 -> 0 | AB24: =P24*Dryer!$F$17 -> 0 | AC24: =Q24*Dryer!$F$18 -> 0 | AD24: =R24*Dryer!$F$19 -> 0 | AE24: =S24*Dryer!$F$20 -> 0 | AF24: =T24*Dryer!$F$21 -> 0 | AG24: =U24*Dryer!$F$22 -> 0 | AH24: =V24*Dryer!$F$23 -> 0 | AI24: =W24*Dryer!$F$24 -> 0 | AJ24: 0 | AL24: Cadmium Compounds | AM24: 0 | AN24: 0 | AO24: 0 | AP24: 0 | AQ24: 0 | AR24: 0 | AS24: 0 | AT24: 0 | AU24: 0 | AV24: 0 | AW24: 0 | AY24: Supporting data: | BY24: Cadmium Compounds | BZ24: 0 | CA24: 0 | CB24: 0 | CC24: 0 | CD24: 0 | CE24: 0 | CF24: 0 | CG24: 0 | CH24: 0 | CI24: 0 | CJ24: 0 | CL24: Cadmium Compounds | CM24: 0 | CN24: 0 | CO24: 0 | CP24: 0 | CQ24: 0 | CR24: 0 | CS24: 0 | CT24: 0 | CU24: 0 | CV24: 0 | CW24: 0
A25: Chromium Compounds | B25: 0.0014 | C25: 0.0014 | D25: 0.0014 | E25: 0.0014 | F25: 0.0014 | G25: 0.0014 | H25: 0.0014 | I25: 0.0014 | J25: 0.0014 | K25: 0.0014 | M25: Chromium Compounds | N25: =IF(Dryer!C47=0,B25/1020,Dryer!C47) -> 1.37254902e-06 | O25: =IF(Dryer!D47=0,C25/1020,Dryer!D47) -> 1.37254902e-06 | P25: =IF(Dryer!E47=0,D25/1020,Dryer!E47) -> 1.37254902e-06 | Q25: =IF(Dryer!F47=0,E25/1020,Dryer!F47) -> 1.37254902e-06 | R25: =IF(Dryer!G47=0,F25/1020,Dryer!G47) -> 1.37254902e-06 | S25: =IF(Dryer!H47=0,G25/1020,Dryer!H47) -> 1.37254902e-06 | T25: =IF(Dryer!I47=0,H25/1020,Dryer!I47) -> 1.37254902e-06 | U25: =IF(Dryer!J47=0,I25/1020,Dryer!J47) -> 1.37254902e-06 | V25: =IF(Dryer!K47=0,J25/1020,Dryer!K47) -> 1.37254902e-06 | W25: =IF(Dryer!L47=0,K25/1020,Dryer!L47) -> 1.37254902e-06 | Y25: Chromium Compounds | Z25: =N25*Dryer!$F$15 -> 0 | AA25: =O25*Dryer!$F$16 -> 0 | AB25: =P25*Dryer!$F$17 -> 0 | AC25: =Q25*Dryer!$F$18 -> 0 | AD25: =R25*Dryer!$F$19 -> 0 | AE25: =S25*Dryer!$F$20 -> 0 | AF25: =T25*Dryer!$F$21 -> 0 | AG25: =U25*Dryer!$F$22 -> 0 | AH25: =V25*Dryer!$F$23 -> 0 | AI25: =W25*Dryer!$F$24 -> 0 | AJ25: 0 | AL25: Chromium Compounds | AM25: 0 | AN25: 0 | AO25: 0 | AP25: 0 | AQ25: 0 | AR25: 0 | AS25: 0 | AT25: 0 | AU25: 0 | AV25: 0 | AW25: 0 | AY25: ton/hr | AZ25: =Dryer!D15 -> 0 | BA25: =Dryer!D16 -> 0 | BB25: =Dryer!D17 -> 0 | BC25: =Dryer!D18 -> 0 | BD25: =Dryer!D19 -> 0 | BE25: =Dryer!D20 -> 0 | BF25: =Dryer!D21 -> 0 | BG25: =Dryer!D22 -> 0 | BH25: =Dryer!D23 -> 0 | BI25: =Dryer!D24 -> 0 | BY25: Chromium Compounds | BZ25: 0 | CA25: 0 | CB25: 0 | CC25: 0 | CD25: 0 | CE25: 0 | CF25: 0 | CG25: 0 | CH25: 0 | CI25: 0 | CJ25: 0 | CL25: Chromium Compounds | CM25: 0 | CN25: 0 | CO25: 0 | CP25: 0 | CQ25: 0 | CR25: 0 | CS25: 0 | CT25: 0 | CU25: 0 | CV25: 0 | CW25: 0
A26: Cobalt Compounds | B26: 8.4e-05 | C26: 8.4e-05 | D26: 8.4e-05 | E26: 8.4e-05 | F26: 8.4e-05 | G26: 8.4e-05 | H26: 8.4e-05 | I26: 8.4e-05 | J26: 8.4e-05 | K26: 8.4e-05 | M26: Cobalt Compounds | N26: =IF(Dryer!C48=0,B26/1020,Dryer!C48) -> 8.235294118e-08 | O26: =IF(Dryer!D48=0,C26/1020,Dryer!D48) -> 8.235294118e-08 | P26: =IF(Dryer!E48=0,D26/1020,Dryer!E48) -> 8.235294118e-08 | Q26: =IF(Dryer!F48=0,E26/1020,Dryer!F48) -> 8.235294118e-08 | R26: =IF(Dryer!G48=0,F26/1020,Dryer!G48) -> 8.235294118e-08 | S26: =IF(Dryer!H48=0,G26/1020,Dryer!H48) -> 8.235294118e-08 | T26: =IF(Dryer!I48=0,H26/1020,Dryer!I48) -> 8.235294118e-08 | U26: =IF(Dryer!J48=0,I26/1020,Dryer!J48) -> 8.235294118e-08 | V26: =IF(Dryer!K48=0,J26/1020,Dryer!K48) -> 8.235294118e-08 | W26: =IF(Dryer!L48=0,K26/1020,Dryer!L48) -> 8.235294118e-08 | Y26: Cobalt Compounds | Z26: =N26*Dryer!$F$15 -> 0 | AA26: =O26*Dryer!$F$16 -> 0 | AB26: =P26*Dryer!$F$17 -> 0 | AC26: =Q26*Dryer!$F$18 -> 0 | AD26: =R26*Dryer!$F$19 -> 0 | AE26: =S26*Dryer!$F$20 -> 0 | AF26: =T26*Dryer!$F$21 -> 0 | AG26: =U26*Dryer!$F$22 -> 0 | AH26: =V26*Dryer!$F$23 -> 0 | AI26: =W26*Dryer!$F$24 -> 0 | AJ26: 0 | AL26: Cobalt Compounds | AM26: 0 | AN26: 0 | AO26: 0 | AP26: 0 | AQ26: 0 | AR26: 0 | AS26: 0 | AT26: 0 | AU26: 0 | AV26: 0 | AW26: 0 | AY26: Dryer type | AZ26: =Dryer!G15 -> 0 | BA26: =Dryer!G16 -> 0 | BB26: =Dryer!G17 -> 0 | BC26: =Dryer!G18 -> 0 | BD26: =Dryer!G19 -> 0 | BE26: =Dryer!G20 -> 0 | BF26: =Dryer!G21 -> 0 | BG26: =Dryer!G22 -> 0 | BH26: =Dryer!G23 -> 0 | BI26: =Dryer!G24 -> 0 | BY26: Cobalt Compounds | BZ26: 0 | CA26: 0 | CB26: 0 | CC26: 0 | CD26: 0 | CE26: 0 | CF26: 0 | CG26: 0 | CH26: 0 | CI26: 0 | CJ26: 0 | CL26: Cobalt Compounds | CM26: 0 | CN26: 0 | CO26: 0 | CP26: 0 | CQ26: 0 | CR26: 0 | CS26: 0 | CT26: 0 | CU26: 0 | CV26: 0 | CW26: 0
A27: Manganese Compounds | B27: 0.00038 | C27: 0.00038 | D27: 0.00038 | E27: 0.00038 | F27: 0.00038 | G27: 0.00038 | H27: 0.00038 | I27: 0.00038 | J27: 0.00038 | K27: 0.00038 | M27: Manganese Compounds | N27: =IF(Dryer!C49=0,B27/1020,Dryer!C49) -> 3.725490196e-07 | O27: =IF(Dryer!D49=0,C27/1020,Dryer!D49) -> 3.725490196e-07 | P27: =IF(Dryer!E49=0,D27/1020,Dryer!E49) -> 3.725490196e-07 | Q27: =IF(Dryer!F49=0,E27/1020,Dryer!F49) -> 3.725490196e-07 | R27: =IF(Dryer!G49=0,F27/1020,Dryer!G49) -> 3.725490196e-07 | S27: =IF(Dryer!H49=0,G27/1020,Dryer!H49) -> 3.725490196e-07 | T27: =IF(Dryer!I49=0,H27/1020,Dryer!I49) -> 3.725490196e-07 | U27: =IF(Dryer!J49=0,I27/1020,Dryer!J49) -> 3.725490196e-07 | V27: =IF(Dryer!K49=0,J27/1020,Dryer!K49) -> 3.725490196e-07 | W27: =IF(Dryer!L49=0,K27/1020,Dryer!L49) -> 3.725490196e-07 | Y27: Manganese Compounds | Z27: =N27*Dryer!$F$15 -> 0 | AA27: =O27*Dryer!$F$16 -> 0 | AB27: =P27*Dryer!$F$17 -> 0 | AC27: =Q27*Dryer!$F$18 -> 0 | AD27: =R27*Dryer!$F$19 -> 0 | AE27: =S27*Dryer!$F$20 -> 0 | AF27: =T27*Dryer!$F$21 -> 0 | AG27: =U27*Dryer!$F$22 -> 0 | AH27: =V27*Dryer!$F$23 -> 0 | AI27: =W27*Dryer!$F$24 -> 0 | AJ27: 0 | AL27: Manganese Compounds | AM27: 0 | AN27: 0 | AO27: 0 | AP27: 0 | AQ27: 0 | AR27: 0 | AS27: 0 | AT27: 0 | AU27: 0 | AV27: 0 | AW27: 0 | AY27: Particulate control | AZ27: =IF(Dryer!H15=Datasets!$C$3,0,1) -> 1 | BA27: =IF(Dryer!H16=Datasets!$C$3,0,1) -> 1 | BB27: =IF(Dryer!H17=Datasets!$C$3,0,1) -> 1 | BC27: =IF(Dryer!H18=Datasets!$C$3,0,1) -> 1 | BD27: =IF(Dryer!H19=Datasets!$C$3,0,1) -> 1 | BE27: =IF(Dryer!H20=Datasets!$C$3,0,1) -> 1 | BF27: =IF(Dryer!H21=Datasets!$C$3,0,1) -> 1 | BG27: =IF(Dryer!H22=Datasets!$C$3,0,1) -> 1 | BH27: =IF(Dryer!H23=Datasets!$C$3,0,1) -> 1 | BI27: =IF(Dryer!H24=Datasets!$C$3,0,1) -> 1 | BY27: Manganese Compounds | BZ27: 0 | CA27: 0 | CB27: 0 | CC27: 0 | CD27: 0 | CE27: 0 | CF27: 0 | CG27: 0 | CH27: 0 | CI27: 0 | CJ27: 0 | CL27: Manganese Compounds | CM27: 0 | CN27: 0 | CO27: 0 | CP27: 0 | CQ27: 0 | CR27: 0 | CS27: 0 | CT27: 0 | CU27: 0 | CV27: 0 | CW27: 0
A28: Mercury Compounds | B28: 0.00026 | C28: 0.00026 | D28: 0.00026 | E28: 0.00026 | F28: 0.00026 | G28: 0.00026 | H28: 0.00026 | I28: 0.00026 | J28: 0.00026 | K28: 0.00026 | M28: Mercury Compounds | N28: =IF(Dryer!C50=0,B28/1020,Dryer!C50) -> 2.549019608e-07 | O28: =IF(Dryer!D50=0,C28/1020,Dryer!D50) -> 2.549019608e-07 | P28: =IF(Dryer!E50=0,D28/1020,Dryer!E50) -> 2.549019608e-07 | Q28: =IF(Dryer!F50=0,E28/1020,Dryer!F50) -> 2.549019608e-07 | R28: =IF(Dryer!G50=0,F28/1020,Dryer!G50) -> 2.549019608e-07 | S28: =IF(Dryer!H50=0,G28/1020,Dryer!H50) -> 2.549019608e-07 | T28: =IF(Dryer!I50=0,H28/1020,Dryer!I50) -> 2.549019608e-07 | U28: =IF(Dryer!J50=0,I28/1020,Dryer!J50) -> 2.549019608e-07 | V28: =IF(Dryer!K50=0,J28/1020,Dryer!K50) -> 2.549019608e-07 | W28: =IF(Dryer!L50=0,K28/1020,Dryer!L50) -> 2.549019608e-07 | Y28: Mercury Compounds | Z28: =N28*Dryer!$F$15 -> 0 | AA28: =O28*Dryer!$F$16 -> 0 | AB28: =P28*Dryer!$F$17 -> 0 | AC28: =Q28*Dryer!$F$18 -> 0 | AD28: =R28*Dryer!$F$19 -> 0 | AE28: =S28*Dryer!$F$20 -> 0 | AF28: =T28*Dryer!$F$21 -> 0 | AG28: =U28*Dryer!$F$22 -> 0 | AH28: =V28*Dryer!$F$23 -> 0 | AI28: =W28*Dryer!$F$24 -> 0 | AJ28: 0 | AL28: Mercury Compounds | AM28: 0 | AN28: 0 | AO28: 0 | AP28: 0 | AQ28: 0 | AR28: 0 | AS28: 0 | AT28: 0 | AU28: 0 | AV28: 0 | AW28: 0 | AY28: Ton/hr Limit | BC28: =Dryer!D10 -> 0 | BY28: Mercury Compounds | BZ28: 0 | CA28: 0 | CB28: 0 | CC28: 0 | CD28: 0 | CE28: 0 | CF28: 0 | CG28: 0 | CH28: 0 | CI28: 0 | CJ28: 0 | CL28: Mercury Compounds | CM28: 0 | CN28: 0 | CO28: 0 | CP28: 0 | CQ28: 0 | CR28: 0 | CS28: 0 | CT28: 0 | CU28: 0 | CV28: 0 | CW28: 0
A29: Nickel Compounds | B29: 0.0021 | C29: 0.0021 | D29: 0.0021 | E29: 0.0021 | F29: 0.0021 | G29: 0.0021 | H29: 0.0021 | I29: 0.0021 | J29: 0.0021 | K29: 0.0021 | M29: Nickel Compounds | N29: =IF(Dryer!C51=0,B29/1020,Dryer!C51) -> 2.058823529e-06 | O29: =IF(Dryer!D51=0,C29/1020,Dryer!D51) -> 2.058823529e-06 | P29: =IF(Dryer!E51=0,D29/1020,Dryer!E51) -> 2.058823529e-06 | Q29: =IF(Dryer!F51=0,E29/1020,Dryer!F51) -> 2.058823529e-06 | R29: =IF(Dryer!G51=0,F29/1020,Dryer!G51) -> 2.058823529e-06 | S29: =IF(Dryer!H51=0,G29/1020,Dryer!H51) -> 2.058823529e-06 | T29: =IF(Dryer!I51=0,H29/1020,Dryer!I51) -> 2.058823529e-06 | U29: =IF(Dryer!J51=0,I29/1020,Dryer!J51) -> 2.058823529e-06 | V29: =IF(Dryer!K51=0,J29/1020,Dryer!K51) -> 2.058823529e-06 | W29: =IF(Dryer!L51=0,K29/1020,Dryer!L51) -> 2.058823529e-06 | Y29: Nickel Compounds | Z29: =N29*Dryer!$F$15 -> 0 | AA29: =O29*Dryer!$F$16 -> 0 | AB29: =P29*Dryer!$F$17 -> 0 | AC29: =Q29*Dryer!$F$18 -> 0 | AD29: =R29*Dryer!$F$19 -> 0 | AE29: =S29*Dryer!$F$20 -> 0 | AF29: =T29*Dryer!$F$21 -> 0 | AG29: =U29*Dryer!$F$22 -> 0 | AH29: =V29*Dryer!$F$23 -> 0 | AI29: =W29*Dryer!$F$24 -> 0 | AJ29: 0 | AL29: Nickel Compounds | AM29: 0 | AN29: 0 | AO29: 0 | AP29: 0 | AQ29: 0 | AR29: 0 | AS29: 0 | AT29: 0 | AU29: 0 | AV29: 0 | AW29: 0 | AY29: Ton/yr Limit | BC29: =Dryer!D11 -> 0 | BY29: Nickel Compounds | BZ29: 0 | CA29: 0 | CB29: 0 | CC29: 0 | CD29: 0 | CE29: 0 | CF29: 0 | CG29: 0 | CH29: 0 | CI29: 0 | CJ29: 0 | CL29: Nickel Compounds | CM29: 0 | CN29: 0 | CO29: 0 | CP29: 0 | CQ29: 0 | CR29: 0 | CS29: 0 | CT29: 0 | CU29: 0 | CV29: 0 | CW29: 0
A30: Selenium Compounds | B30: 2.4e-05 | C30: 2.4e-05 | D30: 2.4e-05 | E30: 2.4e-05 | F30: 2.4e-05 | G30: 2.4e-05 | H30: 2.4e-05 | I30: 2.4e-05 | J30: 2.4e-05 | K30: 2.4e-05 | M30: Selenium Compounds | N30: =IF(Dryer!C52=0,B30/1020,Dryer!C52) -> 2.352941176e-08 | O30: =IF(Dryer!D52=0,C30/1020,Dryer!D52) -> 2.352941176e-08 | P30: =IF(Dryer!E52=0,D30/1020,Dryer!E52) -> 2.352941176e-08 | Q30: =IF(Dryer!F52=0,E30/1020,Dryer!F52) -> 2.352941176e-08 | R30: =IF(Dryer!G52=0,F30/1020,Dryer!G52) -> 2.352941176e-08 | S30: =IF(Dryer!H52=0,G30/1020,Dryer!H52) -> 2.352941176e-08 | T30: =IF(Dryer!I52=0,H30/1020,Dryer!I52) -> 2.352941176e-08 | U30: =IF(Dryer!J52=0,I30/1020,Dryer!J52) -> 2.352941176e-08 | V30: =IF(Dryer!K52=0,J30/1020,Dryer!K52) -> 2.352941176e-08 | W30: =IF(Dryer!L52=0,K30/1020,Dryer!L52) -> 2.352941176e-08 | Y30: Selenium Compounds | Z30: =N30*Dryer!$F$15 -> 0 | AA30: =O30*Dryer!$F$16 -> 0 | AB30: =P30*Dryer!$F$17 -> 0 | AC30: =Q30*Dryer!$F$18 -> 0 | AD30: =R30*Dryer!$F$19 -> 0 | AE30: =S30*Dryer!$F$20 -> 0 | AF30: =T30*Dryer!$F$21 -> 0 | AG30: =U30*Dryer!$F$22 -> 0 | AH30: =V30*Dryer!$F$23 -> 0 | AI30: =W30*Dryer!$F$24 -> 0 | AJ30: 0 | AL30: Selenium Compounds | AM30: 0 | AN30: 0 | AO30: 0 | AP30: 0 | AQ30: 0 | AR30: 0 | AS30: 0 | AT30: 0 | AU30: 0 | AV30: 0 | AW30: 0 | AY30: Total ton/hr of Rack dryers | BC30: =SUMIFS(AZ25:BI25,AZ26:BI26,Calculations!BA35) -> 0 | BE30: Total ton/hr of uncontrolled Rack dryers | BI30: =SUMIFS(AZ25:BI25,AZ26:BI26,Calculations!BA35,AZ27:BI27,1) -> 0 | BY30: Selenium Compounds | BZ30: 0 | CA30: 0 | CB30: 0 | CC30: 0 | CD30: 0 | CE30: 0 | CF30: 0 | CG30: 0 | CH30: 0 | CI30: 0 | CJ30: 0 | CL30: Selenium Compounds | CM30: 0 | CN30: 0 | CO30: 0 | CP30: 0 | CQ30: 0 | CR30: 0 | CS30: 0 | CT30: 0 | CU30: 0 | CV30: 0 | CW30: 0
A31: Total HAPs | M31: Total HAPs | N31: =IF(Dryer!C53=0,B31/1020,Dryer!C53) -> 0 | O31: =IF(Dryer!D53=0,C31/1020,Dryer!D53) -> 0 | P31: =IF(Dryer!E53=0,D31/1020,Dryer!E53) -> 0 | Q31: =IF(Dryer!F53=0,E31/1020,Dryer!F53) -> 0 | R31: =IF(Dryer!G53=0,F31/1020,Dryer!G53) -> 0 | S31: =IF(Dryer!H53=0,G31/1020,Dryer!H53) -> 0 | T31: =IF(Dryer!I53=0,H31/1020,Dryer!I53) -> 0 | U31: =IF(Dryer!J53=0,I31/1020,Dryer!J53) -> 0 | V31: =IF(Dryer!K53=0,J31/1020,Dryer!K53) -> 0 | W31: =IF(Dryer!L53=0,K31/1020,Dryer!L53) -> 0 | Y31: Total HAPs | Z31: =SUM(Z15:Z30) -> 0 | AA31: =SUM(AA15:AA30) -> 0 | AB31: 0 | AC31: 0 | AD31: 0 | AE31: 0 | AF31: 0 | AG31: 0 | AH31: 0 | AI31: 0 | AJ31: 0 | AL31: Total HAPs | AM31: =IF(AM$4=0,Z31*8760/2000,Z31*AM$4/2000) -> 0 | AN31: =IF(AN$4=0,AA31*8760/2000,AA31*AN$4/2000) -> 0 | AO31: =IF(AO$4=0,AB31*8760/2000,AB31*AO$4/2000) -> 0 | AP31: =IF(AP$4=0,AC31*8760/2000,AC31*AP$4/2000) -> 0 | AQ31: =IF(AQ$4=0,AD31*8760/2000,AD31*AQ$4/2000) -> 0 | AR31: =IF(AR$4=0,AE31*8760/2000,AE31*AR$4/2000) -> 0 | AS31: =IF(AS$4=0,AF31*8760/2000,AF31*AS$4/2000) -> 0 | AT31: =IF(AT$4=0,AG31*8760/2000,AG31*AT$4/2000) -> 0 | AU31: =IF(AU$4=0,AH31*8760/2000,AH31*AU$4/2000) -> 0 | AV31: =IF(AV$4=0,AI31*8760/2000,AI31*AV$4/2000) -> 0 | AW31: =SUM(AM31:AV31) -> 0 | AY31: Total ton/hr of Self-Cleaning Screens | BC31: =SUMIFS(AZ25:BI25,AZ26:BI26,Calculations!BB35) -> 0 | BE31: Total ton/hr of uncontrolled Self-Cleaning Screens | BI31: =SUMIFS(AZ25:BI25,AZ26:BI26,Calculations!BB35,AZ27:BI27,1) -> 0 | BY31: Total HAPs | BZ31: 0 | CA31: 0 | CB31: 0 | CC31: 0 | CD31: 0 | CE31: 0 | CF31: 0 | CG31: 0 | CH31: 0 | CI31: 0 | CJ31: 0 | CL31: Total HAPs | CM31: 0 | CN31: 0 | CO31: 0 | CP31: 0 | CQ31: 0 | CR31: 0 | CS31: 0 | CT31: 0 | CU31: 0 | CV31: 0 | CW31: 0
A32: Greenhouse Gases (GHG) | B32: (lb/MMBtu) | M32: Greenhouse Gases (GHG) | AY32: Total ton/hr of Column dryers | BC32: =SUMIFS(AZ25:BI25,AZ26:BI26,Calculations!AZ35) -> 0 | BE32: Total ton/hr of uncontrolled Column dryers | BI32: =SUMIFS(AZ25:BI25,AZ26:BI26,Calculations!AZ35,AZ27:BI27,1) -> 0
A33: Carbon Dioxide (CO2) | B33: =53.06*2.20462 -> 116.9771372 | C33: =53.06*2.20462 -> 116.9771372 | D33: 116.9771372 | E33: 116.9771372 | F33: 116.9771372 | G33: 116.9771372 | H33: 116.9771372 | I33: 116.9771372 | J33: 116.9771372 | K33: 116.9771372 | M33: Carbon Dioxide (CO2) | N33: =IF(Dryer!C55=0,B33,Dryer!C55) -> 116.9771372 | O33: =IF(Dryer!D55=0,C33,Dryer!D55) -> 116.9771372 | P33: =IF(Dryer!E55=0,D33,Dryer!E55) -> 116.9771372 | Q33: =IF(Dryer!F55=0,E33,Dryer!F55) -> 116.9771372 | R33: =IF(Dryer!G55=0,F33,Dryer!G55) -> 116.9771372 | S33: =IF(Dryer!H55=0,G33,Dryer!H55) -> 116.9771372 | T33: =IF(Dryer!I55=0,H33,Dryer!I55) -> 116.9771372 | U33: =IF(Dryer!J55=0,I33,Dryer!J55) -> 116.9771372 | V33: =IF(Dryer!K55=0,J33,Dryer!K55) -> 116.9771372 | W33: =IF(Dryer!L55=0,K33,Dryer!L55) -> 116.9771372 | Y33: Carbon Dioxide (CO2) | Z33: =N33*Dryer!$F$15 -> 0 | AA33: =O33*Dryer!$F$16 -> 0 | AB33: =P33*Dryer!$F$17 -> 0 | AC33: =Q33*Dryer!$F$18 -> 0 | AD33: =R33*Dryer!$F$19 -> 0 | AE33: =S33*Dryer!$F$20 -> 0 | AF33: =T33*Dryer!$F$21 -> 0 | AG33: =U33*Dryer!$F$22 -> 0 | AH33: =V33*Dryer!$F$23 -> 0 | AI33: =W33*Dryer!$F$24 -> 0 | AJ33: =SUM(Z33:AI33) -> 0 | AL33: Carbon Dioxide (CO2) | AM33: =IF(AM$4=0,Z33*8760/2000,Z33*AM$4/2000) -> 0 | AN33: =IF(AN$4=0,AA33*8760/2000,AA33*AN$4/2000) -> 0 | AO33: =IF(AO$4=0,AB33*8760/2000,AB33*AO$4/2000) -> 0 | AP33: =IF(AP$4=0,AC33*8760/2000,AC33*AP$4/2000) -> 0 | AQ33: =IF(AQ$4=0,AD33*8760/2000,AD33*AQ$4/2000) -> 0 | AR33: =IF(AR$4=0,AE33*8760/2000,AE33*AR$4/2000) -> 0 | AS33: =IF(AS$4=0,AF33*8760/2000,AF33*AS$4/2000) -> 0 | AT33: =IF(AT$4=0,AG33*8760/2000,AG33*AT$4/2000) -> 0 | AU33: =IF(AU$4=0,AH33*8760/2000,AH33*AU$4/2000) -> 0 | AV33: =IF(AV$4=0,AI33*8760/2000,AI33*AV$4/2000) -> 0 | AW33: =SUM(AM33:AV33) -> 0 | BY33: Carbon Dioxide (CO2) | BZ33: =Z33 -> 0 | CA33: =AA33 -> 0 | CB33: 0 | CC33: 0 | CD33: 0 | CE33: 0 | CF33: 0 | CG33: 0 | CH33: 0 | CI33: 0 | CJ33: =SUM(BZ33:CI33) -> 0 | CL33: Carbon Dioxide (CO2) | CM33: =AM33 -> 0 | CN33: =AN33 -> 0 | CO33: =AO33 -> 0 | CP33: =AP33 -> 0 | CQ33: =AQ33 -> 0 | CR33: =AR33 -> 0 | CS33: =AS33 -> 0 | CT33: =AT33 -> 0 | CU33: =AU33 -> 0 | CV33: =AV33 -> 0 | CW33: =AW33 -> 0
A34: Methane (CH4) | B34: =0.001*2.20462 -> 0.00220462 | C34: =0.001*2.20462 -> 0.00220462 | D34: 0.00220462 | E34: 0.00220462 | F34: 0.00220462 | G34: 0.00220462 | H34: 0.00220462 | I34: 0.00220462 | J34: 0.00220462 | K34: 0.00220462 | M34: Methane (CH4) | N34: =IF(Dryer!C56=0,B34,Dryer!C56) -> 0.00220462 | O34: =IF(Dryer!D56=0,C34,Dryer!D56) -> 0.00220462 | P34: =IF(Dryer!E56=0,D34,Dryer!E56) -> 0.00220462 | Q34: =IF(Dryer!F56=0,E34,Dryer!F56) -> 0.00220462 | R34: =IF(Dryer!G56=0,F34,Dryer!G56) -> 0.00220462 | S34: =IF(Dryer!H56=0,G34,Dryer!H56) -> 0.00220462 | T34: =IF(Dryer!I56=0,H34,Dryer!I56) -> 0.00220462 | U34: =IF(Dryer!J56=0,I34,Dryer!J56) -> 0.00220462 | V34: =IF(Dryer!K56=0,J34,Dryer!K56) -> 0.00220462 | W34: =IF(Dryer!L56=0,K34,Dryer!L56) -> 0.00220462 | Y34: Methane (CH4) | Z34: =N34*Dryer!$F$15 -> 0 | AA34: =O34*Dryer!$F$16 -> 0 | AB34: =P34*Dryer!$F$17 -> 0 | AC34: =Q34*Dryer!$F$18 -> 0 | AD34: =R34*Dryer!$F$19 -> 0 | AE34: =S34*Dryer!$F$20 -> 0 | AF34: =T34*Dryer!$F$21 -> 0 | AG34: =U34*Dryer!$F$22 -> 0 | AH34: =V34*Dryer!$F$23 -> 0 | AI34: =W34*Dryer!$F$24 -> 0 | AJ34: 0 | AL34: Methane (CH4) | AM34: 0 | AN34: 0 | AO34: 0 | AP34: 0 | AQ34: 0 | AR34: 0 | AS34: 0 | AT34: 0 | AU34: 0 | AV34: 0 | AW34: 0 | AZ34: Emission Factor (lb/ton) | BF34: Controlled Emission Factor (lb/ton) | BY34: Methane (CH4) | BZ34: =Z34 -> 0 | CA34: =AA34 -> 0 | CB34: =AB34 -> 0 | CC34: =AC34 -> 0 | CD34: =AD34 -> 0 | CE34: =AE34 -> 0 | CF34: =AF34 -> 0 | CG34: =AG34 -> 0 | CH34: =AH34 -> 0 | CI34: =AI34 -> 0 | CJ34: 0 | CL34: Methane (CH4) | CM34: 0 | CN34: 0 | CO34: 0 | CP34: 0 | CQ34: 0 | CR34: 0 | CS34: 0 | CT34: 0 | CU34: 0 | CV34: 0 | CW34: 0
A35: Nitrous Oxide (N2O) | B35: =0.0001*2.20462 -> 0.000220462 | C35: =0.0001*2.20462 -> 0.000220462 | D35: 0.000220462 | E35: 0.000220462 | F35: 0.000220462 | G35: 0.000220462 | H35: 0.000220462 | I35: 0.000220462 | J35: 0.000220462 | K35: 0.000220462 | M35: Nitrous Oxide (N2O) | N35: =IF(Dryer!C57=0,B35,Dryer!C57) -> 0.000220462 | O35: =IF(Dryer!D57=0,C35,Dryer!D57) -> 0.000220462 | P35: =IF(Dryer!E57=0,D35,Dryer!E57) -> 0.000220462 | Q35: =IF(Dryer!F57=0,E35,Dryer!F57) -> 0.000220462 | R35: =IF(Dryer!G57=0,F35,Dryer!G57) -> 0.000220462 | S35: =IF(Dryer!H57=0,G35,Dryer!H57) -> 0.000220462 | T35: =IF(Dryer!J57=0,H35,Dryer!J57) -> 0.000220462 | U35: =IF(Dryer!K57=0,I35,Dryer!K57) -> 0.000220462 | V35: =IF(Dryer!L57=0,J35,Dryer!L57) -> 0.000220462 | W35: =IF(Dryer!M57=0,K35,Dryer!M57) -> 0.000220462 | Y35: Nitrous Oxide (N2O) | Z35: =N35*Dryer!$F$15 -> 0 | AA35: =O35*Dryer!$F$16 -> 0 | AB35: =P35*Dryer!$F$17 -> 0 | AC35: =Q35*Dryer!$F$18 -> 0 | AD35: =R35*Dryer!$F$19 -> 0 | AE35: =S35*Dryer!$F$20 -> 0 | AF35: =T35*Dryer!$F$21 -> 0 | AG35: =U35*Dryer!$F$22 -> 0 | AH35: =V35*Dryer!$F$23 -> 0 | AI35: =W35*Dryer!$F$24 -> 0 | AJ35: 0 | AL35: Nitrous Oxide (N2O) | AM35: 0 | AN35: 0 | AO35: 0 | AP35: 0 | AQ35: 0 | AR35: 0 | AS35: 0 | AT35: 0 | AU35: 0 | AV35: 0 | AW35: 0 | AZ35: =Datasets!L2 -> column dryer | BA35: =Datasets!L3 -> rack dryer | BB35: =Datasets!L4 -> self‐cleaning screens | BF35: column dryer | BG35: rack dryer | BH35: self‐cleaning screens | BY35: Nitrous Oxide (N2O) | BZ35: 0 | CA35: 0 | CB35: 0 | CC35: 0 | CD35: 0 | CE35: 0 | CF35: 0 | CG35: 0 | CH35: 0 | CI35: 0 | CJ35: 0 | CL35: Nitrous Oxide (N2O) | CM35: 0 | CN35: 0 | CO35: 0 | CP35: 0 | CQ35: 0 | CR35: 0 | CS35: 0 | CT35: 0 | CU35: 0 | CV35: 0 | CW35: 0
A36: * Emission factors for Criteria Pollutants and HAPS from AP-42 Tables 1.4-1, 1.4-2, and 1.4-3. Emission Factors for GHGs from 40CFR98 | M36: * Emission factor equals manufacturer's specified. If no manufacturer guarantee entered, AP-42 emission factors are divided by 1020 MMBtu/MMscf | Y36: Total GHGs | Z36: =SUM(Z33:Z35) -> 0 | AA36: =SUM(AA33:AA35) -> 0 | AB36: 0 | AC36: 0 | AD36: 0 | AE36: 0 | AF36: 0 | AG36: 0 | AH36: 0 | AI36: 0 | AJ36: 0 | AL36: Total GHGs | AM36: 0 | AN36: 0 | AO36: 0 | AP36: 0 | AQ36: 0 | AR36: 0 | AS36: 0 | AT36: 0 | AU36: 0 | AV36: 0 | AW36: 0 | AY36: PM | AZ36: 0.22 | BA36: 3 | BB36: 0.47 | BE36: PM | BF36: =AZ36*(1-$BA$82) -> 0.011 | BG36: 0.15 | BH36: 0.0235 | BY36: Total GHGs | BZ36: =Z36 -> 0 | CA36: =AA36 -> 0 | CB36: =AB36 -> 0 | CC36: =AC36 -> 0 | CD36: =AD36 -> 0 | CE36: =AE36 -> 0 | CF36: =AF36 -> 0 | CG36: =AG36 -> 0 | CH36: =AH36 -> 0 | CI36: =AI36 -> 0 | CJ36: =SUM(CJ33:CJ35) -> 0 | CL36: Total GHGs | CM36: 0 | CN36: 0 | CO36: 0 | CP36: 0 | CQ36: 0 | CR36: 0 | CS36: 0 | CT36: 0 | CU36: 0 | CV36: 0 | CW36: 0
Y37: Greenhouse Gases (GHG) (CO2 Equivalent Basis) | AL37: Greenhouse Gases (GHG) (CO2 Equivalent Basis) | AY37: PM10 | AZ37: 0.055 | BA37: 0.75 | BB37: 0.12 | BE37: PM10 | BF37: 0.00275 | BG37: 0.0375 | BH37: 0.006 | BY37: Greenhouse Gases (GHG) (CO2 Equivalent Basis) | CL37: Greenhouse Gases (GHG) (CO2 Equivalent Basis)
Y38: Carbon Dioxide (CO2) | Z38: =Z33 -> 0 | AA38: =AA33 -> 0 | AB38: 0 | AC38: 0 | AD38: 0 | AE38: 0 | AF38: 0 | AG38: 0 | AH38: 0 | AI38: 0 | AJ38: =SUM(Z38:AI38) -> 0 | AL38: Carbon Dioxide (CO2) | AM38: =IF(AM$4=0,Z38*8760/2000,Z38*AM$4/2000) -> 0 | AN38: =IF(AN$4=0,AA38*8760/2000,AA38*AN$4/2000) -> 0 | AO38: =IF(AO$4=0,AB38*8760/2000,AB38*AO$4/2000) -> 0 | AP38: =IF(AP$4=0,AC38*8760/2000,AC38*AP$4/2000) -> 0 | AQ38: =IF(AQ$4=0,AD38*8760/2000,AD38*AQ$4/2000) -> 0 | AR38: =IF(AR$4=0,AE38*8760/2000,AE38*AR$4/2000) -> 0 | AS38: =IF(AS$4=0,AF38*8760/2000,AF38*AS$4/2000) -> 0 | AT38: =IF(AT$4=0,AG38*8760/2000,AG38*AT$4/2000) -> 0 | AU38: =IF(AU$4=0,AH38*8760/2000,AH38*AU$4/2000) -> 0 | AV38: =IF(AV$4=0,AI38*8760/2000,AI38*AV$4/2000) -> 0 | AW38: =SUM(AM38:AV38) -> 0 | AY38: PM2.5 | AZ38: 0.0094 | BA38: 0.13 | BB38: 0.02 | BE38: PM2.5 | BF38: 0.00047 | BG38: 0.0065 | BH38: 0.001 | BY38: Carbon Dioxide (CO2) | BZ38: =Z38 -> 0 | CA38: =AA38 -> 0 | CB38: 0 | CC38: 0 | CD38: 0 | CE38: 0 | CF38: 0 | CG38: 0 | CH38: 0 | CI38: 0 | CJ38: =SUM(BZ38:CI38) -> 0 | CL38: Carbon Dioxide (CO2) | CM38: =AM38 -> 0 | CN38: =AN38 -> 0 | CO38: =AO38 -> 0 | CP38: =AP38 -> 0 | CQ38: =AQ38 -> 0 | CR38: =AR38 -> 0 | CS38: =AS38 -> 0 | CT38: =AT38 -> 0 | CU38: =AU38 -> 0 | CV38: =AV38 -> 0 | CW38: =AW38 -> 0
Y39: Methane (CH4) | Z39: =Z34*25 -> 0 | AA39: =AA34*25 -> 0 | AB39: 0 | AC39: 0 | AD39: 0 | AE39: 0 | AF39: 0 | AG39: 0 | AH39: 0 | AI39: 0 | AJ39: 0 | AL39: Methane (CH4) | AM39: 0 | AN39: 0 | AO39: 0 | AP39: 0 | AQ39: 0 | AR39: 0 | AS39: 0 | AT39: 0 | AU39: 0 | AV39: 0 | AW39: 0 | BY39: Methane (CH4) | BZ39: =Z39 -> 0 | CA39: =AA39 -> 0 | CB39: =AB39 -> 0 | CC39: =AC39 -> 0 | CD39: =AD39 -> 0 | CE39: =AE39 -> 0 | CF39: =AF39 -> 0 | CG39: =AG39 -> 0 | CH39: =AH39 -> 0 | CI39: =AI39 -> 0 | CJ39: 0 | CL39: Methane (CH4) | CM39: 0 | CN39: 0 | CO39: 0 | CP39: 0 | CQ39: 0 | CR39: 0 | CS39: 0 | CT39: 0 | CU39: 0 | CV39: 0 | CW39: 0
Y40: Nitrous Oxide (N2O) | Z40: =Z35*298 -> 0 | AA40: =AA35*298 -> 0 | AB40: 0 | AC40: 0 | AD40: 0 | AE40: 0 | AF40: 0 | AG40: 0 | AH40: 0 | AI40: 0 | AJ40: 0 | AL40: Nitrous Oxide (N2O) | AM40: 0 | AN40: 0 | AO40: 0 | AP40: 0 | AQ40: 0 | AR40: 0 | AS40: 0 | AT40: 0 | AU40: 0 | AV40: 0 | AW40: 0 | AY40: Capture Efficiency | BA40: 1 | BY40: Nitrous Oxide (N2O) | BZ40: 0 | CA40: 0 | CB40: 0 | CC40: 0 | CD40: 0 | CE40: 0 | CF40: 0 | CG40: 0 | CH40: 0 | CI40: 0 | CJ40: 0 | CL40: Nitrous Oxide (N2O) | CM40: 0 | CN40: 0 | CO40: 0 | CP40: 0 | CQ40: 0 | CR40: 0 | CS40: 0 | CT40: 0 | CU40: 0 | CV40: 0 | CW40: 0
Y41: Total GHGs | Z41: =SUM(Z38:Z40) -> 0 | AA41: 0 | AB41: 0 | AC41: 0 | AD41: 0 | AE41: 0 | AF41: 0 | AG41: 0 | AH41: 0 | AI41: 0 | AJ41: 0 | AL41: Total GHGs | AM41: 0 | AN41: 0 | AO41: 0 | AP41: 0 | AQ41: 0 | AR41: 0 | AS41: 0 | AT41: 0 | AU41: 0 | AV41: 0 | AW41: 0 | AY41: Control Efficiency | BA41: 0.95 | BY41: Total GHGs | BZ41: =Z41 -> 0 | CA41: =AA41 -> 0 | CB41: =AB41 -> 0 | CC41: =AC41 -> 0 | CD41: =AD41 -> 0 | CE41: =AE41 -> 0 | CF41: =AF41 -> 0 | CG41: =AG41 -> 0 | CH41: =AH41 -> 0 | CI41: =AI41 -> 0 | CJ41: =SUM(CJ38:CJ40) -> 0 | CL41: Total GHGs | CM41: 0 | CN41: 0 | CO41: 0 | CP41: 0 | CQ41: 0 | CR41: 0 | CS41: 0 | CT41: 0 | CU41: 0 | CV41: 0 | CW41: 0
A42: Dry Mill: Grain Drying Operations
A43: Emissions from Dry Mill's Grain Drying - Drying Process Emissions
AL44: PTE in ton/yr = PTE in lb/hr x annual hours limit / 2000
A45: Emission Factors* | M45: Chosen Emission Factors: Manufacturer's Guarantee (If Available) or AP-42 in lb/MMBtu* | Y45: PTE in lb/hr = Emission Factor x Maximum Rated Capacity, MMBtu/hr | AL45: Annual hours limit | AM45: =IF(Dryer!R15=0,0,Dryer!R15/Dryer!M15) -> 0 | AN45: =IF(Dryer!R16=0,0,Dryer!R16/Dryer!M16) -> 0 | AO45: =IF(Dryer!R17=0,0,Dryer!R17/Dryer!M17) -> 0 | AP45: =IF(Dryer!R18=0,0,Dryer!R18/Dryer!M18) -> 0 | AQ45: =IF(Dryer!R19=0,0,Dryer!R19/Dryer!M19) -> 0 | AR45: =IF(Dryer!R20=0,0,Dryer!R20/Dryer!M20) -> 0 | AS45: =IF(Dryer!R21=0,0,Dryer!R21/Dryer!M21) -> 0 | AT45: =IF(Dryer!R22=0,0,Dryer!R22/Dryer!M22) -> 0 | AU45: =IF(Dryer!R23=0,0,Dryer!R23/Dryer!M23) -> 0 | AV45: =IF(Dryer!R24=0,0,Dryer!R24/Dryer!M24) -> 0 | AY45: PTE in lb/hr based on grain drying process = Emission Factor (lb/ton) x Maximum permitted hourly rate (ton/hr) | BL45: PTE in lb/yr based on grain drying process = Emission Factor (lb/ton) x Maximum permitted annual rate (ton/yr) | BY45: Final PTE in lb/hr = Combustion Emissions + Process Emissions | CL45: Final PTE in ton/yr = Combustion Emissions + Process Emissions
A46: Pollutant | B46: 1st Dryer | C46: 2nd Dryer | D46: 3rd Dryer | E46: 4th Dryer | F46: 5th Dryer | G46: 6th Dryer | H46: 7th Dryer | I46: 8th Dryer | J46: 9th Dryer | K46: 10th Dryer | M46: Pollutant | N46: 1st Dryer | O46: 2nd Dryer | P46: 3rd Dryer | Q46: 4th Dryer | R46: 5th Dryer | S46: 6th Dryer | T46: 7th Dryer | U46: 8th Dryer | V46: 9th Dryer | W46: 10th Dryer | Y46: Pollutant | Z46: 1st Dryer | AA46: 2nd Dryer | AB46: 3rd Dryer | AC46: 4th Dryer | AD46: 5th Dryer | AE46: 6th Dryer | AF46: 7th Dryer | AG46: 8th Dryer | AH46: 9th Dryer | AI46: 10th Dryer | AJ46: Total | AL46: Pollutant | AM46: 1st Dryer | AN46: 2nd Dryer | AO46: 3rd Dryer | AP46: 4th Dryer | AQ46: 5th Dryer | AR46: 6th Dryer | AS46: 7th Dryer | AT46: 8th Dryer | AU46: 9th Dryer | AV46: 10th Dryer | AW46: Total | AY46: Pollutant | AZ46: 1st Dryer | BA46: 2nd Dryer | BB46: 3rd Dryer | BC46: 4th Dryer | BD46: 5th Dryer | BE46: 6th Dryer | BF46: 7th Dryer | BG46: 8th Dryer | BH46: 9th Dryer | BI46: 10th Dryer | BJ46: Total | BL46: Pollutant | BM46: 1st Dryer | BN46: 2nd Dryer | BO46: 3rd Dryer | BP46: 4th Dryer | BQ46: 5th Dryer | BR46: 6th Dryer | BS46: 7th Dryer | BT46: 8th Dryer | BU46: 9th Dryer | BV46: 10th Dryer | BW46: Total | BY46: Pollutant | BZ46: 1st Dryer | CA46: 2nd Dryer | CB46: 3rd Dryer | CC46: 4th Dryer | CD46: 5th Dryer | CE46: 6th Dryer | CF46: 7th Dryer | CG46: 8th Dryer | CH46: 9th Dryer | CI46: 10th Dryer | CJ46: Total | CL46: Pollutant | CM46: 1st Dryer | CN46: 2nd Dryer | CO46: 3rd Dryer | CP46: 4th Dryer | CQ46: 5th Dryer | CR46: 6th Dryer | CS46: 7th Dryer | CT46: 8th Dryer | CU46: 9th Dryer | CV46: 10th Dryer | CW46: Total
B47: (lb/MMscf) | Z47: (lb/hr) | AM47: (ton/year) | AZ47: (lb/hr) | BM47: (lb/year) | BZ47: (lb/hr) | CM47: (ton/year)
A48: PMfilterable | B48: 7.6 | C48: 7.6 | D48: 7.6 | E48: 7.6 | F48: 7.6 | G48: 7.6 | H48: 7.6 | I48: 7.6 | J48: 7.6 | K48: 7.6 | M48: PMfilterable | N48: =IF(Dryer!C60=0,B48/1020,Dryer!C60) -> 0.007450980392 | O48: =IF(Dryer!D60=0,C48/1020,Dryer!D60) -> 0.007450980392 | P48: =IF(Dryer!E60=0,D48/1020,Dryer!E60) -> 0.007450980392 | Q48: =IF(Dryer!F60=0,E48/1020,Dryer!F60) -> 0.007450980392 | R48: =IF(Dryer!G60=0,F48/1020,Dryer!G60) -> 0.007450980392 | S48: =IF(Dryer!H60=0,G48/1020,Dryer!H60) -> 0.007450980392 | T48: =IF(Dryer!I60=0,H48/1020,Dryer!I60) -> 0.007450980392 | U48: =IF(Dryer!J60=0,I48/1020,Dryer!J60) -> 0.007450980392 | V48: =IF(Dryer!K60=0,J48/1020,Dryer!K60) -> 0.007450980392 | W48: =IF(Dryer!L60=0,K48/1020,Dryer!L60) -> 0.007450980392 | Y48: PMfilterable | Z48: =IF(AZ68=1,N48*Dryer!$O$15,N48*Dryer!$O$15*$BA$81*(1-$BA$82)) -> 0 | AA48: =IF(BA68=1,O48*Dryer!$O$16,O48*Dryer!$O$16*$BA$81*(1-$BA$82)) -> 0 | AB48: =IF(BB68=1,P48*Dryer!$O$17,P48*Dryer!$O$17*$BA$81*(1-$BA$82)) -> 0 | AC48: =IF(BC68=1,Q48*Dryer!$O$18,Q48*Dryer!$O$18*$BA$81*(1-$BA$82)) -> 0 | AD48: =IF(BD68=1,R48*Dryer!$O$19,R48*Dryer!$O$19*$BA$81*(1-$BA$82)) -> 0 | AE48: =IF(BE68=1,S48*Dryer!$O$20,S48*Dryer!$O$20*$BA$81*(1-$BA$82)) -> 0 | AF48: =IF(BF68=1,T48*Dryer!$O$21,T48*Dryer!$O$21*$BA$81*(1-$BA$82)) -> 0 | AG48: =IF(BG68=1,U48*Dryer!$O$22,U48*Dryer!$O$22*$BA$81*(1-$BA$82)) -> 0 | AH48: =IF(BH68=1,V48*Dryer!$O$23,V48*Dryer!$O$23*$BA$81*(1-$BA$82)) -> 0 | AI48: =IF(BI68=1,W48*Dryer!$O$24,W48*Dryer!$O$24*$BA$81*(1-$BA$82)) -> 0 | AJ48: =SUM(Z48:AI48) -> 0 | AL48: PMfilterable | AM48: =IF(AM$45=0,Z48*8760/2000,Z48*AM$45/2000) -> 0 | AN48: 0 | AO48: 0 | AP48: 0 | AQ48: 0 | AR48: 0 | AS48: 0 | AT48: 0 | AU48: 0 | AV48: 0 | AW48: =SUM(AM48:AV48) -> 0 | AY48: PMfilterable | AZ48: =IF(Dryer!P15="",3,LOOKUP(Dryer!P15,Calculations!$AZ$35:$BB$35,Calculations!$AZ$36:$BB$36))*Dryer!M15 -> 0 | BA48: =IF(Dryer!P16="",3,LOOKUP(Dryer!P16,Calculations!$AZ$35:$BB$35,Calculations!$AZ$36:$BB$36))*Dryer!M16 -> 0 | BB48: =IF(Dryer!P17="",3,LOOKUP(Dryer!P17,Calculations!$AZ$35:$BB$35,Calculations!$AZ$36:$BB$36))*Dryer!M17 -> 0 | BC48: =IF(Dryer!P18="",3,LOOKUP(Dryer!P18,Calculations!$AZ$35:$BB$35,Calculations!$AZ$36:$BB$36))*Dryer!M18 -> 0 | BD48: =IF(Dryer!P19="",3,LOOKUP(Dryer!P19,Calculations!$AZ$35:$BB$35,Calculations!$AZ$36:$BB$36))*Dryer!M19 -> 0 | BE48: =IF(Dryer!P20="",3,LOOKUP(Dryer!P20,Calculations!$AZ$35:$BB$35,Calculations!$AZ$36:$BB$36))*Dryer!M20 -> 0 | BF48: =IF(Dryer!P21="",3,LOOKUP(Dryer!P21,Calculations!$AZ$35:$BB$35,Calculations!$AZ$36:$BB$36))*Dryer!M21 -> 0 | BG48: =IF(Dryer!P22="",3,LOOKUP(Dryer!P22,Calculations!$AZ$35:$BB$35,Calculations!$AZ$36:$BB$36))*Dryer!M22 -> 0 | BH48: =IF(Dryer!P23="",3,LOOKUP(Dryer!P23,Calculations!$AZ$35:$BB$35,Calculations!$AZ$36:$BB$36))*Dryer!M23 -> 0 | BI48: =IF(Dryer!P24="",3,LOOKUP(Dryer!P24,Calculations!$AZ$35:$BB$35,Calculations!$AZ$36:$BB$36))*Dryer!M24 -> 0 | BJ48: =IF(BC69=0,SUM(AZ48:BI48),IF(BC69<=BC71,BC69*BA77,IF(BC69<=(BC71+BC72),(BC71*BA77+(BC69-BC71)*BB77),(BC71*BA77+BC72*BB77+(BC69-BC71-BC72)*AZ77)))) -> 0 | BL48: PMfilterable | BM48: =IF(Dryer!P15="",3,LOOKUP(Dryer!P15,Calculations!$AZ$35:$BB$35,Calculations!$AZ$36:$BB$36))*Dryer!M15*IF(AM45=0,8760,AM45) -> 0 | BN48: =IF(Dryer!P16="",3,LOOKUP(Dryer!P16,Calculations!$AZ$35:$BB$35,Calculations!$AZ$36:$BB$36))*Dryer!M16*IF(AN45=0,8760,AN45) -> 0 | BO48: =IF(Dryer!P17="",3,LOOKUP(Dryer!P17,Calculations!$AZ$35:$BB$35,Calculations!$AZ$36:$BB$36))*Dryer!M17*IF(AO45=0,8760,AO45) -> 0 | BP48: =IF(Dryer!P18="",3,LOOKUP(Dryer!P18,Calculations!$AZ$35:$BB$35,Calculations!$AZ$36:$BB$36))*Dryer!M18*IF(AP45=0,8760,AP45) -> 0 | BQ48: =IF(Dryer!G60="",3,LOOKUP(Dryer!G60,Calculations!$AZ$35:$BB$35,Calculations!$AZ$36:$BB$36))*Dryer!M19*IF(AQ45=0,8760,AQ45) -> 0 | BR48: =IF(Dryer!P20="",3,LOOKUP(Dryer!P20,Calculations!$AZ$35:$BB$35,Calculations!$AZ$36:$BB$36))*Dryer!M20*IF(AR45=0,8760,AR45) -> 0 | BS48: =IF(Dryer!P21="",3,LOOKUP(Dryer!P21,Calculations!$AZ$35:$BB$35,Calculations!$AZ$36:$BB$36))*Dryer!M21*IF(AS45=0,8760,AS45) -> 0 | BT48: =IF(Dryer!G63="",3,LOOKUP(Dryer!G63,Calculations!$AZ$35:$BB$35,Calculations!$AZ$36:$BB$36))*Dryer!M22*IF(AT45=0,8760,AT45) -> 0 | BU48: =IF(Dryer!P23="",3,LOOKUP(Dryer!P23,Calculations!$AZ$35:$BB$35,Calculations!$AZ$36:$BB$36))*Dryer!M23*IF(AU45=0,8760,AU45) -> 0 | BV48: =IF(Dryer!P24="",3,LOOKUP(Dryer!P24,Calculations!$AZ$35:$BB$35,Calculations!$AZ$36:$BB$36))*Dryer!M24*IF(AV45=0,8760,AV45) -> 0 | BW48: =IF(BC70=0,SUM(BM48:BV48),IF(BC70<=BC71*8760,BC70*BA77,IF(BC70<=(BC71+BC72)*8760,(BC71*BA77+(BC70-BC71)*BB77),(BC71*BA77+BC72*BB77+(BC70-BC71-BC72)*AZ77)))) -> 0 | BY48: PMfilterable | BZ48: =Z48+AZ55 -> 0 | CA48: =AA48+BA55 -> 0 | CB48: 0 | CC48: 0 | CD48: 0 | CE48: 0 | CF48: 0 | CG48: 0 | CH48: 0 | CI48: 0 | CJ48: =AJ48+BJ55 -> 0 | CL48: PMfilterable | CM48: =AM48+BM55/2000 -> 0 | CN48: =AN48+BN55/2000 -> 0 | CO48: 0 | CP48: 0 | CQ48: 0 | CR48: 0 | CS48: 0 | CT48: 0 | CU48: 0 | CV48: 0 | CW48: 0
A49: PM10 | B49: 7.6 | C49: 7.6 | D49: 7.6 | E49: 7.6 | F49: 7.6 | G49: 7.6 | H49: 7.6 | I49: 7.6 | J49: 7.6 | K49: 7.6 | M49: PM10 | N49: =IF(Dryer!C61=0,B49/1020,Dryer!C61) -> 0.007450980392 | O49: =IF(Dryer!D61=0,C49/1020,Dryer!D61) -> 0.007450980392 | P49: =IF(Dryer!E61=0,D49/1020,Dryer!E61) -> 0.007450980392 | Q49: =IF(Dryer!F61=0,E49/1020,Dryer!F61) -> 0.007450980392 | R49: =IF(Dryer!G61=0,F49/1020,Dryer!G61) -> 0.007450980392 | S49: =IF(Dryer!H61=0,G49/1020,Dryer!H61) -> 0.007450980392 | T49: =IF(Dryer!I61=0,H49/1020,Dryer!I61) -> 0.007450980392 | U49: =IF(Dryer!J61=0,I49/1020,Dryer!J61) -> 0.007450980392 | V49: =IF(Dryer!K61=0,J49/1020,Dryer!K61) -> 0.007450980392 | W49: =IF(Dryer!L61=0,K49/1020,Dryer!L61) -> 0.007450980392 | Y49: PM10 | Z49: =IF(AZ68=1,N49*Dryer!$O$15,N49*Dryer!$O$15*$BA$81*(1-$BA$82)) -> 0 | AA49: =IF(BA68=1,O49*Dryer!$O$16,O49*Dryer!$O$16*$BA$81*(1-$BA$82)) -> 0 | AB49: =IF(BB68=1,P49*Dryer!$O$17,P49*Dryer!$O$17*$BA$81*(1-$BA$82)) -> 0 | AC49: =IF(BC68=1,Q49*Dryer!$O$18,Q49*Dryer!$O$18*$BA$81*(1-$BA$82)) -> 0 | AD49: =IF(BD68=1,R49*Dryer!$O$19,R49*Dryer!$O$19*$BA$81*(1-$BA$82)) -> 0 | AE49: =IF(BE68=1,S49*Dryer!$O$20,S49*Dryer!$O$20*$BA$81*(1-$BA$82)) -> 0 | AF49: =IF(BF68=1,T49*Dryer!$O$21,T49*Dryer!$O$21*$BA$81*(1-$BA$82)) -> 0 | AG49: =IF(BG68=1,U49*Dryer!$O$22,U49*Dryer!$O$22*$BA$81*(1-$BA$82)) -> 0 | AH49: =IF(BH68=1,V49*Dryer!$O$23,V49*Dryer!$O$23*$BA$81*(1-$BA$82)) -> 0 | AI49: =IF(BI68=1,W49*Dryer!$O$24,W49*Dryer!$O$24*$BA$81*(1-$BA$82)) -> 0 | AJ49: =SUM(Z49:AI49) -> 0 | AL49: PM10 | AM49: 0 | AN49: 0 | AO49: 0 | AP49: 0 | AQ49: 0 | AR49: 0 | AS49: 0 | AT49: 0 | AU49: 0 | AV49: 0 | AW49: =SUM(AM49:AV49) -> 0 | AY49: PM10 | AZ49: =IF(Dryer!P15="",0.75,LOOKUP(Dryer!P15,Calculations!$AZ$35:$BB$35,Calculations!$AZ$37:$BB$37))*Dryer!M15 -> 0 | BA49: =IF(Dryer!P16="",0.75,LOOKUP(Dryer!P16,Calculations!$AZ$35:$BB$35,Calculations!$AZ$37:$BB$37))*Dryer!M16 -> 0 | BB49: =IF(Dryer!P17="",0.75,LOOKUP(Dryer!P17,Calculations!$AZ$35:$BB$35,Calculations!$AZ$37:$BB$37))*Dryer!M17 -> 0 | BC49: =IF(Dryer!P18="",0.75,LOOKUP(Dryer!P18,Calculations!$AZ$35:$BB$35,Calculations!$AZ$37:$BB$37))*Dryer!M18 -> 0 | BD49: =IF(Dryer!P19="",0.75,LOOKUP(Dryer!P19,Calculations!$AZ$35:$BB$35,Calculations!$AZ$37:$BB$37))*Dryer!M19 -> 0 | BE49: =IF(Dryer!P20="",0.75,LOOKUP(Dryer!P20,Calculations!$AZ$35:$BB$35,Calculations!$AZ$37:$BB$37))*Dryer!M20 -> 0 | BF49: =IF(Dryer!P21="",0.75,LOOKUP(Dryer!P21,Calculations!$AZ$35:$BB$35,Calculations!$AZ$37:$BB$37))*Dryer!M21 -> 0 | BG49: =IF(Dryer!P22="",0.75,LOOKUP(Dryer!P22,Calculations!$AZ$35:$BB$35,Calculations!$AZ$37:$BB$37))*Dryer!M22 -> 0 | BH49: =IF(Dryer!P23="",0.75,LOOKUP(Dryer!P23,Calculations!$AZ$35:$BB$35,Calculations!$AZ$37:$BB$37))*Dryer!M23 -> 0 | BI49: =IF(Dryer!P24="",0.75,LOOKUP(Dryer!P24,Calculations!$AZ$35:$BB$35,Calculations!$AZ$37:$BB$37))*Dryer!M24 -> 0 | BJ49: =IF(BC69=0,SUM(AZ49:BI49),IF(BC69<=BC71,BC69*BA78,IF(BC69<=(BC71+BC72),(BC71*BA78+(BC69-BC71)*BB78),(BC71*BA78+BC72*BB78+(BC69-BC71-BC72)*AZ78)))) -> 0 | BL49: PM10 | BM49: =IF(Dryer!P15="",0.75,LOOKUP(Dryer!P15,Calculations!$AZ$35:$BB$35,Calculations!$AZ$37:$BB$37))*Dryer!M15*IF(AM45=0,8760,AM45) -> 0 | BN49: =IF(Dryer!P16="",0.75,LOOKUP(Dryer!P16,Calculations!$AZ$35:$BB$35,Calculations!$AZ$37:$BB$37))*Dryer!M16*IF(AN45=0,8760,AN45) -> 0 | BO49: =IF(Dryer!P17="",0.75,LOOKUP(Dryer!P17,Calculations!$AZ$35:$BB$35,Calculations!$AZ$37:$BB$37))*Dryer!M17*IF(AO45=0,8760,AO45) -> 0 | BP49: =IF(Dryer!P18="",0.75,LOOKUP(Dryer!P18,Calculations!$AZ$35:$BB$35,Calculations!$AZ$37:$BB$37))*Dryer!M18*IF(AP45=0,8760,AP45) -> 0 | BQ49: =IF(Dryer!G60="",0.75,LOOKUP(Dryer!G60,Calculations!$AZ$35:$BB$35,Calculations!$AZ$37:$BB$37))*Dryer!M19*IF(AQ45=0,8760,AQ45) -> 0 | BR49: =IF(Dryer!P20="",0.75,LOOKUP(Dryer!P20,Calculations!$AZ$35:$BB$35,Calculations!$AZ$37:$BB$37))*Dryer!M20*IF(AR45=0,8760,AR45) -> 0 | BS49: =IF(Dryer!P21="",0.75,LOOKUP(Dryer!P21,Calculations!$AZ$35:$BB$35,Calculations!$AZ$37:$BB$37))*Dryer!M21*IF(AS45=0,8760,AS45) -> 0 | BT49: =IF(Dryer!G63="",0.75,LOOKUP(Dryer!G63,Calculations!$AZ$35:$BB$35,Calculations!$AZ$37:$BB$37))*Dryer!M22*IF(AT45=0,8760,AT45) -> 0 | BU49: =IF(Dryer!P23="",0.75,LOOKUP(Dryer!P23,Calculations!$AZ$35:$BB$35,Calculations!$AZ$37:$BB$37))*Dryer!M23*IF(AU45=0,8760,AU45) -> 0 | BV49: =IF(Dryer!P24="",0.75,LOOKUP(Dryer!P24,Calculations!$AZ$35:$BB$35,Calculations!$AZ$37:$BB$37))*Dryer!M24*IF(AV45=0,8760,AV45) -> 0 | BW49: =IF(BC70=0,SUM(BM49:BV49),IF(BC70<=BC71*8760,BC70*BA78,IF(BC70<=(BC71+BC72)*8760,(BC71*BA78+(BC70-BC71)*BB78),(BC71*BA78+BC72*BB78+(BC70-BC71-BC72)*AZ78)))) -> 0 | BY49: PM10 | BZ49: =Z49+AZ56 -> 0 | CA49: =AA49+BA56 -> 0 | CB49: =AB49+BB56 -> 0 | CC49: =AC49+BC56 -> 0 | CD49: =AD49+BD56 -> 0 | CE49: =AE49+BE56 -> 0 | CF49: =AF49+BF56 -> 0 | CG49: =AG49+BG56 -> 0 | CH49: =AH49+BH56 -> 0 | CI49: =AI49+BI56 -> 0 | CJ49: =AJ49+BJ56 -> 0 | CL49: PM10 | CM49: =AM49+BM56/2000 -> 0 | CN49: =AN49+BN56/2000 -> 0 | CO49: =AO49+BO56/2000 -> 0 | CP49: =AP49+BP56/2000 -> 0 | CQ49: =AQ49+BQ56/2000 -> 0 | CR49: =AR49+BR56/2000 -> 0 | CS49: =AS49+BS56/2000 -> 0 | CT49: =AT49+BT56/2000 -> 0 | CU49: =AU49+BU56/2000 -> 0 | CV49: =AV49+BV56/2000 -> 0 | CW49: =AW49+BW56/2000 -> 0
A50: PM2.5 | B50: 7.6 | C50: 7.6 | D50: 7.6 | E50: 7.6 | F50: 7.6 | G50: 7.6 | H50: 7.6 | I50: 7.6 | J50: 7.6 | K50: 7.6 | M50: PM2.5 | N50: =IF(Dryer!C62=0,B50/1020,Dryer!C62) -> 0.007450980392 | O50: =IF(Dryer!D62=0,C50/1020,Dryer!D62) -> 0.007450980392 | P50: =IF(Dryer!E62=0,D50/1020,Dryer!E62) -> 0.007450980392 | Q50: =IF(Dryer!F62=0,E50/1020,Dryer!F62) -> 0.007450980392 | R50: =IF(Dryer!G62=0,F50/1020,Dryer!G62) -> 0.007450980392 | S50: =IF(Dryer!H62=0,G50/1020,Dryer!H62) -> 0.007450980392 | T50: =IF(Dryer!I62=0,H50/1020,Dryer!I62) -> 0.007450980392 | U50: =IF(Dryer!J62=0,I50/1020,Dryer!J62) -> 0.007450980392 | V50: =IF(Dryer!K62=0,J50/1020,Dryer!K62) -> 0.007450980392 | W50: =IF(Dryer!L62=0,K50/1020,Dryer!L62) -> 0.007450980392 | Y50: PM2.5 | Z50: =IF(AZ68=1,N50*Dryer!$O$15,N50*Dryer!$O$15*$BA$81*(1-$BA$82)) -> 0 | AA50: =IF(BA68=1,O50*Dryer!$O$16,O50*Dryer!$O$16*$BA$81*(1-$BA$82)) -> 0 | AB50: =IF(BB68=1,P50*Dryer!$O$17,P50*Dryer!$O$17*$BA$81*(1-$BA$82)) -> 0 | AC50: =IF(BC68=1,Q50*Dryer!$O$18,Q50*Dryer!$O$18*$BA$81*(1-$BA$82)) -> 0 | AD50: =IF(BD68=1,R50*Dryer!$O$19,R50*Dryer!$O$19*$BA$81*(1-$BA$82)) -> 0 | AE50: =IF(BE68=1,S50*Dryer!$O$20,S50*Dryer!$O$20*$BA$81*(1-$BA$82)) -> 0 | AF50: =IF(BF68=1,T50*Dryer!$O$21,T50*Dryer!$O$21*$BA$81*(1-$BA$82)) -> 0 | AG50: =IF(BG68=1,U50*Dryer!$O$22,U50*Dryer!$O$22*$BA$81*(1-$BA$82)) -> 0 | AH50: =IF(BH68=1,V50*Dryer!$O$23,V50*Dryer!$O$23*$BA$81*(1-$BA$82)) -> 0 | AI50: =IF(BI68=1,W50*Dryer!$O$24,W50*Dryer!$O$24*$BA$81*(1-$BA$82)) -> 0 | AJ50: 0 | AL50: PM2.5 | AM50: 0 | AN50: 0 | AO50: 0 | AP50: 0 | AQ50: 0 | AR50: 0 | AS50: 0 | AT50: 0 | AU50: 0 | AV50: 0 | AW50: 0 | AY50: PM2.5 | AZ50: =IF(Dryer!P15="",0.13,LOOKUP(Dryer!P15,Calculations!$AZ$35:$BB$35,Calculations!$AZ$38:$BB$38))*Dryer!M15 -> 0 | BA50: =IF(Dryer!P16="",0.13,LOOKUP(Dryer!P16,Calculations!$AZ$35:$BB$35,Calculations!$AZ$38:$BB$38))*Dryer!M16 -> 0 | BB50: =IF(Dryer!P17="",0.13,LOOKUP(Dryer!P17,Calculations!$AZ$35:$BB$35,Calculations!$AZ$38:$BB$38))*Dryer!M17 -> 0 | BC50: =IF(Dryer!P18="",0.13,LOOKUP(Dryer!P18,Calculations!$AZ$35:$BB$35,Calculations!$AZ$38:$BB$38))*Dryer!M18 -> 0 | BD50: =IF(Dryer!P19="",0.13,LOOKUP(Dryer!P19,Calculations!$AZ$35:$BB$35,Calculations!$AZ$38:$BB$38))*Dryer!M19 -> 0 | BE50: =IF(Dryer!P20="",0.13,LOOKUP(Dryer!P20,Calculations!$AZ$35:$BB$35,Calculations!$AZ$38:$BB$38))*Dryer!M20 -> 0 | BF50: =IF(Dryer!P21="",0.13,LOOKUP(Dryer!P21,Calculations!$AZ$35:$BB$35,Calculations!$AZ$38:$BB$38))*Dryer!M21 -> 0 | BG50: =IF(Dryer!P22="",0.13,LOOKUP(Dryer!P22,Calculations!$AZ$35:$BB$35,Calculations!$AZ$38:$BB$38))*Dryer!M22 -> 0 | BH50: =IF(Dryer!P23="",0.13,LOOKUP(Dryer!P23,Calculations!$AZ$35:$BB$35,Calculations!$AZ$38:$BB$38))*Dryer!M23 -> 0 | BI50: =IF(Dryer!P24="",0.13,LOOKUP(Dryer!P24,Calculations!$AZ$35:$BB$35,Calculations!$AZ$38:$BB$38))*Dryer!M24 -> 0 | BJ50: =IF(BC69=0,SUM(AZ50:BI50),IF(BC69<=BC71,BC69*BA79,IF(BC69<=(BC71+BC72),(BC71*BA79+(BC69-BC71)*BB79),(BC71*BA79+BC72*BB79+(BC69-BC71-BC72)*AZ79)))) -> 0 | BL50: PM2.5 | BM50: =IF(Dryer!P15="",0.13,LOOKUP(Dryer!P15,Calculations!$AZ$35:$BB$35,Calculations!$AZ$38:$BB$38))*Dryer!M15*IF(AM45=0,8760,AM45) -> 0 | BN50: =IF(Dryer!P16="",0.13,LOOKUP(Dryer!P16,Calculations!$AZ$35:$BB$35,Calculations!$AZ$38:$BB$38))*Dryer!M16*IF(AN45=0,8760,AN45) -> 0 | BO50: =IF(Dryer!P17="",0.13,LOOKUP(Dryer!P17,Calculations!$AZ$35:$BB$35,Calculations!$AZ$38:$BB$38))*Dryer!M17*IF(AO45=0,8760,AO45) -> 0 | BP50: =IF(Dryer!P18="",0.13,LOOKUP(Dryer!P18,Calculations!$AZ$35:$BB$35,Calculations!$AZ$38:$BB$38))*Dryer!M18*IF(AP45=0,8760,AP45) -> 0 | BQ50: =IF(Dryer!G60="",0.13,LOOKUP(Dryer!G60,Calculations!$AZ$35:$BB$35,Calculations!$AZ$38:$BB$38))*Dryer!M19*IF(AQ45=0,8760,AQ45) -> 0 | BR50: =IF(Dryer!P20="",0.13,LOOKUP(Dryer!P20,Calculations!$AZ$35:$BB$35,Calculations!$AZ$38:$BB$38))*Dryer!M20*IF(AR45=0,8760,AR45) -> 0 | BS50: =IF(Dryer!P21="",0.13,LOOKUP(Dryer!P21,Calculations!$AZ$35:$BB$35,Calculations!$AZ$38:$BB$38))*Dryer!M21*IF(AS45=0,8760,AS45) -> 0 | BT50: =IF(Dryer!G63="",0.13,LOOKUP(Dryer!G63,Calculations!$AZ$35:$BB$35,Calculations!$AZ$38:$BB$38))*Dryer!M22*IF(AT45=0,8760,AT45) -> 0 | BU50: =IF(Dryer!P23="",0.13,LOOKUP(Dryer!P23,Calculations!$AZ$35:$BB$35,Calculations!$AZ$38:$BB$38))*Dryer!M23*IF(AU45=0,8760,AU45) -> 0 | BV50: =IF(Dryer!P24="",0.13,LOOKUP(Dryer!P24,Calculations!$AZ$35:$BB$35,Calculations!$AZ$38:$BB$38))*Dryer!M24*IF(AV45=0,8760,AV45) -> 0 | BW50: =IF(BC70=0,SUM(BM50:BV50),IF(BC70<=BC71*8760,BC70*BA79,IF(BC70<=(BC71+BC72)*8760,(BC71*BA79+(BC70-BC71)*BB79),(BC71*BA79+BC72*BB79+(BC70-BC71-BC72)*AZ79)))) -> 0 | BY50: PM2.5 | BZ50: =Z50+AZ57 -> 0 | CA50: 0 | CB50: 0 | CC50: 0 | CD50: 0 | CE50: 0 | CF50: 0 | CG50: 0 | CH50: 0 | CI50: 0 | CJ50: =AJ50+BJ57 -> 0 | CL50: PM2.5 | CM50: 0 | CN50: 0 | CO50: 0 | CP50: 0 | CQ50: 0 | CR50: 0 | CS50: 0 | CT50: 0 | CU50: 0 | CV50: 0 | CW50: 0
A51: SO2 | B51: 0.6 | C51: 0.6 | D51: 0.6 | E51: 0.6 | F51: 0.6 | G51: 0.6 | H51: 0.6 | I51: 0.6 | J51: 0.6 | K51: 0.6 | M51: SO2 | N51: =IF(Dryer!C63=0,B51/1020,Dryer!C63) -> 0.0005882352941 | O51: =IF(Dryer!D63=0,C51/1020,Dryer!D63) -> 0.0005882352941 | P51: =IF(Dryer!E63=0,D51/1020,Dryer!E63) -> 0.0005882352941 | Q51: =IF(Dryer!F63=0,E51/1020,Dryer!F63) -> 0.0005882352941 | R51: =IF(Dryer!G63=0,F51/1020,Dryer!G63) -> 0.0005882352941 | S51: =IF(Dryer!H63=0,G51/1020,Dryer!H63) -> 0.0005882352941 | T51: =IF(Dryer!I63=0,H51/1020,Dryer!I63) -> 0.0005882352941 | U51: =IF(Dryer!J63=0,I51/1020,Dryer!J63) -> 0.0005882352941 | V51: =IF(Dryer!K63=0,J51/1020,Dryer!K63) -> 0.0005882352941 | W51: =IF(Dryer!L63=0,K51/1020,Dryer!L63) -> 0.0005882352941 | Y51: SO2 | Z51: =N51*Dryer!$O$15 -> 0 | AA51: =O51*Dryer!$O$16 -> 0 | AB51: =P51*Dryer!$O$17 -> 0 | AC51: =Q51*Dryer!$O$18 -> 0 | AD51: =R51*Dryer!$O$19 -> 0 | AE51: =S51*Dryer!$O$20 -> 0 | AF51: =T51*Dryer!$O$21 -> 0 | AG51: =U51*Dryer!$O$22 -> 0 | AH51: =V51*Dryer!$O$23 -> 0 | AI51: =W51*Dryer!$O$24 -> 0 | AJ51: 0 | AL51: SO2 | AM51: 0 | AN51: 0 | AO51: 0 | AP51: 0 | AQ51: 0 | AR51: 0 | AS51: 0 | AT51: 0 | AU51: 0 | AV51: 0 | AW51: 0 | BY51: SO2 | BZ51: =Z51 -> 0 | CA51: =AA51 -> 0 | CB51: 0 | CC51: 0 | CD51: 0 | CE51: 0 | CF51: 0 | CG51: 0 | CH51: 0 | CI51: 0 | CJ51: =SUM(BZ51:CI51) -> 0 | CL51: SO2 | CM51: =AM51 -> 0 | CN51: =AN51 -> 0 | CO51: 0 | CP51: 0 | CQ51: 0 | CR51: 0 | CS51: 0 | CT51: 0 | CU51: 0 | CV51: 0 | CW51: 0
A52: NOx | B52: =IF(Dryer!N15=Datasets!$AA$3,50,IF(Dryer!N15=Datasets!$AA$4,32,100)) -> 100 | C52: =IF(Dryer!N16=Datasets!$AA$3,50,IF(Dryer!N16=Datasets!$AA$4,32,100)) -> 100 | D52: =IF(Dryer!N17=Datasets!$AA$3,50,IF(Dryer!N17=Datasets!$AA$4,32,100)) -> 100 | E52: =IF(Dryer!N18=Datasets!$AA$3,50,IF(Dryer!N18=Datasets!$AA$4,32,100)) -> 100 | F52: =IF(Dryer!N19=Datasets!$AA$3,50,IF(Dryer!N19=Datasets!$AA$4,32,100)) -> 100 | G52: =IF(Dryer!N20=Datasets!$AA$3,50,IF(Dryer!N20=Datasets!$AA$4,32,100)) -> 100 | H52: =IF(Dryer!N21=Datasets!$AA$3,50,IF(Dryer!N21=Datasets!$AA$4,32,100)) -> 100 | I52: =IF(Dryer!N22=Datasets!$AA$3,50,IF(Dryer!N22=Datasets!$AA$4,32,100)) -> 100 | J52: =IF(Dryer!N23=Datasets!$AA$3,50,IF(Dryer!N23=Datasets!$AA$4,32,100)) -> 100 | K52: =IF(Dryer!N24=Datasets!$AA$3,50,IF(Dryer!N24=Datasets!$AA$4,32,100)) -> 100 | M52: NOx | N52: =IF(Dryer!C64=0,B52/1020,Dryer!C64) -> 0.09803921569 | O52: =IF(Dryer!D64=0,C52/1020,Dryer!D64) -> 0.09803921569 | P52: =IF(Dryer!E64=0,D52/1020,Dryer!E64) -> 0.09803921569 | Q52: =IF(Dryer!F64=0,E52/1020,Dryer!F64) -> 0.09803921569 | R52: =IF(Dryer!G64=0,F52/1020,Dryer!G64) -> 0.09803921569 | S52: =IF(Dryer!H64=0,G52/1020,Dryer!H64) -> 0.09803921569 | T52: =IF(Dryer!I64=0,H52/1020,Dryer!I64) -> 0.09803921569 | U52: =IF(Dryer!J64=0,I52/1020,Dryer!J64) -> 0.09803921569 | V52: =IF(Dryer!K64=0,J52/1020,Dryer!K64) -> 0.09803921569 | W52: =IF(Dryer!L64=0,K52/1020,Dryer!L64) -> 0.09803921569 | Y52: NOx | Z52: =N52*Dryer!$O$15 -> 0 | AA52: =O52*Dryer!$O$16 -> 0 | AB52: =P52*Dryer!$O$17 -> 0 | AC52: =Q52*Dryer!$O$18 -> 0 | AD52: =R52*Dryer!$O$19 -> 0 | AE52: =S52*Dryer!$O$20 -> 0 | AF52: =T52*Dryer!$O$21 -> 0 | AG52: =U52*Dryer!$O$22 -> 0 | AH52: =V52*Dryer!$O$23 -> 0 | AI52: =W52*Dryer!$O$24 -> 0 | AJ52: =SUM(Z52:AI52) -> 0 | AL52: NOx | AM52: 0 | AN52: 0 | AO52: 0 | AP52: 0 | AQ52: 0 | AR52: 0 | AS52: 0 | AT52: 0 | AU52: 0 | AV52: 0 | AW52: 0 | AY52: PTE in lb/hr considering baghouse control = Emission Factor (lb/ton) x Maximum permitted hourly rate (ton/hr) | BL52: PTE in lb/yr considering baghouse control = Emission Factor (lb/ton) x Maximum permitted annual rate (ton/yr) | BY52: NOx | BZ52: =Z52 -> 0 | CA52: =AA52 -> 0 | CB52: 0 | CC52: 0 | CD52: 0 | CE52: 0 | CF52: 0 | CG52: 0 | CH52: 0 | CI52: 0 | CJ52: 0 | CL52: NOx | CM52: =AM52 -> 0 | CN52: =AN52 -> 0 | CO52: =AO52 -> 0 | CP52: =AP52 -> 0 | CQ52: =AQ52 -> 0 | CR52: =AR52 -> 0 | CS52: =AS52 -> 0 | CT52: =AT52 -> 0 | CU52: =AU52 -> 0 | CV52: =AV52 -> 0 | CW52: 0
A53: CO | B53: 84 | C53: 84 | D53: 84 | E53: 84 | F53: 84 | G53: 84 | H53: 84 | I53: 84 | J53: 84 | K53: 84 | M53: CO | N53: =IF(Dryer!C65=0,B53/1020,Dryer!C65) -> 0.08235294118 | O53: =IF(Dryer!D65=0,C53/1020,Dryer!D65) -> 0.08235294118 | P53: =IF(Dryer!E65=0,D53/1020,Dryer!E65) -> 0.08235294118 | Q53: =IF(Dryer!F65=0,E53/1020,Dryer!F65) -> 0.08235294118 | R53: =IF(Dryer!G65=0,F53/1020,Dryer!G65) -> 0.08235294118 | S53: =IF(Dryer!H65=0,G53/1020,Dryer!H65) -> 0.08235294118 | T53: =IF(Dryer!I65=0,H53/1020,Dryer!I65) -> 0.08235294118 | U53: =IF(Dryer!J65=0,I53/1020,Dryer!J65) -> 0.08235294118 | V53: =IF(Dryer!K65=0,J53/1020,Dryer!K65) -> 0.08235294118 | W53: =IF(Dryer!L65=0,K53/1020,Dryer!L65) -> 0.08235294118 | Y53: CO | Z53: =N53*Dryer!$O$15 -> 0 | AA53: =O53*Dryer!$O$16 -> 0 | AB53: =P53*Dryer!$O$17 -> 0 | AC53: =Q53*Dryer!$O$18 -> 0 | AD53: =R53*Dryer!$O$19 -> 0 | AE53: =S53*Dryer!$O$20 -> 0 | AF53: =T53*Dryer!$O$21 -> 0 | AG53: =U53*Dryer!$O$22 -> 0 | AH53: =V53*Dryer!$O$23 -> 0 | AI53: =W53*Dryer!$O$24 -> 0 | AJ53: =SUM(Z53:AI53) -> 0 | AL53: CO | AM53: 0 | AN53: 0 | AO53: 0 | AP53: 0 | AQ53: 0 | AR53: 0 | AS53: 0 | AT53: 0 | AU53: 0 | AV53: 0 | AW53: 0 | AY53: Pollutant | AZ53: 1st Dryer | BA53: 2nd Dryer | BB53: 3rd Dryer | BC53: 4th Dryer | BD53: 5th Dryer | BE53: 6th Dryer | BF53: 7th Dryer | BG53: 8th Dryer | BH53: 9th Dryer | BI53: 10th Dryer | BJ53: Total | BL53: Pollutant | BM53: 1st Dryer | BN53: 2nd Dryer | BO53: 3rd Dryer | BP53: 4th Dryer | BQ53: 5th Dryer | BR53: 6th Dryer | BS53: 7th Dryer | BT53: 8th Dryer | BU53: 9th Dryer | BV53: 10th Dryer | BW53: Total | BY53: CO | BZ53: =Z53 -> 0 | CA53: =AA53 -> 0 | CB53: 0 | CC53: 0 | CD53: 0 | CE53: 0 | CF53: 0 | CG53: 0 | CH53: 0 | CI53: 0 | CJ53: 0 | CL53: CO | CM53: 0 | CN53: 0 | CO53: 0 | CP53: 0 | CQ53: 0 | CR53: 0 | CS53: 0 | CT53: 0 | CU53: 0 | CV53: 0 | CW53: 0
A54: VOC | B54: 5.5 | C54: 5.5 | D54: 5.5 | E54: 5.5 | F54: 5.5 | G54: 5.5 | H54: 5.5 | I54: 5.5 | J54: 5.5 | K54: 5.5 | M54: VOC | N54: =IF(Dryer!C66=0,B54/1020,Dryer!C66) -> 0.005392156863 | O54: =IF(Dryer!D66=0,C54/1020,Dryer!D66) -> 0.005392156863 | P54: =IF(Dryer!E66=0,D54/1020,Dryer!E66) -> 0.005392156863 | Q54: =IF(Dryer!F66=0,E54/1020,Dryer!F66) -> 0.005392156863 | R54: =IF(Dryer!G66=0,F54/1020,Dryer!G66) -> 0.005392156863 | S54: =IF(Dryer!H66=0,G54/1020,Dryer!H66) -> 0.005392156863 | T54: =IF(Dryer!I66=0,H54/1020,Dryer!I66) -> 0.005392156863 | U54: =IF(Dryer!J66=0,I54/1020,Dryer!J66) -> 0.005392156863 | V54: =IF(Dryer!K66=0,J54/1020,Dryer!K66) -> 0.005392156863 | W54: =IF(Dryer!L66=0,K54/1020,Dryer!L66) -> 0.005392156863 | Y54: VOC | Z54: =N54*Dryer!$O$15 -> 0 | AA54: =O54*Dryer!$O$16 -> 0 | AB54: =P54*Dryer!$O$17 -> 0 | AC54: =Q54*Dryer!$O$18 -> 0 | AD54: =R54*Dryer!$O$19 -> 0 | AE54: =S54*Dryer!$O$20 -> 0 | AF54: =T54*Dryer!$O$21 -> 0 | AG54: =U54*Dryer!$O$22 -> 0 | AH54: =V54*Dryer!$O$23 -> 0 | AI54: =W54*Dryer!$O$24 -> 0 | AJ54: =SUM(Z54:AI54) -> 0 | AL54: VOC | AM54: 0 | AN54: 0 | AO54: 0 | AP54: 0 | AQ54: 0 | AR54: 0 | AS54: 0 | AT54: 0 | AU54: 0 | AV54: 0 | AW54: 0 | AZ54: (lb/hr) | BM54: (lb/year) | BY54: VOC | BZ54: =Z54 -> 0 | CA54: =AA54 -> 0 | CB54: =AB54 -> 0 | CC54: =AC54 -> 0 | CD54: =AD54 -> 0 | CE54: =AE54 -> 0 | CF54: =AF54 -> 0 | CG54: =AG54 -> 0 | CH54: =AH54 -> 0 | CI54: =AI54 -> 0 | CJ54: 0 | CL54: VOC | CM54: 0 | CN54: 0 | CO54: 0 | CP54: 0 | CQ54: 0 | CR54: 0 | CS54: 0 | CT54: 0 | CU54: 0 | CV54: 0 | CW54: 0
A55: Individual HAP | Y55: Individual HAP | AL55: Individual HAP | AY55: PMfilterable | AZ55: =IF(AZ68=1,AZ48,AZ48*$BA$81*(1-$BA$82)) -> 0 | BA55: =IF(BA68=1,BA48,BA48*$BA$81*(1-$BA$82)) -> 0 | BB55: 0 | BC55: 0 | BD55: 0 | BE55: 0 | BF55: 0 | BG55: 0 | BH55: 0 | BI55: 0 | BJ55: =IF(OR(BC69=0,BC69>=SUM(BC71:BC73)),SUM(AZ55:BI55),IF(BC69<=BI71,BC69*BA77,IF(BC69<=(BI71+BI72),(BI71*BA77+(BC69-BI71)*BB77),IF(BC69<=(BI71+BI72+BI73),(BI71*BA77+BI72*BB77+(BC69-BI71-BI72)*AZ77),IF(BC69<=(BC71+BI72+BI73),(BI71*BA77+BI72*BB77+BI73*AZ77+(BC69-BI71)*BG77),IF(BC69<=(BC71+BC72+BI73),(BI71*BA77+BI72*BB77+BI73*AZ77+(BC71-BI71)*BG77+(BC69-BI72)*BH77),(BI71*BA77+BI72*BB77+BI73*AZ77+(BC71-BI71)*BG77+(BC72-BI72)*BH77+(BC69-BI73)*BF77))))))) -> 0 | BL55: PMfilterable | BM55: =IF(AZ68=1,BM48,BM48*$BA$81*(1-$BA$82)) -> 0 | BN55: =IF(BA68=1,BN48,BN48*$BA$81*(1-$BA$82)) -> 0 | BO55: 0 | BP55: 0 | BQ55: 0 | BR55: 0 | BS55: 0 | BT55: 0 | BU55: 0 | BV55: 0 | BW55: =IF(OR(BC70=0,BC70>=8760*SUM(BC71:BC73)),SUM(BM55:BV55),IF(BC70<=BI71*8760,BC70*BA77,IF(BC70<=(BI71+BI72)*8760,(BI71*BA77*8760+(BC70-BI71*8760)*BB77),IF(BC70<=(BI71+BI72+BI73)*8760,(BI71*BA77*8760+BI72*BB77*8760+(BC70-BI71*8760-BI72*8760)*AZ77),IF(BC70<=(BC71+BI72+BI73)*8760,(BI71*BA77*8760+BI72*BB77*8760+BI73*AZ77*8760+(BC70-BI71*8760)*BG77),IF(BC70<=(BC71+BC72+BI73)*8760,(BI71*BA77*8760+BI72*BB77*8760+BI73*AZ77*8760+(BC71-BI71)*BG77*8760+(BC70-BI72*8760)*BH77),(BI71*BA77*8760+BI72*BB77*8760+BI73*AZ77*8760+(BC71-BI71)*BG77*8760+(BC72-BI72)*BH77*8760+(BC70-BI73*8760)*BF77))))))) -> 0 | BY55: Individual HAP | CL55: Individual HAP
A56: Benzene | B56: 0.0021 | C56: 0.0021 | D56: 0.0021 | E56: 0.0021 | F56: 0.0021 | G56: 0.0021 | H56: 0.0021 | I56: 0.0021 | J56: 0.0021 | K56: 0.0021 | M56: Benzene | N56: =IF(Dryer!C68=0,B56/1020,Dryer!C68) -> 2.058823529e-06 | O56: =IF(Dryer!D68=0,C56/1020,Dryer!D68) -> 2.058823529e-06 | P56: =IF(Dryer!E68=0,D56/1020,Dryer!E68) -> 2.058823529e-06 | Q56: =IF(Dryer!F68=0,E56/1020,Dryer!F68) -> 2.058823529e-06 | R56: =IF(Dryer!G68=0,F56/1020,Dryer!G68) -> 2.058823529e-06 | S56: =IF(Dryer!H68=0,G56/1020,Dryer!H68) -> 2.058823529e-06 | T56: =IF(Dryer!I68=0,H56/1020,Dryer!I68) -> 2.058823529e-06 | U56: =IF(Dryer!J68=0,I56/1020,Dryer!J68) -> 2.058823529e-06 | V56: =IF(Dryer!K68=0,J56/1020,Dryer!K68) -> 2.058823529e-06 | W56: =IF(Dryer!L68=0,K56/1020,Dryer!L68) -> 2.058823529e-06 | Y56: Benzene | Z56: =N56*Dryer!$O$15 -> 0 | AA56: =O56*Dryer!$O$16 -> 0 | AB56: =P56*Dryer!$O$17 -> 0 | AC56: =Q56*Dryer!$O$18 -> 0 | AD56: =R56*Dryer!$O$19 -> 0 | AE56: =S56*Dryer!$O$20 -> 0 | AF56: =T56*Dryer!$O$21 -> 0 | AG56: =U56*Dryer!$O$22 -> 0 | AH56: =V56*Dryer!$O$23 -> 0 | AI56: =W56*Dryer!$O$24 -> 0 | AJ56: =SUM(Z56:AI56) -> 0 | AL56: Benzene | AM56: =IF(AM$45=0,Z56*8760/2000,Z56*AM$45/2000) -> 0 | AN56: =IF(AN$45=0,AA56*8760/2000,AA56*AN$45/2000) -> 0 | AO56: =IF(AO$45=0,AB56*8760/2000,AB56*AO$45/2000) -> 0 | AP56: =IF(AP$45=0,AC56*8760/2000,AC56*AP$45/2000) -> 0 | AQ56: =IF(AQ$45=0,AD56*8760/2000,AD56*AQ$45/2000) -> 0 | AR56: =IF(AR$45=0,AE56*8760/2000,AE56*AR$45/2000) -> 0 | AS56: =IF(AS$45=0,AF56*8760/2000,AF56*AS$45/2000) -> 0 | AT56: =IF(AT$45=0,AG56*8760/2000,AG56*AT$45/2000) -> 0 | AU56: =IF(AU$45=0,AH56*8760/2000,AH56*AU$45/2000) -> 0 | AV56: =IF(AV$45=0,AI56*8760/2000,AI56*AV$45/2000) -> 0 | AW56: =SUM(AM56:AV56) -> 0 | AY56: PM10 | AZ56: =IF(AZ68=1,AZ49,AZ49*$BA$81*(1-$BA$82)) -> 0 | BA56: =IF(BA68=1,BA49,BA49*$BA$81*(1-$BA$82)) -> 0 | BB56: 0 | BC56: 0 | BD56: 0 | BE56: 0 | BF56: 0 | BG56: 0 | BH56: 0 | BI56: 0 | BJ56: =IF(OR(BC69=0,BC69>=SUM(BC71:BC73)),SUM(AZ56:BI56),IF(BC69<=BI71,BC69*BA78,IF(BC69<=(BI71+BI72),(BI71*BA78+(BC69-BI71)*BB78),IF(BC69<=(BI71+BI72+BI73),(BI71*BA78+BI72*BB78+(BC69-BI71-BI72)*AZ78),IF(BC69<=(BC71+BI72+BI73),(BI71*BA78+BI72*BB78+BI73*AZ78+(BC69-BI71)*BG78),IF(BC69<=(BC71+BC72+BI73),(BI71*BA78+BI72*BB78+BI73*AZ78+(BC71-BI71)*BG78+(BC69-BI72)*BH78),(BI71*BA78+BI72*BB78+BI73*AZ78+(BC71-BI71)*BG78+(BC72-BI72)*BH78+(BC69-BI73)*BF78))))))) -> 0 | BL56: PM10 | BM56: =IF(AZ68=1,BM49,BM49*$BA$81*(1-$BA$82)) -> 0 | BN56: =IF(BA68=1,BN49,BN49*$BA$81*(1-$BA$82)) -> 0 | BO56: 0 | BP56: 0 | BQ56: 0 | BR56: 0 | BS56: 0 | BT56: 0 | BU56: 0 | BV56: 0 | BW56: =IF(OR(BC70=0,BC70>=8760*SUM(BC71:BC73)),SUM(BM56:BV56),IF(BC70<=BI71*8760,BC70*BA78,IF(BC70<=(BI71+BI72)*8760,(BI71*BA78*8760+(BC70-BI71*8760)*BB78),IF(BC70<=(BI71+BI72+BI73)*8760,(BI71*BA78*8760+BI72*BB78*8760+(BC70-BI71*8760-BI72*8760)*AZ78),IF(BC70<=(BC71+BI72+BI73)*8760,(BI71*BA78*8760+BI72*BB78*8760+BI73*AZ78*8760+(BC70-BI71*8760)*BG78),IF(BC70<=(BC71+BC72+BI73)*8760,(BI71*BA78*8760+BI72*BB78*8760+BI73*AZ78*8760+(BC71-BI71)*BG78*8760+(BC70-BI72*8760)*BH78),(BI71*BA78*8760+BI72*BB78*8760+BI73*AZ78*8760+(BC71-BI71)*BG78*8760+(BC72-BI72)*BH78*8760+(BC70-BI73*8760)*BF78))))))) -> 0 | BY56: Benzene | BZ56: =Z56 -> 0 | CA56: =AA56 -> 0 | CB56: 0 | CC56: 0 | CD56: 0 | CE56: 0 | CF56: 0 | CG56: 0 | CH56: 0 | CI56: 0 | CJ56: =SUM(BZ56:CI56) -> 0 | CL56: Benzene | CM56: =AM56 -> 0 | CN56: =AN56 -> 0 | CO56: 0 | CP56: 0 | CQ56: 0 | CR56: 0 | CS56: 0 | CT56: 0 | CU56: 0 | CV56: 0 | CW56: 0
A57: Dichlorobenzene | B57: 0.0012 | C57: 0.0012 | D57: 0.0012 | E57: 0.0012 | F57: 0.0012 | G57: 0.0012 | H57: 0.0012 | I57: 0.0012 | J57: 0.0012 | K57: 0.0012 | M57: Dichlorobenzene | N57: =IF(Dryer!C69=0,B57/1020,Dryer!C69) -> 1.176470588e-06 | O57: =IF(Dryer!D69=0,C57/1020,Dryer!D69) -> 1.176470588e-06 | P57: =IF(Dryer!E69=0,D57/1020,Dryer!E69) -> 1.176470588e-06 | Q57: =IF(Dryer!F69=0,E57/1020,Dryer!F69) -> 1.176470588e-06 | R57: =IF(Dryer!G69=0,F57/1020,Dryer!G69) -> 1.176470588e-06 | S57: =IF(Dryer!H69=0,G57/1020,Dryer!H69) -> 1.176470588e-06 | T57: =IF(Dryer!I69=0,H57/1020,Dryer!I69) -> 1.176470588e-06 | U57: =IF(Dryer!J69=0,I57/1020,Dryer!J69) -> 1.176470588e-06 | V57: =IF(Dryer!K69=0,J57/1020,Dryer!K69) -> 1.176470588e-06 | W57: =IF(Dryer!L69=0,K57/1020,Dryer!L69) -> 1.176470588e-06 | Y57: Dichlorobenzene | Z57: =N57*Dryer!$O$15 -> 0 | AA57: =O57*Dryer!$O$16 -> 0 | AB57: =P57*Dryer!$O$17 -> 0 | AC57: =Q57*Dryer!$O$18 -> 0 | AD57: =R57*Dryer!$O$19 -> 0 | AE57: =S57*Dryer!$O$20 -> 0 | AF57: =T57*Dryer!$O$21 -> 0 | AG57: =U57*Dryer!$O$22 -> 0 | AH57: =V57*Dryer!$O$23 -> 0 | AI57: =W57*Dryer!$O$24 -> 0 | AJ57: 0 | AL57: Dichlorobenzene | AM57: 0 | AN57: 0 | AO57: 0 | AP57: 0 | AQ57: 0 | AR57: 0 | AS57: 0 | AT57: 0 | AU57: 0 | AV57: 0 | AW57: 0 | AY57: PM2.5 | AZ57: =IF(AZ68=1,AZ50,AZ50*$BA$81*(1-$BA$82)) -> 0 | BA57: =IF(BA68=1,BA50,BA50*$BA$81*(1-$BA$82)) -> 0 | BB57: 0 | BC57: 0 | BD57: 0 | BE57: 0 | BF57: 0 | BG57: 0 | BH57: 0 | BI57: 0 | BJ57: =IF(OR(BC69=0,BC69>=SUM(BC71:BC73)),SUM(AZ57:BI57),IF(BC69<=BI71,BC69*BA79,IF(BC69<=(BI71+BI72),(BI71*BA79+(BC69-BI71)*BB79),IF(BC69<=(BI71+BI72+BI73),(BI71*BA79+BI72*BB79+(BC69-BI71-BI72)*AZ79),IF(BC69<=(BC71+BI72+BI73),(BI71*BA79+BI72*BB79+BI73*AZ79+(BC69-BI71)*BG79),IF(BC69<=(BC71+BC72+BI73),(BI71*BA79+BI72*BB79+BI73*AZ79+(BC71-BI71)*BG79+(BC69-BI72)*BH79),(BI71*BA79+BI72*BB79+BI73*AZ79+(BC71-BI71)*BG79+(BC72-BI72)*BH79+(BC69-BI73)*BF79))))))) -> 0 | BL57: PM2.5 | BM57: =IF(AZ68=1,BM50,BM50*$BA$81*(1-$BA$82)) -> 0 | BN57: =IF(BA68=1,BN50,BN50*$BA$81*(1-$BA$82)) -> 0 | BO57: 0 | BP57: 0 | BQ57: 0 | BR57: 0 | BS57: 0 | BT57: 0 | BU57: 0 | BV57: 0 | BW57: =IF(OR(BC70=0,BC70>=8760*SUM(BC71:BC73)),SUM(BM57:BV57),IF(BC70<=BI71*8760,BC70*BA79,IF(BC70<=(BI71+BI72)*8760,(BI71*BA79*8760+(BC70-BI71*8760)*BB79),IF(BC70<=(BI71+BI72+BI73)*8760,(BI71*BA79*8760+BI72*BB79*8760+(BC70-BI71*8760-BI72*8760)*AZ79),IF(BC70<=(BC71+BI72+BI73)*8760,(BI71*BA79*8760+BI72*BB79*8760+BI73*AZ79*8760+(BC70-BI71*8760)*BG79),IF(BC70<=(BC71+BC72+BI73)*8760,(BI71*BA79*8760+BI72*BB79*8760+BI73*AZ79*8760+(BC71-BI71)*BG79*8760+(BC70-BI72*8760)*BH79),(BI71*BA79*8760+BI72*BB79*8760+BI73*AZ79*8760+(BC71-BI71)*BG79*8760+(BC72-BI72)*BH79*8760+(BC70-BI73*8760)*BF79))))))) -> 0 | BY57: Dichlorobenzene | BZ57: =Z57 -> 0 | CA57: =AA57 -> 0 | CB57: =AB57 -> 0 | CC57: =AC57 -> 0 | CD57: =AD57 -> 0 | CE57: =AE57 -> 0 | CF57: =AF57 -> 0 | CG57: =AG57 -> 0 | CH57: =AH57 -> 0 | CI57: =AI57 -> 0 | CJ57: 0 | CL57: Dichlorobenzene | CM57: =AM57 -> 0 | CN57: =AN57 -> 0 | CO57: =AO57 -> 0 | CP57: =AP57 -> 0 | CQ57: =AQ57 -> 0 | CR57: =AR57 -> 0 | CS57: =AS57 -> 0 | CT57: =AT57 -> 0 | CU57: =AU57 -> 0 | CV57: =AV57 -> 0 | CW57: 0
A58: Hexane | B58: 1.8 | C58: 1.8 | D58: 1.8 | E58: 1.8 | F58: 1.8 | G58: 1.8 | H58: 1.8 | I58: 1.8 | J58: 1.8 | K58: 1.8 | M58: Hexane | N58: =IF(Dryer!C70=0,B58/1020,Dryer!C70) -> 0.001764705882 | O58: =IF(Dryer!D70=0,C58/1020,Dryer!D70) -> 0.001764705882 | P58: =IF(Dryer!E70=0,D58/1020,Dryer!E70) -> 0.001764705882 | Q58: =IF(Dryer!F70=0,E58/1020,Dryer!F70) -> 0.001764705882 | R58: =IF(Dryer!G70=0,F58/1020,Dryer!G70) -> 0.001764705882 | S58: =IF(Dryer!H70=0,G58/1020,Dryer!H70) -> 0.001764705882 | T58: =IF(Dryer!I70=0,H58/1020,Dryer!I70) -> 0.001764705882 | U58: =IF(Dryer!J70=0,I58/1020,Dryer!J70) -> 0.001764705882 | V58: =IF(Dryer!K70=0,J58/1020,Dryer!K70) -> 0.001764705882 | W58: =IF(Dryer!L70=0,K58/1020,Dryer!L70) -> 0.001764705882 | Y58: Hexane | Z58: =N58*Dryer!$O$15 -> 0 | AA58: =O58*Dryer!$O$16 -> 0 | AB58: =P58*Dryer!$O$17 -> 0 | AC58: =Q58*Dryer!$O$18 -> 0 | AD58: =R58*Dryer!$O$19 -> 0 | AE58: =S58*Dryer!$O$20 -> 0 | AF58: =T58*Dryer!$O$21 -> 0 | AG58: =U58*Dryer!$O$22 -> 0 | AH58: =V58*Dryer!$O$23 -> 0 | AI58: =W58*Dryer!$O$24 -> 0 | AJ58: 0 | AL58: Hexane | AM58: 0 | AN58: 0 | AO58: 0 | AP58: 0 | AQ58: 0 | AR58: 0 | AS58: 0 | AT58: 0 | AU58: 0 | AV58: 0 | AW58: 0 | BY58: Hexane | BZ58: 0 | CA58: 0 | CB58: 0 | CC58: 0 | CD58: 0 | CE58: 0 | CF58: 0 | CG58: 0 | CH58: 0 | CI58: 0 | CJ58: 0 | CL58: Hexane | CM58: 0 | CN58: 0 | CO58: 0 | CP58: 0 | CQ58: 0 | CR58: 0 | CS58: 0 | CT58: 0 | CU58: 0 | CV58: 0 | CW58: 0
A59: Lead Compounds | B59: 0.0005 | C59: 0.0005 | D59: 0.0005 | E59: 0.0005 | F59: 0.0005 | G59: 0.0005 | H59: 0.0005 | I59: 0.0005 | J59: 0.0005 | K59: 0.0005 | M59: Lead Compounds | N59: =IF(Dryer!C71=0,B59/1020,Dryer!C71) -> 4.901960784e-07 | O59: =IF(Dryer!D71=0,C59/1020,Dryer!D71) -> 4.901960784e-07 | P59: =IF(Dryer!E71=0,D59/1020,Dryer!E71) -> 4.901960784e-07 | Q59: =IF(Dryer!F71=0,E59/1020,Dryer!F71) -> 4.901960784e-07 | R59: =IF(Dryer!G71=0,F59/1020,Dryer!G71) -> 4.901960784e-07 | S59: =IF(Dryer!H71=0,G59/1020,Dryer!H71) -> 4.901960784e-07 | T59: =IF(Dryer!I71=0,H59/1020,Dryer!I71) -> 4.901960784e-07 | U59: =IF(Dryer!J71=0,I59/1020,Dryer!J71) -> 4.901960784e-07 | V59: =IF(Dryer!K71=0,J59/1020,Dryer!K71) -> 4.901960784e-07 | W59: =IF(Dryer!L71=0,K59/1020,Dryer!L71) -> 4.901960784e-07 | Y59: Lead Compounds | Z59: =N59*Dryer!$O$15 -> 0 | AA59: =O59*Dryer!$O$16 -> 0 | AB59: =P59*Dryer!$O$17 -> 0 | AC59: =Q59*Dryer!$O$18 -> 0 | AD59: =R59*Dryer!$O$19 -> 0 | AE59: =S59*Dryer!$O$20 -> 0 | AF59: =T59*Dryer!$O$21 -> 0 | AG59: =U59*Dryer!$O$22 -> 0 | AH59: =V59*Dryer!$O$23 -> 0 | AI59: =W59*Dryer!$O$24 -> 0 | AJ59: 0 | AL59: Lead Compounds | AM59: 0 | AN59: 0 | AO59: 0 | AP59: 0 | AQ59: 0 | AR59: 0 | AS59: 0 | AT59: 0 | AU59: 0 | AV59: 0 | AW59: 0 | BY59: Lead Compounds | BZ59: 0 | CA59: 0 | CB59: 0 | CC59: 0 | CD59: 0 | CE59: 0 | CF59: 0 | CG59: 0 | CH59: 0 | CI59: 0 | CJ59: 0 | CL59: Lead Compounds | CM59: 0 | CN59: 0 | CO59: 0 | CP59: 0 | CQ59: 0 | CR59: 0 | CS59: 0 | CT59: 0 | CU59: 0 | CV59: 0 | CW59: 0
A60: Naphthalene | B60: 0.00061 | C60: 0.00061 | D60: 0.00061 | E60: 0.00061 | F60: 0.00061 | G60: 0.00061 | H60: 0.00061 | I60: 0.00061 | J60: 0.00061 | K60: 0.00061 | M60: Naphthalene | N60: =IF(Dryer!C72=0,B60/1020,Dryer!C72) -> 5.980392157e-07 | O60: =IF(Dryer!D72=0,C60/1020,Dryer!D72) -> 5.980392157e-07 | P60: =IF(Dryer!E72=0,D60/1020,Dryer!E72) -> 5.980392157e-07 | Q60: =IF(Dryer!F72=0,E60/1020,Dryer!F72) -> 5.980392157e-07 | R60: =IF(Dryer!G72=0,F60/1020,Dryer!G72) -> 5.980392157e-07 | S60: =IF(Dryer!H72=0,G60/1020,Dryer!H72) -> 5.980392157e-07 | T60: =IF(Dryer!I72=0,H60/1020,Dryer!I72) -> 5.980392157e-07 | U60: =IF(Dryer!J72=0,I60/1020,Dryer!J72) -> 5.980392157e-07 | V60: =IF(Dryer!K72=0,J60/1020,Dryer!K72) -> 5.980392157e-07 | W60: =IF(Dryer!L72=0,K60/1020,Dryer!L72) -> 5.980392157e-07 | Y60: Naphthalene | Z60: =N60*Dryer!$O$15 -> 0 | AA60: =O60*Dryer!$O$16 -> 0 | AB60: =P60*Dryer!$O$17 -> 0 | AC60: =Q60*Dryer!$O$18 -> 0 | AD60: =R60*Dryer!$O$19 -> 0 | AE60: =S60*Dryer!$O$20 -> 0 | AF60: =T60*Dryer!$O$21 -> 0 | AG60: =U60*Dryer!$O$22 -> 0 | AH60: =V60*Dryer!$O$23 -> 0 | AI60: =W60*Dryer!$O$24 -> 0 | AJ60: 0 | AL60: Naphthalene | AM60: 0 | AN60: 0 | AO60: 0 | AP60: 0 | AQ60: 0 | AR60: 0 | AS60: 0 | AT60: 0 | AU60: 0 | AV60: 0 | AW60: 0 | BY60: Naphthalene | BZ60: 0 | CA60: 0 | CB60: 0 | CC60: 0 | CD60: 0 | CE60: 0 | CF60: 0 | CG60: 0 | CH60: 0 | CI60: 0 | CJ60: 0 | CL60: Naphthalene | CM60: 0 | CN60: 0 | CO60: 0 | CP60: 0 | CQ60: 0 | CR60: 0 | CS60: 0 | CT60: 0 | CU60: 0 | CV60: 0 | CW60: 0
A61: Polycyclic Organic Matter | B61: 8.82e-05 | C61: 8.82e-05 | D61: 8.82e-05 | E61: 8.82e-05 | F61: 8.82e-05 | G61: 8.82e-05 | H61: 8.82e-05 | I61: 8.82e-05 | J61: 8.82e-05 | K61: 8.82e-05 | M61: Polycyclic Organic Matter | N61: =IF(Dryer!C73=0,B61/1020,Dryer!C73) -> 8.647058824e-08 | O61: =IF(Dryer!D73=0,C61/1020,Dryer!D73) -> 8.647058824e-08 | P61: =IF(Dryer!E73=0,D61/1020,Dryer!E73) -> 8.647058824e-08 | Q61: =IF(Dryer!F73=0,E61/1020,Dryer!F73) -> 8.647058824e-08 | R61: =IF(Dryer!G73=0,F61/1020,Dryer!G73) -> 8.647058824e-08 | S61: =IF(Dryer!H73=0,G61/1020,Dryer!H73) -> 8.647058824e-08 | T61: =IF(Dryer!I73=0,H61/1020,Dryer!I73) -> 8.647058824e-08 | U61: =IF(Dryer!J73=0,I61/1020,Dryer!J73) -> 8.647058824e-08 | V61: =IF(Dryer!K73=0,J61/1020,Dryer!K73) -> 8.647058824e-08 | W61: =IF(Dryer!L73=0,K61/1020,Dryer!L73) -> 8.647058824e-08 | Y61: Polycyclic Organic Matter | Z61: =N61*Dryer!$O$15 -> 0 | AA61: =O61*Dryer!$O$16 -> 0 | AB61: =P61*Dryer!$O$17 -> 0 | AC61: =Q61*Dryer!$O$18 -> 0 | AD61: =R61*Dryer!$O$19 -> 0 | AE61: =S61*Dryer!$O$20 -> 0 | AF61: =T61*Dryer!$O$21 -> 0 | AG61: =U61*Dryer!$O$22 -> 0 | AH61: =V61*Dryer!$O$23 -> 0 | AI61: =W61*Dryer!$O$24 -> 0 | AJ61: 0 | AL61: Polycyclic Organic Matter | AM61: 0 | AN61: 0 | AO61: 0 | AP61: 0 | AQ61: 0 | AR61: 0 | AS61: 0 | AT61: 0 | AU61: 0 | AV61: 0 | AW61: 0 | BY61: Polycyclic Organic Matter | BZ61: 0 | CA61: 0 | CB61: 0 | CC61: 0 | CD61: 0 | CE61: 0 | CF61: 0 | CG61: 0 | CH61: 0 | CI61: 0 | CJ61: 0 | CL61: Polycyclic Organic Matter | CM61: 0 | CN61: 0 | CO61: 0 | CP61: 0 | CQ61: 0 | CR61: 0 | CS61: 0 | CT61: 0 | CU61: 0 | CV61: 0 | CW61: 0
A62: Toluene | B62: 0.0034 | C62: 0.0034 | D62: 0.0034 | E62: 0.0034 | F62: 0.0034 | G62: 0.0034 | H62: 0.0034 | I62: 0.0034 | J62: 0.0034 | K62: 0.0034 | M62: Toluene | N62: =IF(Dryer!C74=0,B62/1020,Dryer!C74) -> 3.333333333e-06 | O62: =IF(Dryer!D74=0,C62/1020,Dryer!D74) -> 3.333333333e-06 | P62: =IF(Dryer!E74=0,D62/1020,Dryer!E74) -> 3.333333333e-06 | Q62: =IF(Dryer!F74=0,E62/1020,Dryer!F74) -> 3.333333333e-06 | R62: =IF(Dryer!G74=0,F62/1020,Dryer!G74) -> 3.333333333e-06 | S62: =IF(Dryer!H74=0,G62/1020,Dryer!H74) -> 3.333333333e-06 | T62: =IF(Dryer!I74=0,H62/1020,Dryer!I74) -> 3.333333333e-06 | U62: =IF(Dryer!J74=0,I62/1020,Dryer!J74) -> 3.333333333e-06 | V62: =IF(Dryer!K74=0,J62/1020,Dryer!K74) -> 3.333333333e-06 | W62: =IF(Dryer!L74=0,K62/1020,Dryer!L74) -> 3.333333333e-06 | Y62: Toluene | Z62: =N62*Dryer!$O$15 -> 0 | AA62: =O62*Dryer!$O$16 -> 0 | AB62: =P62*Dryer!$O$17 -> 0 | AC62: =Q62*Dryer!$O$18 -> 0 | AD62: =R62*Dryer!$O$19 -> 0 | AE62: =S62*Dryer!$O$20 -> 0 | AF62: =T62*Dryer!$O$21 -> 0 | AG62: =U62*Dryer!$O$22 -> 0 | AH62: =V62*Dryer!$O$23 -> 0 | AI62: =W62*Dryer!$O$24 -> 0 | AJ62: 0 | AL62: Toluene | AM62: 0 | AN62: 0 | AO62: 0 | AP62: 0 | AQ62: 0 | AR62: 0 | AS62: 0 | AT62: 0 | AU62: 0 | AV62: 0 | AW62: 0 | BY62: Toluene | BZ62: 0 | CA62: 0 | CB62: 0 | CC62: 0 | CD62: 0 | CE62: 0 | CF62: 0 | CG62: 0 | CH62: 0 | CI62: 0 | CJ62: 0 | CL62: Toluene | CM62: 0 | CN62: 0 | CO62: 0 | CP62: 0 | CQ62: 0 | CR62: 0 | CS62: 0 | CT62: 0 | CU62: 0 | CV62: 0 | CW62: 0
A63: Arsenic Compounds | B63: 0.0002 | C63: 0.0002 | D63: 0.0002 | E63: 0.0002 | F63: 0.0002 | G63: 0.0002 | H63: 0.0002 | I63: 0.0002 | J63: 0.0002 | K63: 0.0002 | M63: Arsenic Compounds | N63: =IF(Dryer!C75=0,B63/1020,Dryer!C75) -> 1.960784314e-07 | O63: =IF(Dryer!D75=0,C63/1020,Dryer!D75) -> 1.960784314e-07 | P63: =IF(Dryer!E75=0,D63/1020,Dryer!E75) -> 1.960784314e-07 | Q63: =IF(Dryer!F75=0,E63/1020,Dryer!F75) -> 1.960784314e-07 | R63: =IF(Dryer!G75=0,F63/1020,Dryer!G75) -> 1.960784314e-07 | S63: =IF(Dryer!H75=0,G63/1020,Dryer!H75) -> 1.960784314e-07 | T63: =IF(Dryer!I75=0,H63/1020,Dryer!I75) -> 1.960784314e-07 | U63: =IF(Dryer!J75=0,I63/1020,Dryer!J75) -> 1.960784314e-07 | V63: =IF(Dryer!K75=0,J63/1020,Dryer!K75) -> 1.960784314e-07 | W63: =IF(Dryer!L75=0,K63/1020,Dryer!L75) -> 1.960784314e-07 | Y63: Arsenic Compounds | Z63: =N63*Dryer!$O$15 -> 0 | AA63: =O63*Dryer!$O$16 -> 0 | AB63: =P63*Dryer!$O$17 -> 0 | AC63: =Q63*Dryer!$O$18 -> 0 | AD63: =R63*Dryer!$O$19 -> 0 | AE63: =S63*Dryer!$O$20 -> 0 | AF63: =T63*Dryer!$O$21 -> 0 | AG63: =U63*Dryer!$O$22 -> 0 | AH63: =V63*Dryer!$O$23 -> 0 | AI63: =W63*Dryer!$O$24 -> 0 | AJ63: 0 | AL63: Arsenic Compounds | AM63: 0 | AN63: 0 | AO63: 0 | AP63: 0 | AQ63: 0 | AR63: 0 | AS63: 0 | AT63: 0 | AU63: 0 | AV63: 0 | AW63: 0 | BY63: Arsenic Compounds | BZ63: 0 | CA63: 0 | CB63: 0 | CC63: 0 | CD63: 0 | CE63: 0 | CF63: 0 | CG63: 0 | CH63: 0 | CI63: 0 | CJ63: 0 | CL63: Arsenic Compounds | CM63: 0 | CN63: 0 | CO63: 0 | CP63: 0 | CQ63: 0 | CR63: 0 | CS63: 0 | CT63: 0 | CU63: 0 | CV63: 0 | CW63: 0
A64: Beryllium Compounds | B64: 1.2e-05 | C64: 1.2e-05 | D64: 1.2e-05 | E64: 1.2e-05 | F64: 1.2e-05 | G64: 1.2e-05 | H64: 1.2e-05 | I64: 1.2e-05 | J64: 1.2e-05 | K64: 1.2e-05 | M64: Beryllium Compounds | N64: =IF(Dryer!C76=0,B64/1020,Dryer!C76) -> 1.176470588e-08 | O64: =IF(Dryer!D76=0,C64/1020,Dryer!D76) -> 1.176470588e-08 | P64: =IF(Dryer!E76=0,D64/1020,Dryer!E76) -> 1.176470588e-08 | Q64: =IF(Dryer!F76=0,E64/1020,Dryer!F76) -> 1.176470588e-08 | R64: =IF(Dryer!G76=0,F64/1020,Dryer!G76) -> 1.176470588e-08 | S64: =IF(Dryer!H76=0,G64/1020,Dryer!H76) -> 1.176470588e-08 | T64: =IF(Dryer!I76=0,H64/1020,Dryer!I76) -> 1.176470588e-08 | U64: =IF(Dryer!J76=0,I64/1020,Dryer!J76) -> 1.176470588e-08 | V64: =IF(Dryer!K76=0,J64/1020,Dryer!K76) -> 1.176470588e-08 | W64: =IF(Dryer!L76=0,K64/1020,Dryer!L76) -> 1.176470588e-08 | Y64: Beryllium Compounds | Z64: =N64*Dryer!$O$15 -> 0 | AA64: =O64*Dryer!$O$16 -> 0 | AB64: =P64*Dryer!$O$17 -> 0 | AC64: =Q64*Dryer!$O$18 -> 0 | AD64: =R64*Dryer!$O$19 -> 0 | AE64: =S64*Dryer!$O$20 -> 0 | AF64: =T64*Dryer!$O$21 -> 0 | AG64: =U64*Dryer!$O$22 -> 0 | AH64: =V64*Dryer!$O$23 -> 0 | AI64: =W64*Dryer!$O$24 -> 0 | AJ64: 0 | AL64: Beryllium Compounds | AM64: 0 | AN64: 0 | AO64: 0 | AP64: 0 | AQ64: 0 | AR64: 0 | AS64: 0 | AT64: 0 | AU64: 0 | AV64: 0 | AW64: 0 | BY64: Beryllium Compounds | BZ64: 0 | CA64: 0 | CB64: 0 | CC64: 0 | CD64: 0 | CE64: 0 | CF64: 0 | CG64: 0 | CH64: 0 | CI64: 0 | CJ64: 0 | CL64: Beryllium Compounds | CM64: 0 | CN64: 0 | CO64: 0 | CP64: 0 | CQ64: 0 | CR64: 0 | CS64: 0 | CT64: 0 | CU64: 0 | CV64: 0 | CW64: 0
A65: Cadmium Compounds | B65: 0.0011 | C65: 0.0011 | D65: 0.0011 | E65: 0.0011 | F65: 0.0011 | G65: 0.0011 | H65: 0.0011 | I65: 0.0011 | J65: 0.0011 | K65: 0.0011 | M65: Cadmium Compounds | N65: =IF(Dryer!C77=0,B65/1020,Dryer!C77) -> 1.078431373e-06 | O65: =IF(Dryer!D77=0,C65/1020,Dryer!D77) -> 1.078431373e-06 | P65: =IF(Dryer!E77=0,D65/1020,Dryer!E77) -> 1.078431373e-06 | Q65: =IF(Dryer!F77=0,E65/1020,Dryer!F77) -> 1.078431373e-06 | R65: =IF(Dryer!G77=0,F65/1020,Dryer!G77) -> 1.078431373e-06 | S65: =IF(Dryer!H77=0,G65/1020,Dryer!H77) -> 1.078431373e-06 | T65: =IF(Dryer!I77=0,H65/1020,Dryer!I77) -> 1.078431373e-06 | U65: =IF(Dryer!J77=0,I65/1020,Dryer!J77) -> 1.078431373e-06 | V65: =IF(Dryer!K77=0,J65/1020,Dryer!K77) -> 1.078431373e-06 | W65: =IF(Dryer!L77=0,K65/1020,Dryer!L77) -> 1.078431373e-06 | Y65: Cadmium Compounds | Z65: =N65*Dryer!$O$15 -> 0 | AA65: =O65*Dryer!$O$16 -> 0 | AB65: =P65*Dryer!$O$17 -> 0 | AC65: =Q65*Dryer!$O$18 -> 0 | AD65: =R65*Dryer!$O$19 -> 0 | AE65: =S65*Dryer!$O$20 -> 0 | AF65: =T65*Dryer!$O$21 -> 0 | AG65: =U65*Dryer!$O$22 -> 0 | AH65: =V65*Dryer!$O$23 -> 0 | AI65: =W65*Dryer!$O$24 -> 0 | AJ65: 0 | AL65: Cadmium Compounds | AM65: 0 | AN65: 0 | AO65: 0 | AP65: 0 | AQ65: 0 | AR65: 0 | AS65: 0 | AT65: 0 | AU65: 0 | AV65: 0 | AW65: 0 | AY65: Supporting data: | BY65: Cadmium Compounds | BZ65: 0 | CA65: 0 | CB65: 0 | CC65: 0 | CD65: 0 | CE65: 0 | CF65: 0 | CG65: 0 | CH65: 0 | CI65: 0 | CJ65: 0 | CL65: Cadmium Compounds | CM65: 0 | CN65: 0 | CO65: 0 | CP65: 0 | CQ65: 0 | CR65: 0 | CS65: 0 | CT65: 0 | CU65: 0 | CV65: 0 | CW65: 0
A66: Chromium Compounds | B66: 0.0014 | C66: 0.0014 | D66: 0.0014 | E66: 0.0014 | F66: 0.0014 | G66: 0.0014 | H66: 0.0014 | I66: 0.0014 | J66: 0.0014 | K66: 0.0014 | M66: Chromium Compounds | N66: =IF(Dryer!C78=0,B66/1020,Dryer!C78) -> 1.37254902e-06 | O66: =IF(Dryer!D78=0,C66/1020,Dryer!D78) -> 1.37254902e-06 | P66: =IF(Dryer!E78=0,D66/1020,Dryer!E78) -> 1.37254902e-06 | Q66: =IF(Dryer!F78=0,E66/1020,Dryer!F78) -> 1.37254902e-06 | R66: =IF(Dryer!G78=0,F66/1020,Dryer!G78) -> 1.37254902e-06 | S66: =IF(Dryer!H78=0,G66/1020,Dryer!H78) -> 1.37254902e-06 | T66: =IF(Dryer!I78=0,H66/1020,Dryer!I78) -> 1.37254902e-06 | U66: =IF(Dryer!J78=0,I66/1020,Dryer!J78) -> 1.37254902e-06 | V66: =IF(Dryer!K78=0,J66/1020,Dryer!K78) -> 1.37254902e-06 | W66: =IF(Dryer!L78=0,K66/1020,Dryer!L78) -> 1.37254902e-06 | Y66: Chromium Compounds | Z66: =N66*Dryer!$O$15 -> 0 | AA66: =O66*Dryer!$O$16 -> 0 | AB66: =P66*Dryer!$O$17 -> 0 | AC66: =Q66*Dryer!$O$18 -> 0 | AD66: =R66*Dryer!$O$19 -> 0 | AE66: =S66*Dryer!$O$20 -> 0 | AF66: =T66*Dryer!$O$21 -> 0 | AG66: =U66*Dryer!$O$22 -> 0 | AH66: =V66*Dryer!$O$23 -> 0 | AI66: =W66*Dryer!$O$24 -> 0 | AJ66: 0 | AL66: Chromium Compounds | AM66: 0 | AN66: 0 | AO66: 0 | AP66: 0 | AQ66: 0 | AR66: 0 | AS66: 0 | AT66: 0 | AU66: 0 | AV66: 0 | AW66: 0 | AY66: ton/hr | AZ66: =Dryer!M15 -> 0 | BA66: =Dryer!M16 -> 0 | BB66: =Dryer!M17 -> 0 | BC66: =Dryer!M18 -> 0 | BD66: =Dryer!M19 -> 0 | BE66: =Dryer!M20 -> 0 | BF66: =Dryer!M21 -> 0 | BG66: =Dryer!M22 -> 0 | BH66: =Dryer!M23 -> 0 | BI66: =Dryer!M24 -> 0 | BY66: Chromium Compounds | BZ66: 0 | CA66: 0 | CB66: 0 | CC66: 0 | CD66: 0 | CE66: 0 | CF66: 0 | CG66: 0 | CH66: 0 | CI66: 0 | CJ66: 0 | CL66: Chromium Compounds | CM66: 0 | CN66: 0 | CO66: 0 | CP66: 0 | CQ66: 0 | CR66: 0 | CS66: 0 | CT66: 0 | CU66: 0 | CV66: 0 | CW66: 0
A67: Cobalt Compounds | B67: 8.4e-05 | C67: 8.4e-05 | D67: 8.4e-05 | E67: 8.4e-05 | F67: 8.4e-05 | G67: 8.4e-05 | H67: 8.4e-05 | I67: 8.4e-05 | J67: 8.4e-05 | K67: 8.4e-05 | M67: Cobalt Compounds | N67: =IF(Dryer!C79=0,B67/1020,Dryer!C79) -> 8.235294118e-08 | O67: =IF(Dryer!D79=0,C67/1020,Dryer!D79) -> 8.235294118e-08 | P67: =IF(Dryer!E79=0,D67/1020,Dryer!E79) -> 8.235294118e-08 | Q67: =IF(Dryer!F79=0,E67/1020,Dryer!F79) -> 8.235294118e-08 | R67: =IF(Dryer!G79=0,F67/1020,Dryer!G79) -> 8.235294118e-08 | S67: =IF(Dryer!H79=0,G67/1020,Dryer!H79) -> 8.235294118e-08 | T67: =IF(Dryer!I79=0,H67/1020,Dryer!I79) -> 8.235294118e-08 | U67: =IF(Dryer!J79=0,I67/1020,Dryer!J79) -> 8.235294118e-08 | V67: =IF(Dryer!K79=0,J67/1020,Dryer!K79) -> 8.235294118e-08 | W67: =IF(Dryer!L79=0,K67/1020,Dryer!L79) -> 8.235294118e-08 | Y67: Cobalt Compounds | Z67: =N67*Dryer!$O$15 -> 0 | AA67: =O67*Dryer!$O$16 -> 0 | AB67: =P67*Dryer!$O$17 -> 0 | AC67: =Q67*Dryer!$O$18 -> 0 | AD67: =R67*Dryer!$O$19 -> 0 | AE67: =S67*Dryer!$O$20 -> 0 | AF67: =T67*Dryer!$O$21 -> 0 | AG67: =U67*Dryer!$O$22 -> 0 | AH67: =V67*Dryer!$O$23 -> 0 | AI67: =W67*Dryer!$O$24 -> 0 | AJ67: 0 | AL67: Cobalt Compounds | AM67: 0 | AN67: 0 | AO67: 0 | AP67: 0 | AQ67: 0 | AR67: 0 | AS67: 0 | AT67: 0 | AU67: 0 | AV67: 0 | AW67: 0 | AY67: Dryer type | AZ67: =Dryer!P15 -> 0 | BA67: =Dryer!P16 -> 0 | BB67: =Dryer!P17 -> 0 | BC67: =Dryer!P18 -> 0 | BD67: =Dryer!G60 -> 0 | BE67: =Dryer!P20 -> 0 | BF67: =Dryer!P21 -> 0 | BG67: =Dryer!G63 -> 0 | BH67: =Dryer!P23 -> 0 | BI67: =Dryer!P24 -> 0 | BY67: Cobalt Compounds | BZ67: 0 | CA67: 0 | CB67: 0 | CC67: 0 | CD67: 0 | CE67: 0 | CF67: 0 | CG67: 0 | CH67: 0 | CI67: 0 | CJ67: 0 | CL67: Cobalt Compounds | CM67: 0 | CN67: 0 | CO67: 0 | CP67: 0 | CQ67: 0 | CR67: 0 | CS67: 0 | CT67: 0 | CU67: 0 | CV67: 0 | CW67: 0
A68: Manganese Compounds | B68: 0.00038 | C68: 0.00038 | D68: 0.00038 | E68: 0.00038 | F68: 0.00038 | G68: 0.00038 | H68: 0.00038 | I68: 0.00038 | J68: 0.00038 | K68: 0.00038 | M68: Manganese Compounds | N68: =IF(Dryer!C80=0,B68/1020,Dryer!C80) -> 3.725490196e-07 | O68: =IF(Dryer!D80=0,C68/1020,Dryer!D80) -> 3.725490196e-07 | P68: =IF(Dryer!E80=0,D68/1020,Dryer!E80) -> 3.725490196e-07 | Q68: =IF(Dryer!F80=0,E68/1020,Dryer!F80) -> 3.725490196e-07 | R68: =IF(Dryer!G80=0,F68/1020,Dryer!G80) -> 3.725490196e-07 | S68: =IF(Dryer!H80=0,G68/1020,Dryer!H80) -> 3.725490196e-07 | T68: =IF(Dryer!I80=0,H68/1020,Dryer!I80) -> 3.725490196e-07 | U68: =IF(Dryer!J80=0,I68/1020,Dryer!J80) -> 3.725490196e-07 | V68: =IF(Dryer!K80=0,J68/1020,Dryer!K80) -> 3.725490196e-07 | W68: =IF(Dryer!L80=0,K68/1020,Dryer!L80) -> 3.725490196e-07 | Y68: Manganese Compounds | Z68: =N68*Dryer!$O$15 -> 0 | AA68: =O68*Dryer!$O$16 -> 0 | AB68: =P68*Dryer!$O$17 -> 0 | AC68: =Q68*Dryer!$O$18 -> 0 | AD68: =R68*Dryer!$O$19 -> 0 | AE68: =S68*Dryer!$O$20 -> 0 | AF68: =T68*Dryer!$O$21 -> 0 | AG68: =U68*Dryer!$O$22 -> 0 | AH68: =V68*Dryer!$O$23 -> 0 | AI68: =W68*Dryer!$O$24 -> 0 | AJ68: 0 | AL68: Manganese Compounds | AM68: 0 | AN68: 0 | AO68: 0 | AP68: 0 | AQ68: 0 | AR68: 0 | AS68: 0 | AT68: 0 | AU68: 0 | AV68: 0 | AW68: 0 | AY68: Particulate control | AZ68: =IF(Dryer!Q15=Datasets!$C$3,0,1) -> 1 | BA68: =IF(Dryer!Q16=Datasets!$C$3,0,1) -> 1 | BB68: =IF(Dryer!Q17=Datasets!$C$3,0,1) -> 1 | BC68: =IF(Dryer!Q18=Datasets!$C$3,0,1) -> 1 | BD68: =IF(Dryer!Q19=Datasets!$C$3,0,1) -> 1 | BE68: =IF(Dryer!Q20=Datasets!$C$3,0,1) -> 1 | BF68: =IF(Dryer!Q21=Datasets!$C$3,0,1) -> 1 | BG68: =IF(Dryer!Q22=Datasets!$C$3,0,1) -> 1 | BH68: =IF(Dryer!Q23=Datasets!$C$3,0,1) -> 1 | BI68: =IF(Dryer!Q24=Datasets!$C$3,0,1) -> 1 | BY68: Manganese Compounds | BZ68: 0 | CA68: 0 | CB68: 0 | CC68: 0 | CD68: 0 | CE68: 0 | CF68: 0 | CG68: 0 | CH68: 0 | CI68: 0 | CJ68: 0 | CL68: Manganese Compounds | CM68: 0 | CN68: 0 | CO68: 0 | CP68: 0 | CQ68: 0 | CR68: 0 | CS68: 0 | CT68: 0 | CU68: 0 | CV68: 0 | CW68: 0
A69: Mercury Compounds | B69: 0.00026 | C69: 0.00026 | D69: 0.00026 | E69: 0.00026 | F69: 0.00026 | G69: 0.00026 | H69: 0.00026 | I69: 0.00026 | J69: 0.00026 | K69: 0.00026 | M69: Mercury Compounds | N69: =IF(Dryer!C81=0,B69/1020,Dryer!C81) -> 2.549019608e-07 | O69: =IF(Dryer!D81=0,C69/1020,Dryer!D81) -> 2.549019608e-07 | P69: =IF(Dryer!E81=0,D69/1020,Dryer!E81) -> 2.549019608e-07 | Q69: =IF(Dryer!F81=0,E69/1020,Dryer!F81) -> 2.549019608e-07 | R69: =IF(Dryer!G81=0,F69/1020,Dryer!G81) -> 2.549019608e-07 | S69: =IF(Dryer!H81=0,G69/1020,Dryer!H81) -> 2.549019608e-07 | T69: =IF(Dryer!I81=0,H69/1020,Dryer!I81) -> 2.549019608e-07 | U69: =IF(Dryer!J81=0,I69/1020,Dryer!J81) -> 2.549019608e-07 | V69: =IF(Dryer!K81=0,J69/1020,Dryer!K81) -> 2.549019608e-07 | W69: =IF(Dryer!L81=0,K69/1020,Dryer!L81) -> 2.549019608e-07 | Y69: Mercury Compounds | Z69: =N69*Dryer!$O$15 -> 0 | AA69: =O69*Dryer!$O$16 -> 0 | AB69: =P69*Dryer!$O$17 -> 0 | AC69: =Q69*Dryer!$O$18 -> 0 | AD69: =R69*Dryer!$O$19 -> 0 | AE69: =S69*Dryer!$O$20 -> 0 | AF69: =T69*Dryer!$O$21 -> 0 | AG69: =U69*Dryer!$O$22 -> 0 | AH69: =V69*Dryer!$O$23 -> 0 | AI69: =W69*Dryer!$O$24 -> 0 | AJ69: 0 | AL69: Mercury Compounds | AM69: 0 | AN69: 0 | AO69: 0 | AP69: 0 | AQ69: 0 | AR69: 0 | AS69: 0 | AT69: 0 | AU69: 0 | AV69: 0 | AW69: 0 | AY69: Ton/hr Limit | BC69: =Dryer!M10 -> 0 | BY69: Mercury Compounds | BZ69: 0 | CA69: 0 | CB69: 0 | CC69: 0 | CD69: 0 | CE69: 0 | CF69: 0 | CG69: 0 | CH69: 0 | CI69: 0 | CJ69: 0 | CL69: Mercury Compounds | CM69: 0 | CN69: 0 | CO69: 0 | CP69: 0 | CQ69: 0 | CR69: 0 | CS69: 0 | CT69: 0 | CU69: 0 | CV69: 0 | CW69: 0
A70: Nickel Compounds | B70: 0.0021 | C70: 0.0021 | D70: 0.0021 | E70: 0.0021 | F70: 0.0021 | G70: 0.0021 | H70: 0.0021 | I70: 0.0021 | J70: 0.0021 | K70: 0.0021 | M70: Nickel Compounds | N70: =IF(Dryer!C82=0,B70/1020,Dryer!C82) -> 2.058823529e-06 | O70: =IF(Dryer!D82=0,C70/1020,Dryer!D82) -> 2.058823529e-06 | P70: =IF(Dryer!E82=0,D70/1020,Dryer!E82) -> 2.058823529e-06 | Q70: =IF(Dryer!F82=0,E70/1020,Dryer!F82) -> 2.058823529e-06 | R70: =IF(Dryer!G82=0,F70/1020,Dryer!G82) -> 2.058823529e-06 | S70: =IF(Dryer!H82=0,G70/1020,Dryer!H82) -> 2.058823529e-06 | T70: =IF(Dryer!I82=0,H70/1020,Dryer!I82) -> 2.058823529e-06 | U70: =IF(Dryer!J82=0,I70/1020,Dryer!J82) -> 2.058823529e-06 | V70: =IF(Dryer!K82=0,J70/1020,Dryer!K82) -> 2.058823529e-06 | W70: =IF(Dryer!L82=0,K70/1020,Dryer!L82) -> 2.058823529e-06 | Y70: Nickel Compounds | Z70: =N70*Dryer!$O$15 -> 0 | AA70: =O70*Dryer!$O$16 -> 0 | AB70: =P70*Dryer!$O$17 -> 0 | AC70: =Q70*Dryer!$O$18 -> 0 | AD70: =R70*Dryer!$O$19 -> 0 | AE70: =S70*Dryer!$O$20 -> 0 | AF70: =T70*Dryer!$O$21 -> 0 | AG70: =U70*Dryer!$O$22 -> 0 | AH70: =V70*Dryer!$O$23 -> 0 | AI70: =W70*Dryer!$O$24 -> 0 | AJ70: 0 | AL70: Nickel Compounds | AM70: 0 | AN70: 0 | AO70: 0 | AP70: 0 | AQ70: 0 | AR70: 0 | AS70: 0 | AT70: 0 | AU70: 0 | AV70: 0 | AW70: 0 | AY70: Ton/yr Limit | BC70: =Dryer!M11 -> 0 | BY70: Nickel Compounds | BZ70: 0 | CA70: 0 | CB70: 0 | CC70: 0 | CD70: 0 | CE70: 0 | CF70: 0 | CG70: 0 | CH70: 0 | CI70: 0 | CJ70: 0 | CL70: Nickel Compounds | CM70: 0 | CN70: 0 | CO70: 0 | CP70: 0 | CQ70: 0 | CR70: 0 | CS70: 0 | CT70: 0 | CU70: 0 | CV70: 0 | CW70: 0
A71: Selenium Compounds | B71: 2.4e-05 | C71: 2.4e-05 | D71: 2.4e-05 | E71: 2.4e-05 | F71: 2.4e-05 | G71: 2.4e-05 | H71: 2.4e-05 | I71: 2.4e-05 | J71: 2.4e-05 | K71: 2.4e-05 | M71: Selenium Compounds | N71: =IF(Dryer!C83=0,B71/1020,Dryer!C83) -> 2.352941176e-08 | O71: =IF(Dryer!D83=0,C71/1020,Dryer!D83) -> 2.352941176e-08 | P71: =IF(Dryer!E83=0,D71/1020,Dryer!E83) -> 2.352941176e-08 | Q71: =IF(Dryer!F83=0,E71/1020,Dryer!F83) -> 2.352941176e-08 | R71: =IF(Dryer!G83=0,F71/1020,Dryer!G83) -> 2.352941176e-08 | S71: =IF(Dryer!H83=0,G71/1020,Dryer!H83) -> 2.352941176e-08 | T71: =IF(Dryer!I83=0,H71/1020,Dryer!I83) -> 2.352941176e-08 | U71: =IF(Dryer!J83=0,I71/1020,Dryer!J83) -> 2.352941176e-08 | V71: =IF(Dryer!K83=0,J71/1020,Dryer!K83) -> 2.352941176e-08 | W71: =IF(Dryer!L83=0,K71/1020,Dryer!L83) -> 2.352941176e-08 | Y71: Selenium Compounds | Z71: =N71*Dryer!$O$15 -> 0 | AA71: =O71*Dryer!$O$16 -> 0 | AB71: =P71*Dryer!$O$17 -> 0 | AC71: =Q71*Dryer!$O$18 -> 0 | AD71: =R71*Dryer!$O$19 -> 0 | AE71: =S71*Dryer!$O$20 -> 0 | AF71: =T71*Dryer!$O$21 -> 0 | AG71: =U71*Dryer!$O$22 -> 0 | AH71: =V71*Dryer!$O$23 -> 0 | AI71: =W71*Dryer!$O$24 -> 0 | AJ71: 0 | AL71: Selenium Compounds | AM71: 0 | AN71: 0 | AO71: 0 | AP71: 0 | AQ71: 0 | AR71: 0 | AS71: 0 | AT71: 0 | AU71: 0 | AV71: 0 | AW71: 0 | AY71: Total ton/hr of Rack dryers | BC71: =SUMIFS(AZ66:BI66,AZ67:BI67,Calculations!BA76) -> 0 | BE71: Total ton/hr of uncontrolled Rack dryers | BI71: =SUMIFS(AZ66:BI66,AZ67:BI67,Calculations!BA76,AZ68:BI68,1) -> 0 | BY71: Selenium Compounds | BZ71: 0 | CA71: 0 | CB71: 0 | CC71: 0 | CD71: 0 | CE71: 0 | CF71: 0 | CG71: 0 | CH71: 0 | CI71: 0 | CJ71: 0 | CL71: Selenium Compounds | CM71: 0 | CN71: 0 | CO71: 0 | CP71: 0 | CQ71: 0 | CR71: 0 | CS71: 0 | CT71: 0 | CU71: 0 | CV71: 0 | CW71: 0
A72: Total HAPs | M72: Total HAPs | N72: =IF(Dryer!C84=0,B72/1020,Dryer!C84) -> 0 | O72: =IF(Dryer!D84=0,C72/1020,Dryer!D84) -> 0 | P72: =IF(Dryer!E84=0,D72/1020,Dryer!E84) -> 0 | Q72: =IF(Dryer!F84=0,E72/1020,Dryer!F84) -> 0 | R72: =IF(Dryer!G84=0,F72/1020,Dryer!G84) -> 0 | S72: =IF(Dryer!H84=0,G72/1020,Dryer!H84) -> 0 | T72: =IF(Dryer!I84=0,H72/1020,Dryer!I84) -> 0 | U72: =IF(Dryer!J84=0,I72/1020,Dryer!J84) -> 0 | V72: =IF(Dryer!K84=0,J72/1020,Dryer!K84) -> 0 | W72: =IF(Dryer!L84=0,K72/1020,Dryer!L84) -> 0 | Y72: Total HAPs | Z72: =SUM(Z56:Z71) -> 0 | AA72: =SUM(AA56:AA71) -> 0 | AB72: =SUM(AB56:AB71) -> 0 | AC72: =SUM(AC56:AC71) -> 0 | AD72: =SUM(AD56:AD71) -> 0 | AE72: =SUM(AE56:AE71) -> 0 | AF72: =SUM(AF56:AF71) -> 0 | AG72: =SUM(AG56:AG71) -> 0 | AH72: =SUM(AH56:AH71) -> 0 | AI72: =SUM(AI56:AI71) -> 0 | AJ72: 0 | AL72: Total HAPs | AM72: 0 | AN72: 0 | AO72: 0 | AP72: 0 | AQ72: 0 | AR72: 0 | AS72: 0 | AT72: 0 | AU72: 0 | AV72: 0 | AW72: 0 | AY72: Total ton/hr of Self-Cleaning Screens | BC72: =SUMIFS(AZ66:BI66,AZ67:BI67,Calculations!BB76) -> 0 | BE72: Total ton/hr of uncontrolled Self-Cleaning Screens | BI72: =SUMIFS(AZ66:BI66,AZ67:BI67,Calculations!BB76,AZ68:BI68,1) -> 0 | BY72: Total HAPs | BZ72: 0 | CA72: 0 | CB72: 0 | CC72: 0 | CD72: 0 | CE72: 0 | CF72: 0 | CG72: 0 | CH72: 0 | CI72: 0 | CJ72: 0 | CL72: Total HAPs | CM72: 0 | CN72: 0 | CO72: 0 | CP72: 0 | CQ72: 0 | CR72: 0 | CS72: 0 | CT72: 0 | CU72: 0 | CV72: 0 | CW72: 0
A73: Greenhouse Gases (GHG) | B73: (lb/MMBtu) | AY73: Total ton/hr of Column dryers | BC73: =SUMIFS(AZ66:BI66,AZ67:BI67,Calculations!AZ76) -> 0 | BE73: Total ton/hr of uncontrolled Column dryers | BI73: =SUMIFS(AZ66:BI66,AZ67:BI67,Calculations!AZ76,AZ68:BI68,1) -> 0
A74: Carbon Dioxide (CO2) | B74: =53.06*2.20462 -> 116.9771372 | C74: =53.06*2.20462 -> 116.9771372 | D74: 116.9771372 | E74: 116.9771372 | F74: 116.9771372 | G74: 116.9771372 | H74: 116.9771372 | I74: 116.9771372 | J74: 116.9771372 | K74: 116.9771372 | M74: Carbon Dioxide (CO2) | N74: =IF(Dryer!C86=0,B74,Dryer!C86) -> 116.9771372 | O74: =IF(Dryer!D86=0,C74,Dryer!D86) -> 116.9771372 | P74: =IF(Dryer!E86=0,D74,Dryer!E86) -> 116.9771372 | Q74: =IF(Dryer!F86=0,E74,Dryer!F86) -> 116.9771372 | R74: =IF(Dryer!G86=0,F74,Dryer!G86) -> 116.9771372 | S74: =IF(Dryer!H86=0,G74,Dryer!H86) -> 116.9771372 | T74: =IF(Dryer!I86=0,H74,Dryer!I86) -> 116.9771372 | U74: =IF(Dryer!J86=0,I74,Dryer!J86) -> 116.9771372 | V74: =IF(Dryer!K86=0,J74,Dryer!K86) -> 116.9771372 | W74: =IF(Dryer!L86=0,K74,Dryer!L86) -> 116.9771372 | Y74: Carbon Dioxide (CO2) | Z74: =N74*Dryer!$O$15 -> 0 | AA74: =O74*Dryer!$O$16 -> 0 | AB74: =P74*Dryer!$O$17 -> 0 | AC74: =Q74*Dryer!$O$18 -> 0 | AD74: =R74*Dryer!$O$19 -> 0 | AE74: =S74*Dryer!$O$20 -> 0 | AF74: =T74*Dryer!$O$21 -> 0 | AG74: =U74*Dryer!$O$22 -> 0 | AH74: =V74*Dryer!$O$23 -> 0 | AI74: =W74*Dryer!$O$24 -> 0 | AJ74: =SUM(Z74:AI74) -> 0 | AL74: Carbon Dioxide (CO2) | AM74: =IF(AM$45=0,Z74*8760/2000,Z74*AM$45/2000) -> 0 | AN74: 0 | AO74: 0 | AP74: 0 | AQ74: 0 | AR74: 0 | AS74: 0 | AT74: 0 | AU74: 0 | AV74: 0 | AW74: =SUM(AM74:AV74) -> 0 | BY74: Carbon Dioxide (CO2) | BZ74: =Z74 -> 0 | CA74: =AA74 -> 0 | CB74: 0 | CC74: 0 | CD74: 0 | CE74: 0 | CF74: 0 | CG74: 0 | CH74: 0 | CI74: 0 | CJ74: =SUM(BZ74:CI74) -> 0 | CL74: Carbon Dioxide (CO2) | CM74: =AM74 -> 0 | CN74: =AN74 -> 0 | CO74: 0 | CP74: 0 | CQ74: 0 | CR74: 0 | CS74: 0 | CT74: 0 | CU74: 0 | CV74: 0 | CW74: 0
A75: Methane (CH4) | B75: =0.001*2.20462 -> 0.00220462 | C75: =0.001*2.20462 -> 0.00220462 | D75: 0.00220462 | E75: 0.00220462 | F75: 0.00220462 | G75: 0.00220462 | H75: 0.00220462 | I75: 0.00220462 | J75: 0.00220462 | K75: 0.00220462 | M75: Methane (CH4) | N75: =IF(Dryer!C87=0,B75,Dryer!C87) -> 0.00220462 | O75: =IF(Dryer!D87=0,C75,Dryer!D87) -> 0.00220462 | P75: =IF(Dryer!E87=0,D75,Dryer!E87) -> 0.00220462 | Q75: =IF(Dryer!F87=0,E75,Dryer!F87) -> 0.00220462 | R75: =IF(Dryer!G87=0,F75,Dryer!G87) -> 0.00220462 | S75: =IF(Dryer!H87=0,G75,Dryer!H87) -> 0.00220462 | T75: =IF(Dryer!I87=0,H75,Dryer!I87) -> 0.00220462 | U75: =IF(Dryer!J87=0,I75,Dryer!J87) -> 0.00220462 | V75: =IF(Dryer!K87=0,J75,Dryer!K87) -> 0.00220462 | W75: =IF(Dryer!L87=0,K75,Dryer!L87) -> 0.00220462 | Y75: Methane (CH4) | Z75: =N75*Dryer!$O$15 -> 0 | AA75: =O75*Dryer!$O$16 -> 0 | AB75: =P75*Dryer!$O$17 -> 0 | AC75: =Q75*Dryer!$O$18 -> 0 | AD75: =R75*Dryer!$O$19 -> 0 | AE75: =S75*Dryer!$O$20 -> 0 | AF75: =T75*Dryer!$O$21 -> 0 | AG75: =U75*Dryer!$O$22 -> 0 | AH75: =V75*Dryer!$O$23 -> 0 | AI75: =W75*Dryer!$O$24 -> 0 | AJ75: 0 | AL75: Methane (CH4) | AM75: 0 | AN75: 0 | AO75: 0 | AP75: 0 | AQ75: 0 | AR75: 0 | AS75: 0 | AT75: 0 | AU75: 0 | AV75: 0 | AW75: 0 | AZ75: Emission Factor (lb/ton) | BF75: Controlled Emission Factor (lb/ton) | BY75: Methane (CH4) | BZ75: =Z75 -> 0 | CA75: =AA75 -> 0 | CB75: =AB75 -> 0 | CC75: =AC75 -> 0 | CD75: =AD75 -> 0 | CE75: =AE75 -> 0 | CF75: =AF75 -> 0 | CG75: =AG75 -> 0 | CH75: =AH75 -> 0 | CI75: =AI75 -> 0 | CJ75: 0 | CL75: Methane (CH4) | CM75: =AM75 -> 0 | CN75: =AN75 -> 0 | CO75: =AO75 -> 0 | CP75: =AP75 -> 0 | CQ75: =AQ75 -> 0 | CR75: =AR75 -> 0 | CS75: =AS75 -> 0 | CT75: =AT75 -> 0 | CU75: =AU75 -> 0 | CV75: =AV75 -> 0 | CW75: 0
A76: Nitrous Oxide (N2O) | B76: =0.0001*2.20462 -> 0.000220462 | C76: =0.0001*2.20462 -> 0.000220462 | D76: 0.000220462 | E76: 0.000220462 | F76: 0.000220462 | G76: 0.000220462 | H76: 0.000220462 | I76: 0.000220462 | J76: 0.000220462 | K76: 0.000220462 | M76: Nitrous Oxide (N2O) | N76: =IF(Dryer!C88=0,B76,Dryer!C88) -> 0.000220462 | O76: =IF(Dryer!D88=0,C76,Dryer!D88) -> 0.000220462 | P76: =IF(Dryer!E88=0,D76,Dryer!E88) -> 0.000220462 | Q76: =IF(Dryer!F88=0,E76,Dryer!F88) -> 0.000220462 | R76: =IF(Dryer!G88=0,F76,Dryer!G88) -> 0.000220462 | S76: =IF(Dryer!H88=0,G76,Dryer!H88) -> 0.000220462 | T76: =IF(Dryer!J88=0,H76,Dryer!J88) -> 0.000220462 | U76: =IF(Dryer!K88=0,I76,Dryer!K88) -> 0.000220462 | V76: =IF(Dryer!L88=0,J76,Dryer!L88) -> 0.000220462 | W76: =IF(Dryer!M88=0,K76,Dryer!M88) -> 0.000220462 | Y76: Nitrous Oxide (N2O) | Z76: =N76*Dryer!$O$15 -> 0 | AA76: =O76*Dryer!$O$16 -> 0 | AB76: =P76*Dryer!$O$17 -> 0 | AC76: =Q76*Dryer!$O$18 -> 0 | AD76: =R76*Dryer!$O$19 -> 0 | AE76: =S76*Dryer!$O$20 -> 0 | AF76: =T76*Dryer!$O$21 -> 0 | AG76: =U76*Dryer!$O$22 -> 0 | AH76: =V76*Dryer!$O$23 -> 0 | AI76: =W76*Dryer!$O$24 -> 0 | AJ76: 0 | AL76: Nitrous Oxide (N2O) | AM76: 0 | AN76: 0 | AO76: 0 | AP76: 0 | AQ76: 0 | AR76: 0 | AS76: 0 | AT76: 0 | AU76: 0 | AV76: 0 | AW76: 0 | AZ76: column dryer | BA76: rack dryer | BB76: self‐cleaning screens | BF76: column dryer | BG76: rack dryer | BH76: self‐cleaning screens | BY76: Nitrous Oxide (N2O) | BZ76: 0 | CA76: 0 | CB76: 0 | CC76: 0 | CD76: 0 | CE76: 0 | CF76: 0 | CG76: 0 | CH76: 0 | CI76: 0 | CJ76: 0 | CL76: Nitrous Oxide (N2O) | CM76: 0 | CN76: 0 | CO76: 0 | CP76: 0 | CQ76: 0 | CR76: 0 | CS76: 0 | CT76: 0 | CU76: 0 | CV76: 0 | CW76: 0
A77: * Emission factors for Criteria Pollutants and HAPS from AP-42 Tables 1.4-1, 1.4-2, and 1.4-3. Emission Factors for GHGs from 40CFR98 | M77: * Emission factor equals manufacturer's specified. If no manufacturer guarantee entered, AP-42 emission factors are divided by 1020 MMBtu/MMscf | Y77: Total GHGs | Z77: =SUM(Z74:Z76) -> 0 | AA77: =SUM(AA74:AA76) -> 0 | AB77: =SUM(AB74:AB76) -> 0 | AC77: =SUM(AC74:AC76) -> 0 | AD77: =SUM(AD74:AD76) -> 0 | AE77: =SUM(AE74:AE76) -> 0 | AF77: =SUM(AF74:AF76) -> 0 | AG77: =SUM(AG74:AG76) -> 0 | AH77: =SUM(AH74:AH76) -> 0 | AI77: =SUM(AI74:AI76) -> 0 | AJ77: =SUM(AJ74:AJ76) -> 0 | AL77: Total GHGs | AM77: 0 | AN77: 0 | AO77: 0 | AP77: 0 | AQ77: 0 | AR77: 0 | AS77: 0 | AT77: 0 | AU77: 0 | AV77: 0 | AW77: 0 | AY77: PM | AZ77: 0.22 | BA77: 3 | BB77: 0.47 | BE77: PM | BF77: =AZ77*(1-$BA$82) -> 0.011 | BG77: 0.15 | BH77: 0.0235 | BY77: Total GHGs | BZ77: 0 | CA77: 0 | CB77: 0 | CC77: 0 | CD77: 0 | CE77: 0 | CF77: 0 | CG77: 0 | CH77: 0 | CI77: 0 | CJ77: =SUM(CJ74:CJ76) -> 0 | CL77: Total GHGs | CM77: 0 | CN77: 0 | CO77: 0 | CP77: 0 | CQ77: 0 | CR77: 0 | CS77: 0 | CT77: 0 | CU77: 0 | CV77: 0 | CW77: 0
Y78: Greenhouse Gases (GHG) (CO2 Equivalent Basis) | AL78: Greenhouse Gases (GHG) (CO2 Equivalent Basis) | AY78: PM10 | AZ78: 0.055 | BA78: 0.75 | BB78: 0.12 | BE78: PM10 | BF78: 0.00275 | BG78: 0.0375 | BH78: 0.006 | BY78: Greenhouse Gases (GHG) (CO2 Equivalent Basis) | CL78: Greenhouse Gases (GHG) (CO2 Equivalent Basis)
A79: Color Code | Y79: Carbon Dioxide (CO2) | Z79: =Z74 -> 0 | AA79: =AA74 -> 0 | AB79: 0 | AC79: 0 | AD79: 0 | AE79: 0 | AF79: 0 | AG79: 0 | AH79: 0 | AI79: 0 | AJ79: =SUM(Z79:AI79) -> 0 | AL79: Carbon Dioxide (CO2) | AM79: =IF(AM$45=0,Z79*8760/2000,Z79*AM$45/2000) -> 0 | AN79: 0 | AO79: 0 | AP79: 0 | AQ79: 0 | AR79: 0 | AS79: 0 | AT79: 0 | AU79: 0 | AV79: 0 | AW79: =SUM(AM79:AV79) -> 0 | AY79: PM2.5 | AZ79: 0.0094 | BA79: 0.13 | BB79: 0.02 | BE79: PM2.5 | BF79: 0.00047 | BG79: 0.0065 | BH79: 0.001 | BY79: Carbon Dioxide (CO2) | BZ79: =Z79 -> 0 | CA79: =AA79 -> 0 | CB79: 0 | CC79: 0 | CD79: 0 | CE79: 0 | CF79: 0 | CG79: 0 | CH79: 0 | CI79: 0 | CJ79: =SUM(BZ79:CI79) -> 0 | CL79: Carbon Dioxide (CO2) | CM79: =AM79 -> 0 | CN79: =AN79 -> 0 | CO79: 0 | CP79: 0 | CQ79: 0 | CR79: 0 | CS79: 0 | CT79: 0 | CU79: 0 | CV79: 0 | CW79: 0
B80: Before Project | Y80: Methane (CH4) | Z80: =Z75*25 -> 0 | AA80: =AA75*25 -> 0 | AB80: 0 | AC80: 0 | AD80: 0 | AE80: 0 | AF80: 0 | AG80: 0 | AH80: 0 | AI80: 0 | AJ80: 0 | AL80: Methane (CH4) | AM80: 0 | AN80: 0 | AO80: 0 | AP80: 0 | AQ80: 0 | AR80: 0 | AS80: 0 | AT80: 0 | AU80: 0 | AV80: 0 | AW80: 0 | BY80: Methane (CH4) | BZ80: =Z80 -> 0 | CA80: =AA80 -> 0 | CB80: =AB80 -> 0 | CC80: =AC80 -> 0 | CD80: =AD80 -> 0 | CE80: =AE80 -> 0 | CF80: =AF80 -> 0 | CG80: =AG80 -> 0 | CH80: =AH80 -> 0 | CI80: =AI80 -> 0 | CJ80: 0 | CL80: Methane (CH4) | CM80: =AM80 -> 0 | CN80: =AN80 -> 0 | CO80: =AO80 -> 0 | CP80: =AP80 -> 0 | CQ80: =AQ80 -> 0 | CR80: =AR80 -> 0 | CS80: =AS80 -> 0 | CT80: =AT80 -> 0 | CU80: =AU80 -> 0 | CV80: =AV80 -> 0 | CW80: 0
B81: After Project | Y81: Nitrous Oxide (N2O) | Z81: =Z76*298 -> 0 | AA81: =AA76*298 -> 0 | AB81: 0 | AC81: 0 | AD81: 0 | AE81: 0 | AF81: 0 | AG81: 0 | AH81: 0 | AI81: 0 | AJ81: 0 | AL81: Nitrous Oxide (N2O) | AM81: 0 | AN81: 0 | AO81: 0 | AP81: 0 | AQ81: 0 | AR81: 0 | AS81: 0 | AT81: 0 | AU81: 0 | AV81: 0 | AW81: 0 | AY81: Capture Efficiency | BA81: 1 | BY81: Nitrous Oxide (N2O) | BZ81: 0 | CA81: 0 | CB81: 0 | CC81: 0 | CD81: 0 | CE81: 0 | CF81: 0 | CG81: 0 | CH81: 0 | CI81: 0 | CJ81: 0 | CL81: Nitrous Oxide (N2O) | CM81: 0 | CN81: 0 | CO81: 0 | CP81: 0 | CQ81: 0 | CR81: 0 | CS81: 0 | CT81: 0 | CU81: 0 | CV81: 0 | CW81: 0
B82: Default Value of the NDEQ | Y82: Total GHGs | Z82: =SUM(Z79:Z81) -> 0 | AA82: =SUM(AA79:AA81) -> 0 | AB82: =SUM(AB79:AB81) -> 0 | AC82: =SUM(AC79:AC81) -> 0 | AD82: =SUM(AD79:AD81) -> 0 | AE82: =SUM(AE79:AE81) -> 0 | AF82: =SUM(AF79:AF81) -> 0 | AG82: =SUM(AG79:AG81) -> 0 | AH82: =SUM(AH79:AH81) -> 0 | AI82: =SUM(AI79:AI81) -> 0 | AJ82: =SUM(AJ79:AJ81) -> 0 | AL82: Total GHGs | AM82: 0 | AN82: 0 | AO82: 0 | AP82: 0 | AQ82: 0 | AR82: 0 | AS82: 0 | AT82: 0 | AU82: 0 | AV82: 0 | AW82: 0 | AY82: Control Efficiency | BA82: 0.95 | BY82: Total GHGs | BZ82: 0 | CA82: 0 | CB82: 0 | CC82: 0 | CD82: 0 | CE82: 0 | CF82: 0 | CG82: 0 | CH82: 0 | CI82: 0 | CJ82: =SUM(CJ79:CJ81) -> 0 | CL82: Total GHGs | CM82: 0 | CN82: 0 | CO82: 0 | CP82: 0 | CQ82: 0 | CR82: 0 | CS82: 0 | CT82: 0 | CU82: 0 | CV82: 0 | CW82: 0
B83: Final PTE
B84: Calculations
B85: Carry over from user input or other calculated values

Sheet Datasets (hidden)
A1: Unit Type | B1: % Straight to Hopper | C1: Control type | D1: Yes/NO | E1: Choice | F1: Permit Type | G1: Construction Permit | H1: Raw Material | I1: Enclosure | J1: Material Transfer | K1: Pile Control | L1: Dryer Type | M1: Fermentation Control | N1: Type of solids | O1: Enclosure | P1: Type of Loadout | Q1: Loading Type | R1: Tank Content | S1: Tank Orientation | T1: Tank Location | U1: Type of Tank | V1: Type of Primary Seal | W1: Shell Condition | X1: Number of columns | Y1: Default Control Equipment | Z1: Controlled Units | AA1: Boiler Types | AB1: NSPS | AC1: Fermenter/beerwell | AD1: Fermentation Type | AE1: Control Type | AF1: Control Type | AG1: Storage Control type | AH1: Ave. Truck Capacity | AI1: Input Road Type | AJ1: Fuel Type | AK1: Engine Configuration | AL1: Type of Secondary Seal | AM1: Internal Shell Conditions | AN1: External Shell Color | AO1: External Shell Condition | AP1: Deck Type | AQ1: Deck Fitting Category | AR1: Results Summary
A2: Truck | B2: 0:100 | C2: None/Uncontrolled | D2: YES | E2: X | F2: Construction Permit | G2: New Construction | H2: Corn | I2: Enclosed | J2: Front-End Loader | K2: Covered | L2: column dryer | M2: Vent Scrubber | N2: DDGS | O2: Enclosed | P2: Truck | Q2: None | R2: Ethanol | S2: Vertical | T2: Above Ground | U2: Fixed Roof | V2: Mechanical Shoe | W2: Light Rust | X2: Self Support | Y2: 0.95 | Z2: Dump Pits | AA2: Uncontrolled | AB2: Pre-NSPS | AC2: Fermenter | AD2: Batch Fermentation | AE2: None/Uncontrolled | AF2: None/Uncontrolled | AG2: None/Uncontrolled | AH2: ton | AI2: Unpaved Low Silt | AJ2: Natural Gas | AK2: 2-STROKE LEAN-BURN | AL2: Shoe Mounted | AM2: Light Rust | AN2: White | AO2: Good | AP2: Bolted | AQ2: Typical | AR2: Current PTE, (lb/hr)
A3: Rail Car | B3: 10:90 | C3: Baghouse | D3: NO | F3: Operating Permit | G3: Existing Plant | H3: Milo | I3: Partially Enclosed | J3: Conveyor | K3: Covered & Supressant | L3: rack dryer | M3: CO2 Scubber | N3: WDGS | O3: Partially Enclosed | P3: Rail Car | Q3: Submerged Loading | R3: Denaturant | S3: Horizontal | T3: Under Ground | U3: External Floating Roof | V3: Liquid Mounted | W3: Dense Rust | X3: 1 | Y3: 0.99 | Z3: Grain Handling | AA3: Low Nox burners | AB3: Post-NSPS | AC3: Beerwell | AD3: Continous Fermentation | AE3: Scrubber | AF3: RTO | AG3: Baghouse | AH3: gal | AI3: Unpaved Medium Silt | AJ3: Gasoline | AK3: 4-STROKE LEAN-BURN | AL3: Rim Mounted | AM3: Dense Rust | AN3: Aluminum/ Specular | AO3: Poor | AP3: Welded | AQ3: Detail | AR3: Current PTE, (ton/yr)
B4: 20:80 | H4: Cellulose | I4: Choke-flow | J4: Dump Truck | K4: None | L4: self‐cleaning screens | M4: No Control | O4: Other | P4: Both | Q4: Bottom-Fill Loading | R4: Denatured Ethanol | U4: Internal Floating Roof | V4: Vapor Mounted | W4: Gunite Lining | X4: 2 | Z4: Receiving & Handling | AA4: Flue Gas recirculation | AG4: Oiler | AI4: Unpaved High Silt | AJ4: Dual Fuel (95% NG + Diesel | AK4: 4-STROKE RICH-BURN | AM4: Gunite Lining | AN4: Aluminum/ Diffuse | AR4: PTE after the project, (lb/hr)
B5: 30:70 | H5: Other | I5: Other | J5: Loadout Spout | L5: other | R5: Corrosion Inhibitor | X5: 3 | AI5: Paved Low Silt | AN5: Gray/ Light | AR5: PTE after the project, (ton/yr)
B6: 40:60 | J6: Other | R6: Hydrochloric Acid | X6: 4 | AI6: Paved Medium Silt | AN6: Gray/ Medium | AR6: Project PTE, (lb/hr)
B7: 50:50 | X7: 5 | AI7: Paved High Silt | AN7: Red/ Prime | AR7: Project PTE, (ton/yr)
B8: 60:40 | X8: 6
B9: 70:30 | X9: 7 | AR9: Current Fugitive PTE, (lb/hr)
B10: 80:20 | X10: 8 | AR10: Current Fugitive PTE, (ton/yr)
B11: 90:10 | X11: 9 | AR11: Fugitive PTE after the Project, (lb/hr)
B12: 100:10 | X12: 10 | AR12: Fugitive PTE after the Project, (ton/yr)
X13: 11 | AR13: Project Fugitive PTE, (lb/hr)
X14: 12 | AR14: Project Fugitive PTE, (ton/yr)
X15: 13
X16: 14
X17: 15
X18: 16
X19: 17
X20: 18
X21: 19
X22: 20
